Workbook

Sheet Blad3
A4: Year | B4: Jub | C4: Wk | D4: Yr | E4: Mo | F4: Wk | G4: D | H4: Jubilee | I4: Week | J4: Year | K4: Month | L4: Week | M4: Day | N4: Reference | O4: Event
A5: 0 | B5: 0 | C5: 0 | D5: 0 | E5: 0 | F5: 0 | G5: 0 | H5: 1 | I5: 1 | J5: 1 | K5: 1 | L5: 1 | M5: 1 | N5: Jubilees 2:2-3 | O5: Names, substance, and light
A6: 0 | G6: 1 | H6: 1 | M6: 2 | N6: Jubilees 2:4 | O6: Condensation; steam into liquids, & dividing surface
A7: 0 | G7: 2 | H7: 1 | M7: 3 | N7: Jubilees 2:5-7 | O7: Solids, planets, planetary terrains, life, Garden of Eden.
A8: 0 | G8: 3 | H8: 1 | M8: 4 | N8: Jubilees 2:8-10 | O8: The luminaries in the sky are lit.
A9: 0 | G9: 4 | H9: 1 | M9: 5 | N9: Jubilees 2:11-12 | O9: Fish and birds
A10: 0 | G10: 5 | H10: 1 | M10: 6 | N10: Jubilees 2:13-16; 3:8 | O10: Beasts, cattle, & Adam (as male and female)
A11: 0 | G11: 6 | H11: 1 | M11: 7 | N11: Jubilees 2:17-33 | O11: Sabbath
A12: 0 | B12: 0 | C12: 0 | D12: 0 | E12: 0 | F12: 1 | G12: 0 | H12: 1 | L12: 2 | M12: 1 | N12: Jubilees 3:1 | O12: Naming the beasts
A13: 0 | G13: 1 | H13: 1 | M13: 2 | N13: Jubilees 3:1 | O13: Naming the cattle
A14: 0 | G14: 2 | H14: 1 | M14: 3 | N14: Jubilees 3:1 | O14: Naming the birds
A15: 0 | G15: 3 | H15: 1 | M15: 4 | N15: Jubilees 3:1 | O15: Naming everything that moves upon the earth
A16: 0 | G16: 4 | H16: 1 | M16: 5 | N16: Jubilees 3:1 | O16: Naming whatever moves in the water
A17: 0 | G17: 5 | H17: 1 | M17: 6 | N17: Jubilees 3:4-7 | O17: Male and female brought together to know one another
A18: 0 | F18: 5 | G18: 5 | H18: 1 | L18: 6 | M18: 6 | N18: Jubilees 3:9 | O18: After 40 days: Adam brought to the garden of Eden
A19: 0 | F19: 6 | G19: 5 | H19: 1 | L19: 7 | M19: 6 | N19: Jubilees 3:9 | O19: On the 8th day: Adam's wife brought to the garden of Eden
A20: 0 | B20: 0 | C20: 0 | H20: 1 | I20: 1 | J20: 1-7 | N20: Jubilees 3:15-16 | O20: Teaching Adam and his wife to till and guard the garden
A21: =B21*49+C21*7+D21 -> 7 | B21: =H21-1 -> 0 | C21: 1 | D21: 0 | E21: 1 | F21: 2 | G21: 2 | H21: 1 | I21: 2 | J21: 1 | K21: 2 | L21: 3 | M21: 3 | N21: Jubilees 3:17-25 | O21: In the 2nd month on the 17th day: The serpent came and drew near to the woman…
A22: =B22*49+C22*7+D22 -> 7 | B22: =H22-1 -> 0 | C22: =I22-1 -> 1 | D22: =J22-1 -> 0 | E22: =K22-1 -> 3 | G22: =M22-1 -> 0 | H22: 1 | I22: 2 | J22: 1 | K22: 4 | M22: 1 | N22: Jubilees 3:32-35 | O22: Adam and his wife went out from the garden of Eden and dwelt in the land of 'Elda, in the land of their creation. And Adam named his wife Eve. They had no son until the first jubilee but after this he knew her.
A23: =B23*49+C23*7+D23 -> 63 | B23: 1 | C23: 2 | H23: 2 | I23: 3 | N23: Jubilees 4:1 | O23: she bore Cain
A24: 70 | B24: 1 | C24: 3 | H24: 2 | I24: 4 | N24: Jubilees 4:1 | O24: she bore Abel
A25: 77 | B25: 1 | C25: 4 | H25: 2 | I25: 5 | N25: Jubilees 4:1 | O25: she bore 'Awan, his daughter'
A26: 98 | B26: 2 | C26: 0 | H26: 3 | I26: 1 | N26: Jubilees 4:2 | O26: Cain killed Abel…
A27: 129 | B27: 2 | C27: 4 | D27: 3 | H27: 3 | I27: 5 | J27: 4 | N27: Jubilees 4:7 | O27: "And Adam and his wife were murning four weeks of years on account of Abel. And in the fourth year of the fifth week they rejoiced. And Adam again knew his wife and she bore a son for him. And he named him Seth because he said, "The Lord has raised up another seed for us upon the earth in place of Abel because Cain killed him."
A28: 133 | B28: 2 | C28: 5 | H28: 3 | I28: 6 | N28: Jubilees 4:8 | O28: "And in the sixth week he begat 'Azura, his daughter."
A29: 195 | B29: 3 | C29: 6 | D29: 6 | H29: 4 | I29: 7 | J29: 7 | N29: Jubilees 4:9 | O29: "And Cain took his sister, 'Awan, as a wife, and she bore for him Enoch at the end of the fourth jubilee."
A30: 196 | B30: 4 | C30: 0 | D30: 0 | H30: 5 | I30: 1 | J30: 1 | N30: Jubilees 4:9 | O30: "And in the first year of the first week of the fifth jubilee, buildings were constructed in the land. And Cain built a city and he named it with the name of his son, Enoch."
A31: 224 | B31: 4 | C31: 4 | H31: 5 | I31: 5 | N31: Jubilees 4:11 | O31: "Seth took 'Azura, his sister, as a wife."
A32: 227 | B32: 4 | C32: 4 | D32: 3 | H32: 5 | I32: 5 | J32: 4 | N32: Jubilees 4:11-12 | O32: "she [Azura] bore for him [Seth] Enos. He was first to call the name of the LORD upon the earth."
A33: 308 | B33: 6 | C33: 2 | H33: 7 | I33: 3 | N33: Jubilees 4:13 | O33: "Enos took Noam, his sister, as a wife. And she bore a son for him… And he named him Kenan."
A34: 324 | B34: 6 | C34: 4 | D34: 2 | H34: 7 | I34: 5 | J34: 3 | N34: Jubilees 4:13 | O34: "she bore… Kenan"
A35: 391 | B35: 7 | C35: 6 | D35: 6 | H35: 8 | I35: 7 | J35: 7 | N35: Jubilees 4:14 | O35: "And at the end of the eighth jubilee, Kenan took for himself a wife, Mualeleth, his sister, (as) a wife."
A36: 394 | B36: 8 | C36: 0 | D36: 2 | H36: 9 | I36: 1 | J36: 3 | N36: Jubilees 4:14 | O36: "And she bore a son for him… he called him Mahalalel."
A37: 448 | B37: 9 | C37: 1 | H37: 10 | I37: 2 | N37: Jubilees 4:15 | O37: "Mahalalel took for himself a wife, Dinah, the daughter of Baraki'el, the daughter of his father's brother, as a wife.
A38: 460 | B38: 9 | C38: 2 | D38: 5 | H38: 10 | I38: 3 | J38: 6 | N38: Jubilees 4:15 | O38: Jared: "And she bore a son for him… And he called him Jared because in his days the angels of the LORD, who were calle Watchers, came down to the earth in order to teach the sons of man, and perform judgment and uprightness upon the earth."
A39: 511 | B39: 10 | C39: 3 | H39: 11 | I39: 4 | N39: Jubilees 4:16 | O39: "Jared took for himself a wife and her name was araka, the daughter of Rasuyal, the dauthter of his father's brother, as a wife… And she bore a son for him… And he called him…"
A40: 521 | B40: 10 | C40: 4 | D40: 3 | H40: 11 | I40: 5 | J40: 4 | N40: Jubilees 4:16 | O40: "…Enoch."
A41: 581 | B41: 11 | C41: 6 | H41: 12 | I41: 7 | N41: Jubilees 4:20 | O41: "he [Enoch] took for himself a wife and her name was 'Edni, the daughter of Dan'el, his father's brother, as a wife… and… she bore a son for him. And he called him Methuselah."
A42: 586 | B42: 11 | C42: 6 | D42: 5 | H42: 12 | I42: 7 | J42: 6 | N42: Jubilees 4:20 | O42: "...Methuselah. And he was therefore with the angels of God six jubilees of years..."
A43: 651 | B43: 13 | C43: 2 | D43: 0 | H43: 14 | I43: 3 | J43: 1 | N43: Jubilees 4:27 | O43: "…And in the fourteenth jubilee Methuselah took as his wife 'Edna, daughter of Azri'al, his father's brother, as a wife,.. And he begot a son. And he called him Lamech."
A44: 700 | B44: 14 | C44: 2 | H44: 15 | I44: 3 | N44: Jubilees 4:28 | O44: Noah: "Lamech took for himself a wife, and her name was Betenos, the daughter of Baraki'il, the daughter of his father's brother, (as) a wife. And in that week she bore a son for him and he called him Noah, saying, "This one will console me from my grief and from all of my labor and from the land which the LORD cursed."
A45: 929 | B45: 18 | C45: 6 | D45: 5 | H45: 19 | I45: 7 | J45: 6 | N45: Jubilees 4:29-30 | O45: Adam died: "And at the end of the nineteenth jubilee in the seventh week, in the sixth year, Adam died. And all of his children buried him in the land of his creation. And he was the first who was buried in the earth. And he lacked seventy years from one thousand years, for a thousand years are like one day in the testimony of heaven and therefore it was written concerning the tree of knowledge, "in the day you eat from it you will die." Therefore hie did not complete the years of this day because he died in it."
A46: 930 | B46: 18 | C46: 6 | D46: 6 | H46: 19 | I46: 7 | J46: 7 | N46: Jubilees 4:31 | O46: Cain killed: "At the end of that jubilee Cain was killed one year after him[Adam]. And his house fell upon him, and he died in the midst of his house…"
A47: 1204 | B47: 24 | C47: 4 | D47: 0 | H47: 25 | I47: 5 | J47: 1 | N47: Jubilees 4:33 | O47: "And… Noah took a wife for himself and her name was 'Emzara, daughter of Rake'el, daughter of his father's brother, as a wife, in the first year, in the fifth week. And in its third year she bore for him Shem. And in its fifth year she bore for him Ham. And in the first year of the sixth week she bore for him Japheth."
A48: 1206 | B48: 24 | C48: 4 | D48: 2 | H48: 25 | I48: 5 | J48: 3 | N48: Jubilees 4:33 | O48: she bore for him Shem
A49: 1208 | B49: 24 | C49: 4 | D49: 4 | H49: 25 | I49: 5 | J49: 5 | N49: Jubilees 4:33 | O49: she bore for him Ham
A50: 1211 | B50: 24 | C50: 5 | D50: 0 | H50: 25 | I50: 6 | J50: 1 | N50: Jubilees 4:33 | O50: she bore for him Japheth
A51: 1061 | B51: 21 | C51: 4 | D51: 4 | H51: 22 | I51: 5 | J51: 5 | N51: Jubilees 5:22 | O51: Made and ark: "And Noah made an ark in all respects just as he commanded him in the twenty-second jubilee of years in the fifth week in the fifth year. And he entered it in the sixth year in the second month on the first of the second month until the sixteenth day. And he and everything which we brought to him entered into the ark. Adn the LORD shut it up from outside on the evening of the seventeenth."
A52: 1062 | B52: 21 | C52: 4 | D52: 5 | E52: =K52-1 -> 1 | H52: =H51 -> 22 | I52: 5 | J52: 6 | K52: 2 | M52: 1-16 | N52: Jubilees 5:23 | O52: The ark entered.
A53: 1062 | B53: 21 | C53: 4 | D53: 5 | E53: =K53-1 -> 1 | G53: =M53-1 -> 16 | H53: =H52 -> 22 | I53: =I52 -> 5 | J53: =J52 -> 6 | K53: 2 | M53: 17 | N53: Jubilees 5:23 | O53: "the LORD shut [the ark] up from outside…"
A54: 1062 | B54: 21 | C54: 4 | D54: 5 | E54: =K54-1 -> 3 | H54: 22 | I54: =I53 -> 5 | J54: =J53 -> 6 | K54: 4 | N54: Jubilees 5:29 | O54: "… the springs of the great deep were closed and the floodgates of heaven were held shut."
A55: 1062 | B55: 21 | C55: 4 | D55: 5 | E55: =K55-1 -> 6 | F55: =L55-1 -> 0 | G55: =M55-1 -> 0 | H55: 22 | I55: 5 | J55: =J54 -> 6 | K55: 7 | L55: 1 | M55: 1 | N55: Jubilees 5:29 | O55: "And on the new moon of the seventh month, all of the mouths of the deeps of the earth were opened. And the water began to go down into the depths below."
A56: =B56*49+C56*7+D56 -> 1062 | B56: =H56-1 -> 21 | C56: =I56-1 -> 4 | D56: =J56-1 -> 5 | E56: =K56-1 -> 9 | F56: =L56-1 -> 0 | G56: =M56-1 -> 0 | H56: 22 | I56: 5 | J56: =J55 -> 6 | K56: 10 | L56: 1 | M56: 1 | N56: Jubilees 5:30 | O56: "…the heads of the mountains appeared."
A57: 1063 | B57: 21 | C57: 4 | D57: 6 | H57: 22 | I57: 5 | J57: 7 | N57: Jubilees 5:23 | O57: "… And the water dried up from upon the earth in the fifth week, in its seventh year."
A58: 1063 | B58: 21 | C58: 4 | D58: 6 | E58: =K58-1 -> 1 | G58: =M58-1 -> 16 | H58: 22 | I58: 5 | J58: 7 | K58: 2 | M58: 17 | N58: Jubilees 5:23 | O58: "…the land was dry."
A59: 1063 | B59: 21 | C59: 4 | D59: 6 | E59: =K59-1 -> 1 | G59: =M59-1 -> 26 | H59: 22 | I59: 5 | J59: 7 | K59: 2 | M59: 27 | N59: Jubilees 5:23 | O59: "…[Noah] opened the ark and he sent out of it the beasts, and cattle and birds and whatever moved."
A60: 1063 | B60: 21 | C60: 4 | D60: 6 | E60: =K60-1 -> 2 | G60: =M60-1 -> 0 | H60: 22 | I60: 5 | J60: 7 | K60: 3 | M60: 1 | N60: Jubilees 6:1 | O60: "… And on the first of the third month, he went out of the ark, and he built an altar on that mountain. And he made atonement for the land…"
A61: 1253 | B61: 25 | C61: 4 | H61: 26 | I61: 5 | N61: Jubilees 6:18 | O61: "And all of this feast was celebrated in heaven from the day of creation until the days of Noah, twenty-six jubilees and five weeks of years…"
A62: 1603 | B62: 32 | C62: 5 | H62: =H61+7 -> 33 | I62: =I61+1 -> 6 | N62: Jubilees 6:18 | O62: "…And Noah and his children kept it for seven jubilees and one week of years until the day of the death of Noah…"
A63: -7 | B63: -1 | C63: 6 | D63: 0 | I63: 7 | J63: 1 | N63: Jubilees 7:1 | O63: "Noah planted a vine on the mountain on which the ark rested, whose name is Lubar, (one) of the mountains of Ararat. And it produced fruit in the fourth year, ahd he guarded its fruit: and he picked it in that year in the seventh month, and he made wine from it, and he put it in a vessel, and he guarded it until the fifth year, until the firrst day on the first of the first month. And on that day he made a feast with rejoicing..."
A64: -4 | B64: -1 | C64: 6 | D64: 3 | E64: =K64-1 -> 6 | I64: =I63 -> 7 | J64: 4 | K64: 7 | N64: Jubilees 7:1 | O64: "...And it produced fruit in the fourth year, ahd he guarded its fruit: and he picked it in that year in the seventh month, and he made wine from it, and he put it in a vessel..."
A65: -3 | B65: -1 | C65: 6 | D65: 4 | E65: =K65-1 -> 0 | G65: =M65-1 -> 0 | I65: =I64 -> 7 | J65: 5 | K65: 1 | M65: 1 | N65: Jubilees 7:2
A66: 1063 | B66: 21 | C66: 4 | D66: 6 | H66: =H53 -> 22 | I66: =I53 -> 5 | J66: =J53+1 -> 7 | N66: Jubilees 7:19 | O66: "Arpachshad… was born two years after the Flood…"
A67: 1323 | B67: 27 | H67: 28 | N67: Jubilees 7:20 | O67: "And in the twenty-eight jubilee Noah began to command his grandsons with ordinances and commandments and all of the judgments which he knew. And he bore witness to his sons so that they might do justice and cover the shame of their flesh and bless the one who created them and honor father and mother, and each one love his neighbor and preserve themselves from fornication and pollution and from all injustice..."
A68: 1372 | B68: 28 | C68: 0 | D68: 0 | H68: 29 | I68: 1 | J68: 1 | N68: Jubilees 8:1 | O68: "Arpachshad took a wife and her name was Rasu'eya, daughter of Susan, daughter of Elam, as a wife. And she bore a son for him in the third year of that week, and he called him Cainan, and the child grew…."
A69: 1374 | B69: 28 | C69: 0 | D69: 2 | H69: =H68 -> 29 | I69: =I68 -> 1 | J69: 3 | N69: Jubilees 8:1 | O69: "she bore… Cainan…"
A70: 1428 | B70: 29 | C70: 1 | D70: 0 | H70: 30 | I70: 2 | J70: 1 | N70: Jubilees 8:5 | O70: Cainan "took a wife and her name was Melka, daughter of Madai, son of Japheth. And in its fourth year he begot a son and he called him Shelah because, he said, "I have certainly been sent out."
A71: 1431 | B71: 29 | C71: 1 | D71: 3 | H71: =H70 -> 30 | I71: =I70 -> 2 | J71: 4 | N71: Jubilees 8:5 | O71: "he begot Shelah"
A72: 1498 | B72: 30 | C72: 4 | D72: 0 | H72: 31 | I72: 5 | J72: 1 | N72: Jubilees 8:6 | O72: Shelah "took a wife and her name was Mu'ak, daughter of Kesed, his father's brother, as a wife… And she bore a son for him… and he called him 'Eber."
A73: 1502 | B73: 30 | C73: 4 | D73: 4 | H73: =H72 -> 31 | I73: =I72 -> 5 | J73: 5 | N73: Jubilees 8:6 | O73: "she bore… Eber"
A74: 1563 | B74: 31 | C74: 6 | D74: 2 | H74: 32 | I74: 7 | J74: 3 | N74: Jubilees 8:7-9 | O74: "And [Eber] took a wife, and her name was 'Azurad, daughter of Nebrod, in the thiry-second jubilee in the seventh week in its third year. And in its sixth year she bore a son for him. And he called him Peleg because in the days when he was born the sons of Noah began dividing up the earth for themselves. Therefore he called him Peleg. And they divided it in an evil (manner) among themselves, and they told it to Noah."
A75: 1566 | B75: 31 | C75: 6 | D75: 5 | H75: =H74 -> 32 | I75: =I74 -> 7 | J75: 6 | N75: Jubilees 8:7-9 | O75: "she bore… Peleg"
A76: 1568 | B76: 32 | C76: 0 | D76: 0 | H76: 33 | I76: 1 | J76: 1 | N76: Jubilees 8:10-11 | O76: "And it came to pass at the beginning of the thirty-third jubilee, that they divided the land (in) three parts, for Shem, Ham, and Jepheth, afccording to the inheritance of each, in the first year in the first week, while one of us who were sent was dwelling with them. And he called his children, and they came to him, they and their children. And he divided by lot the land which his three sons would possess. And they stretched out their hands and took the document from the bosom of Noah, their father."
A77: -35 | B77: -1 | C77: 2 | I77: 3 | N77: Jubilees 10:1 | O77: "In the third week of that jubilee the polluted demons began to lead astray the children of Noah's sons and to lead them to folly and to destroy them. And the sons of Noah came to Noah, their father, and they told him about the demons who were leading astray and blinding and killing his grandchildren. And he prayed before the LORD his God and he said, "God of the spirirts which are in all flesh, who has acted mercifully with me and saved me and my sons from the water of the Flood and did not let me perish as you did the children of perdition, because..."
A78: =A44+950 -> 1650 | B78: 33 | C78: 4 | D78: 5 | H78: =INT(A78/49)+1 -> 34 | I78: =INT(MOD(A78, 49)/7)+1 -> 5 | J78: =MOD(MOD(A78, 49), 7)+1 -> 6 | N78: Jubilees 10:15-16 | O78: "And Noah slept with his fathers and was b uried on Mount Lubar in the land of Ararat. Nine hundred and fifty years he completed in his life, nineteen jubilees and two weeks and five years…"
A79: 1575 | B79: 32 | C79: 1 | D79: 0 | H79: 33 | I79: 2 | J79: 1 | N79: Jubilees 10:18 | O79: "And… Peleg took a wife whose name was Lomna, daughter of Sian'ar. And she bore a son for him in the fourth year of that week. And he called him Reu because, he said, "Behold, the sons of man have become evil with perverse counsel so that they are building a city and a tower for themselves in the land of Shinar." For they departed from the land of Ararat toward the east into Shinar, because in his days they built a city and a tower, saying, "Come let us go up in it into heaven. And they began building. And in the fourth week they baked bricks in fire, and bricks were for them like stones. And the mud with which they plastered was bitumen, which came out of the sea, and the springs of water in the land of Shinar. And they built it; forty-three years they were building it..."
A80: 1578 | B80: 32 | C80: 1 | D80: 3 | H80: =H79 -> 33 | I80: =I79 -> 2 | J80: 4 | N80: Jubilees 10:18 | O80: "she bore… Reu"
A81: 1594 | B81: 32 | C81: 3 | D81: 5 | H81: =H80 -> 33 | I81: 4 | J81: 6 | K81: ? | N81: Jubilees 10:20 | O81: "and they began building…|
A82: 1637 | B82: 33 | C82: 2 | D82: 6 | H82: =H81+1 -> 34 | I82: =6+I81-7 -> 3 | J82: =J81+1 -> 7 | N82: Jubilees 10:21 | O82: "forty-three years they were building it…"
A83: 1638 | B83: 33 | C83: 3 | D83: 0 | H83: 34 | I83: 4 | J83: 1 | N83: Jubilees 10:27 | O83: "…they were scattered from the land of Shinar."
A84: 1680 | B84: 34 | C84: 2 | D84: 0 | H84: 35 | I84: 3 | J84: 1 | N84: Jubilees 11:1 | O84: …Reu took a wife and her name was 'Ora, daughter of 'Ur, son of Kesed. And she bore a son for him and he called him Seroh…"
A85: 1686 | B85: 34 | C85: 2 | D85: 6 | H85: =H84 -> 35 | I85: =I84 -> 3 | J85: 7 | N85: Jubilees 11:1,6 | O85: "she bore… Seroh… Therefore he called the name of Seroh, "Serug," because everyone had turned back to commit all sin and transgression.""
A86: 1743 | B86: 35 | C86: 4 | D86: 0 | H86: 36 | I86: 5 | J86: 1 | N86: Jubilees 11:7 | O86: Seroh/Serug "grew up and dwelt in 'Ur of the Chaldees near the father of his wife's mother. And he used to worship idols. And he took a wife in the thirty-sixth jubilee, in the fifth week, in the first year thereof. And her name was Melka, daughter of Kaber, daughter of his father's brother. And she bore for him Nahor in the first year of that week. And he grew up and he dwelt in 'Ur among the Chaldeans, and his father taught him the researches of the Chaldeans in order to practice divination and astrology according to the signs of heaven."
A87: 1799 | B87: =H87-1 -> 36 | C87: =I87-1 -> 5 | D87: =J87-1 -> 0 | H87: 37 | I87: 6 | J87: 1 | N87: Jubilees 11:9-13 | O87: "And in the thirty-seventh jubilee, in the sixth week, in the first year thereof, he took a wife. And her name was 'Iyaska, daughter of Nestag of the Chaldees. And she bore for him Terah in the seventh year of that week. And Prince Mastema sent crows and birds so that they might eat the seed which was being sown in the earth in order to spoil the earth so that they might rob mankind of their labors. Before they plowed in the seed, the crows picked it off the surface of the earth. And therefore he called him Terah because the crows and birds were impoverishing them. And they ate their seed. And the years began being barren because of the birds. And they ate all of the fruit of the trees from the groves. If ever they ere able to save a little from all of the fruit of the earth in their days, it was with great effort."
A88: =B88*49+C88*7+D88 -> 1805 | B88: 36 | C88: 5 | D88: 6 | H88: =H87 -> 37 | I88: =I87 -> 6 | J88: 7 | N88: Jubilees 11:9-13 | O88: "she bore… Terah"
A89: 1869 | B89: 38 | C89: 1 | D89: 0 | H89: 39 | I89: 2 | J89: 1 | N89: Jubilees 11:14-17 | O89: "And… Terah took a wife and her name was 'Edna, daughter of 'Abram, daughter of his father's sister. And in the seventh year of that week, she bore a son for him, and he called him Abram, after the name of his mother's father because he died before his daughter conceived a son. And the lad began understanding the straying of the land, that everyone went astray after graven images and after pollution. And his father taught him writing. And he was two weeks of years old. And he separated from his father so that he might not worship the idols with him. And he began to pray to the Creator of all so that he might save him from the straying of the sons of men, and so that his portion might not fall into straying after the pollution and scorn."
A90: 1875 | B90: 38 | C90: 1 | D90: 6 | H90: =H89 -> 39 | I90: =I89 -> 2 | J90: 7 | N90: Jubilees 11:14-17 | O90: "she bore… Abram"
A91: 1889 | B91: 38 | C91: 3 | D91: 6 | H91: =H90 -> 39 | I91: =I90+2 -> 4 | J91: =J90 -> 7 | N91: Jubilees 11:18-22 | O91: "Abram… was fourteen years old… And he caused the cloud of crows to turn back seventy times in that day…"
A92: 1890 | B92: 38 | C92: 4 | D92: 0 | H92: =H91 -> 39 | I92: 5 | J92: 1 | N92: Jubilees 11:23-24 | O92: "Abram taught those who were making the implements for oxen, the skilled carpenters. And they made implements above the ground facing the handle of the plow so that they might place seed upon it. And the seed would go down from within it onto the point of the plow, and it would be hidden in the earth. And therefore they were not afraid of the crows. And they did likewise upon all of the plow handles above the ground. And they sowed and tilled all of the earth just as Abram commanded them. And therefore they wore not afraid of the birds."
A93: 1903 | B93: 38 | C93: 5 | D93: 6 | H93: =H92 -> 39 | I93: 6 | J93: 7 | N93: Jubilees 12:1-8 | O93: "Abram spoke to Terah, his father, saying…"What help or advantage do we have from these idols before which you worship and bow down?... Do not worship them." And his father said to him, "I also know (that), my son, but what shall I do to the people who have made me minister before them? And if I speak to them in righteousness, they will kill me because their souls cleave to them so that they might worship them and praise them. Be silent, my son, lest they kill you." And he told this matter to two of his brothers, and they were angry with him, nad he kept quiet."
A94: 1924 | B94: 39 | C94: 1 | D94: 6 | H94: 40 | I94: 2 | J94: 7 | N94: Jubilees 12:9 | O94: "And… Abram took a wife and her name was Sarai, daughter of his father, and she became a wife for him."
A95: 1927 | B95: 39 | C95: 2 | D95: 2 | H95: 40 | I95: 3 | J95: 3 | N95: Jubilees 12:10-11 | O95: "And Haran, his brother, took a wife… and she bore a son for him… And he called him Lot. And Nahor, his brother, took a wife."
A96: 1931 | B96: 39 | C96: 2 | D96: 6 | H96: =H95 -> 40 | I96: =I95 -> 3 | J96: 7 | N96: Jubilees 12:10-11 | O96: "she bore… Lot"
A97: 1935 | B97: 39 | C97: 3 | D97: 3 | H97: =H96 -> 40 | I97: 4 | J97: 4 | N97: Jubilees 12:12-14 | O97: "In the sixtieth year of the life of Abram, i.e. the fourth week, in its fourth year, Abram arose in the night and burned the house of idols. And he burned everything in the house. And there was no man who knew. And they rose up in the night, and they wanted to save their gods from the midst of the fire. And Haran rushed to save them, and the fire flared up over him. And he was burned in the fire and died in Ur of the Chaldees before Terah, his father. And they buried him in Ur of the Chaldees."
A98: 1949 | B98: 39 | C98: 5 | D98: 3 | H98: 40 | I98: =I97+2 -> 6 | J98: =J97 -> 4 | N98: Jubilees 12:15 | O98: Abram in Haran until…: "And Terah went out of Ur of the Chaldees, he and his sons, so that they might come into the land of Lebanon and into the land of Canaan. And he dwelt in Haran. And Abram dwelt with Terah, his father, in Haran two weeks of years."
A99: 1950 | B99: 39 | C99: 5 | D99: 4 | H99: 40 | I99: 6 | J99: 5 | N99: Jubilees 12:16-24 | O99: "Abram sat up during the night…so that he might observe the stars from evening until daybreak… And he said, "Shall I return unto Ur of the Chaldees who seek my face so that I should return to them? Or shall I dwell in this place? Make the straight path prosper before you in the hand of your servant that he might serve. And do not let me walk in the error of my heart, O my God."
A100: 1952 | B100: 39 | C100: 5 | D100: 6 | H100: 40 | I100: 6 | J100: 7 | N100: Jubilees 12:28-31 | O100: Abram "spoke with his father and let him know that he was going from Haran to walk (in) the land of Canaan so that he might see it and return to him. And Terah, his father, said to him: "Go in peace…And take Lot, the son of Haran your brother with you (as) a son for yourself. The Lord be with you. But Nahor, your brother, leave with me until you return in peace. And we will all go together with you."
A101: 1953 | B101: 39 | C101: 6 | D101: 0 | E101: =K101-1 -> 0 | G101: =M101-1 -> 0 | H101: 40 | I101: 7 | J101: 1 | K101: 1 | M101: 1 | N101: Jubilees 13:1-9, 8 | O101: Abram "built an altar on that mountain and he called on the name of the Lord: "You (are) my God, the eternal God."
A102: 1955 | B102: 39 | C102: 6 | D102: 2 | H102: 40 | I102: =I101 -> 7 | J102: 3 | N102: Jubilees 13:10-15 | O102: Abram "reached Hebron-and Hebron was built then. And he dwelt there two years. And he went to the land of the South as far as Bealoth. And there was a famine in the land. And Abram went into Egypt in the third year of the week and he stayed in Egypt five years before his wife was taken from him. And Tanis of Egypt was built then, seven years after Hebron...
A103: 1960 | B103: 40 | C103: 0 | D103: 0 | H103: =H102+1 -> 41 | I103: 1 | J103: 1 | N103: Jubilees 13:15 | O103: "And Pharaoh returned Sarai, the wife of Abram. And he sent him out from the land of Egypt."
A104: 1962 | B104: 40 | C104: 0 | D104: 2 | H104: =H103 -> 41 | I104: 1 | J104: 3 | N104: Jubilees 13:15-16 | O104: Return to BethEl: "And [Abram] went to the place where he had pitched his tent first, to the place of the altar. Ai was east and Bethel west. And he blessed the LORD his God who brought him back in peace. And it came to pass in that forty-first jubilee, in the third year of the first week, (that) he returned to this place... And he said: "You,k O god, Most High, (are) my God forever and ever." "
A105: 1963 | B105: 40 | C105: 0 | D105: 3 | H105: 41 | I105: 1 | J105: 4 | N105: Jubilees 13:17-21 | O105: "And… Lot separated from him… (It was) in that year, when Lot was taken captive, that the LORD spoke to Abram after Lot had separated from him, in the fourth year of that week: "Lift up your eyes from the place where you are dwelling toward the North and South and West and East because all of the land which you see I will give to you and your seed forever..."
A106: 1963 | B106: 40 | C106: 0 | D106: 3 | E106: =K106-1 -> 2 | G106: =M106-1 -> 0 | H106: 41 | I106: 1 | J106: =J105 -> 4 | K106: 3 | M106: 1 | N106: Jubilees 14:1-20 | O106: "And after these things… the word of the LORD came to Abram in a dream, saying, "Don't fear, Abram. I am your defender and your reward (will be) very great."..And he said to him, "This one will not be your heir, but one who will come from your loins will be your heir." And he took him outside and he said to him, "Look into heaven and count the stars if you are able to count them."... "Thus shall byourseed be." "Surely know that your seed will be strangers in an alien land. And they will serve them. And they will make them suffer four hundred years...And in the fourth generation they will return here because the sins of the Amorites have not yet been completed." And on that day the LORD made a covenant with Abram, saying, "To your seed I will give this land... And on that day we made a covenant with Abram just as we had made a covenant in that month with Noah. And Abram renewed the feast and the ordinance for himself forever."
A107: 1964 | B107: 40 | C107: 0 | D107: 4 | H107: 41 | I107: 1 | J107: 5 | N107: Jubilees 14:21-24 | O107: "And Sarai took Hagar, her Egyptian maid, and she gave her to Abram, her husband, so that she might be a wife. And he went into her. And she conceived and bore a son and he called him Ishmael, in the fifth year of that week. And that year was the eighty-sixth year in the life of Abram."
A108: =A90+85 -> 1960 | B108: -1 | C108: -1 | D108: -1 | N108: Jubilees 14:24 | O108: "And that year was the eighty-sixth year in the life of Abram."
A109: 1985 | B109: 40 | C109: 3 | D109: 4 | E109: =K109-1 -> 2 | G109: =M109-1 -> 14 | H109: =H107 -> 41 | I109: 4 | J109: 5 | K109: 3 | M109: 15 | N109: Jubilees 15:1-16 | O109: "Abram made a feast of the firstfruits of the harvest of grain… And the LORD appeared to Abram and he said to him, "I am God Shaddai… And your name therefore will not be called Abram ,but your name will henceforth and forever be Abraham because I have established you (as) the father of many nations... "Sarai, your wife, will therefore not be called Sarai because Sarah is her name. And I will bless her and I will give you a son from her..."
A110: =A90+99 -> 1974 | B110: -1 | C110: -1 | D110: -1 | E110: =K111-1 -> 3 | F110: =L111-1 -> 0 | G110: =M111-1 -> 0 | N110: Jubilees 15:17-22 | O110: "And Abraham fell on his face and he rejoiced and pondered in his heart whether a son would be born to one who was one hundred years old or (whether )Sarah, who was ninety years, would give birth…"Sarah will bear for you in another year during these days."
A111: 1985 | B111: 40 | C111: 3 | D111: 4 | E111: =#REF!-1 ->  | F111: =#REF!-1 ->  | G111: =#REF!-1 ->  | H111: =H109 -> 41 | I111: =I109 -> 4 | J111: =J109 -> 5 | K111: 4 | L111: 1 | M111: 1 | N111: Jubilees 16:1-6 | O111: "And on the new moon of the fourth month, we appeared to Abraham at the oakof Mamre and we talked with him and we also caused him to know that a son would be given to him byu Sarah, his wife… And we told her the name of her son Isaac-just as his name was ordained and written in the heavenly tablets-and (that) when we returned to her at a specific time she would have conceived a son. And in that month the LORD executed the judgment of Sodum and Gomorrah nad Zeboim and all of the district of the Jordan. And he burned them with fire and sulphur and he annihilated them till this day just as (he said),.."
A112: -57 | B112: -1 | C112: -1 | D112: -1 | E112: =K112-1 -> 5 | G112: =M112-1 -> 14 | K112: 6 | M112: 15 | N112: Jubilees 16:13 | O112: "And in the middle of the sixth month the LORD visited Sarah and did for her as he had said. And she conceived and she bore a son in the third month, in the middle of themonth, in the time when the LORD told Abraham. Isaqac was born on the feast of the firstfruits of the harvest.
K113: 7 | N113: Jubilees 16:15 | O113: "And in the sixth year of thefourth week we went forth to Abraham at the Well of the Oath. And we appeared to him [just as we said to Sarah that we would return to her. And she had conceived a son. And we returned in the seventh month and we found Sarah pregnant before us.] And we blessed him and we announced to him everything which was commanded for him that he would not die until he begot six more sons and he would see (them)( before he died..."
A114: 1986 | B114: 40 | C114: 3 | D114: 5 | E114: =K114-1 -> 2 | G114: =M114-1 -> 14 | H114: =H111 -> 41 | I114: =I111 -> 4 | J114: 6 | K114: 3 | M114: 15 | N114: Jubilees 16:13 | O114: "she bore Isaac"
A115: 1988 | B115: 40 | C115: 4 | D115: 0 | E115: =K115-1 -> 2 | H115: =H114 -> 41 | I115: 5 | J115: 1 | K115: 3 | N115: Jubilees 17:1 | O115: "Isaac was weaned. And Abraham celebrated a great feast in the third month on the day that his son, Isaac, was weaned."
A116: 2002 | B116: 40 | C116: 6 | D116: 0 | E116: =K116-1 -> 0 | G116: =M116-1 -> 11 | H116: =H115 -> 41 | I116: 7 | J116: 1 | K116: 1 | M116: 12 | N116: Jubilees 17:15 | O116: "And it came to pass… that words came in heaven concerning Abraham that he was faithful in everything which was told him and he loved tha LORD and was faithful in all affliction. And Prince Mastema came and he said before god…."
A117: 2002 | B117: 40 | C117: 6 | D117: 0 | E117: =K117-1 -> 0 | G117: =M117-1 -> 13 | H117: =H116 -> 41 | I117: =I116 -> 7 | J117: =J116 -> 1 | K117: =K116 -> 1 | M117: =M116+2 -> 14 | N117: Jubilees 18:3 | O117: "on the third day…" And he observed this festival every year (for) seven days with rejoicing. And he named it "the feast of the LORD" according tho the seven days during which he went and returned in peace. And thus it is ordained and written in the heavenly tablets concerning Israel and his seed to observe this festival seven days with festal joy."
A118: 2009 | B118: 41 | C118: 0 | D118: 0 | H118: 42 | I118: 1 | J118: 1 | N118: Jubilees 19:1 | O118: "In the first year of the first week in this forty-second jubilee Abraham returned and dwelt tow weeks of years opposite Hebron, i.e. Kiryath Arba. And in the first year of the third week of this jubilee, the days of Sarah's life were completeded and she died in Hebron. And Abraham went to weep for her and bury her.... This (is) the tenth trial with which Abraham was tried..."
A119: 2012 | B119: 41 | C119: 0 | D119: 3 | H119: =H118 -> 42 | I119: =I118 -> 1 | J119: 4 | N119: Jubilees 19:10 | O119: "And in the fourth year thereof he took a wife for his son, ISAAC, AND HER NAME WAS Rebecca, daughter of Bethuel, the son of Nahor, Abraham's brother, the sister of Laban and daughter of Bethuel. And Bethuel was the son of Melca, who was the wife of Nahor, Abraham's brother. And Abraham took a third wife and her name was Keturah from the daughters of his household servants because Hagar died before Sarah."
A120: 2045 | B120: 41 | C120: 5 | D120: 1 | H120: =H119 -> 42 | I120: 6 | J120: 2 | N120: Jubilees 19:13 | O120: "And… Rebecca bore two children for Isaac, Jacob and Esau…"
A121: 2051 | B121: 41 | C121: 6 | D121: 0 | H121: 42 | I121: 7 | J121: 1 | N121: Jubilees 20:1 | O121: "And… Abraham called Ishmael and his twelve children and Isaac and his two children and Keturah's six children and their sons. And he commanded them…
A122: 2056 | B122: 41 | C122: 6 | D122: 5 | H122: =H121 -> 42 | I122: 7 | J122: 6 | N122: Jubilees 21:1 | O122: "And Abraham called Isaac, his son, and commanded him, saying, "I am old nad do not know the day of my death… I am one hundred and seventy-five years old…
A123: 2108 | B123: 43 | C123: 0 | D123: 1 | H123: 44 | I123: 1 | J123: 2 | N123: Jubilees 22:1 | O123: "that year in which Abraham died… Isaac and Ishmael came from the Well of the Oath to Abraham, their father, to observe the feast of Shebuot, which is the feast of the firstfruits of the harvest…"
A124: -57 | B124: -1 | C124: -1 | D124: -1 | E124: =K124-1 -> -1 | F124: -1 | G124: -1
A125: -57 | B125: -1 | C125: -1 | D125: -1 | E125: -1 | F125: -1 | G125: -1
A126: -57 | B126: -1 | C126: -1 | D126: -1 | E126: -1 | F126: -1 | G126: -1
A127: -57 | B127: -1 | C127: -1 | D127: -1 | E127: -1 | F127: -1 | G127: -1
A128: -57 | B128: -1 | C128: -1 | D128: -1 | E128: -1 | F128: -1 | G128: -1
A129: -57 | B129: -1 | C129: -1 | D129: -1 | E129: -1 | F129: -1 | G129: -1
A130: 2371 | B130: 48 | C130: 2 | D130: 5 | H130: 49 | I130: 3 | J130: 6 | N130: Jubilees 48:1 | O130: "[Moses] went and dwelt in the land of Midian five weeks and one year and your returned to Egypt on the second week in the second year in the fiftieth jubilee.."
A131: 2409 | B131: 49 | C131: 1 | D131: 1 | H131: 50 | I131: 2 | J131: 2 | N131: Jubilees 48:1 | O131: "[Moses] returned to Egypt on the second week in the second year in the fiftieth jubilee.."
A132: 2410 | B132: 49 | C132: 1 | D132: 2 | H132: 50 | I132: 2 | J132: 3 | N132: Jubilees 50:4 | O132: At Mt. Sinai?
A133: 2450 | B133: 50 | C133: 0 | D133: 0 | H133: 51 | I133: 1 | J133: 1 | N133: Jubilees 50:4 | O133: Entry into Canaan across Jordan.

Sheet Blad2
A3: Today's Jonah Message to Christians (and to SDA's in particular)
B5: "The sign of the Prophet Jonas." Matthew 12:39
D6: What is it?
D8: 1 Year = 52 weeks (Roman Calendar)
D9: 1 Jubilee cycle = 49 weeks (Sacred Calendar)
D10: 1 prophetic Day = 1 Year (Scriptural prophecy principle)
D11: 40 Days = 40 Jubilee cycles
D12: 40 days of Jonah's prophecy = 40 Jubilee cycles in the prophecy of Jesus, Matt. 12:39
E13: "…shall no sign be given… but the sign of the prophet Jonas."
A16: Anno | B16: Years | C16: Jubilees | D16: Cumulative Jubilees | E16: Event
D17: of the Christian era
A18: 48 | D18: 0 | E18: The Jerusalem Council: AD 48, according to the latest authoritative German theological scholarship, is the most certain date for the Jerusalem Council, which opened the Gospel to the gentiles, and ended the exclusive Jewish character of the New Testament Church. [Vilis]
B19: =A20-A18 -> 490 | C19: =B19/49 -> 10
A20: 538 | D20: =D18+C19 -> 10 | E20: From AD 48 to AD 538, which year terminated the freedom of the Gospel worldwide, and the beginning of 1260 years of Papal domination, is PRECISELY 10 JUBILEES! 10 X 7 X 7 YEARS! THIS IS EXACTLY EQUAL TO 70 WEEKS OF YEARS! This is the period of the PURE CHURCH, without Judaizing elements before 48AD, and free of Papal Catholic corruption which followed after 538AD. [Vilis]
B21: =A22-A20 -> 980 | C21: =B21/49 -> 20
A22: 1518 | D22: =D20+C21 -> 30 | E22: From AD 48 to the Lutheran Reformation, beginning in 1518 is exactly 30 JUBILEES or 30 x 7 x 7 years! From AD 538 to the Lutheran Reformation, beginning in 1518 is exactly 20 JUBILEES! [Vilis]
B23: =A24-A22 -> 490 | C23: =B23/49 -> 10
A24: 2008 | D24: =D22+C23 -> 40 | E24: "From 538 to 2008 is 30 JUBILEES. From 538 to 2008 is 1260 + 210 = 210 x 7 = 70 x (6+6+6) + 10 x (7+7+7) = 70 x (7+7+7) = 30 JUBILEES. From 1798 to 2008 is 210 = 3 x 70 years, or 30 weeks of years. 1888 to 2008 is 120 years, the same time period given to
B29: But, What Is the Message?
B30: What was Jonah's message?
B31: "Jonah… cried, and said, Yet forty days, and Nineveh shall be overthrown." Jonah 3:4
B32: That's all, isn't it? So how was it successfully interpreted?
B33: "the king of Nineveh… proclaimed… Let man and beast... turn every one from his evil way, and from the violence that is in their hands."
C34: More fully: "…the king of Nineveh… proclaimed and published… saying Let neither man nor beast, herd nor flock, taste any thing: let them not feed, nor drink water: But let man and beast be covered with sackcloth, and cry mightily unto God: yes let them turn every one from his evil way, and from the violence that is in their hands. Who can tell if God will turn and repent, and turn away from his fierce anger, that we perish not?
B40: But, What Evil Way Is That?
B41: Why "…and beast?"
B45: What Is a 'Characteristic' of a Beast?
B48: Only One (1) Characteristic of a Beast?
B51: Perhaps 600, 60, and 6 Marks of any Beast?
B55: But, the Mark of the Beast Is "...of a Man"???
B59: Can Man Take On Characteristics of a Beast?
B60: What Is a Chief Characteristic of a Beast?
B61: Could it be in the little word 'OF', as in being property 'OF' Man?
B62: How does Scripture define Man's "domain"?
B63: Within God's very first words to Man perhaps?
C64: Is Genesis 1:28 a good enough reference?
B65: Can any Man be within the domain of any hierarchy of Men and still be counted as Man?
C66: Or, are men and women WITHIN the domain and/or jurisdiction of Men to be considered Beasts?
C67: Do men and women, identifying themselves by any number of any hierarchy OF men, thereby characterize themselves - voluntarily - as Beasts?
C68: Did the genocide in Ruwanda have anything to do with ID Cards?
C69: Wasn't the Ruwandan ID Cards introduced exactly 60 years prior to the genocide?
C70: Were the Ruwandan people treating themselves and each other as beasts?
C71: Were the Ruwandan people "bow[ing] down th[em]selves to [a graven image]", or not? Ex. 20:5
C72: How many generations are 60 years?
C73: How many years are in "unto the third and fourth generation..."?
B74: Is the Second Commandment between God and Each Man powerless today?
B75: How does the Second Commandment relate to the First?
B76: Is the title to Man property retained by the creator?
C77: Is the title to any Man a "name of the Lord thy God"?
C78: Is this applicable to the Third Commandment?
B79: Do any of us have time to consider these things, these Commandments?
C80: What about the Seventh day? Do we "Remember…"?
B83: What Other Marks of Beasts May Be Recognized by Considering the Commandments?
C84: Can the Commandments hurt us, OR are they there to HELP us?
C85: May Jacob's ladder be perceived as a symbol for the Commandments?
C86: What's the difference between the Commandments and the Covenant between God and each of us?
D87: Is there a difference?
C88: Is the Covenant a Blessing or a Curse?
D89: Who decides?
C90: Does the First Angel's Message have anything to teach about the Power of Choice? Rev. 14:6-7.
D91: What else may be learned from the three angels' messages?
C92: Do the trees in the Garden of Eden have anything to teach about the Power and Consequences of Choice?
D93: What other forgotten lessons may be learned by carefully considering the experiences of Adam and Eve?
B96: Do We Have Cause for Considering OUR Evil Ways?
C97: Are we better than the Ninevites?
B99: Are We Like Jonah in Forgetting Our Own Evil Ways?
B102: Is There Cause for Repentence?
B105: Is Repentence Possible in a Sinful World?
C106: …or must we wait until Jesus comes and we go to heaven?
B109: Is Salvation for Real, Or Does it Merely Apply to Another World?
C110: Is salvation "theory", or is it "for real"?
C111: Does 'salvation' have anything to do with problem resolution?
C112: Is problem resolution possible today?
C113: Is problem resolution a step by little step process?
C114: What did Jesus have to say about "the way, the truth, and life"?
C115: Does the name of Jesus have anything to do with real time problem resolution?
C116: Does problem resolution happen by itself, mystically, without our focused participation?
B119: What's the Good News, OR Is the Good News Bad News?
B122: Is There a Gospel - a Real One?
C123: …in real time, live, for real world?
B126: Do I exist NOW, or is my existence deferred… unto another… time, place, person?
C127: Who cares…
C128: …enough…
C129: …to make a choice?
C131: Or do I defer my choices unto another Man, another Time, another Place?
B134: Do I Have the Characteristic of a Beast?
C135: Any characteristic?
B138: If So, Who Do I Recognize as My Owner?
C139: Any government created by man?
C140: Any government OF Man?
B143: ...OR, What's My Choice?
C144: Responsibility, personal accountability…
C145: …any One?
C146: Perhaps my only choice is to be thrown into the sea and be swallowed up by a Beast?
C147: …by a government/nation that will "safely" carry me to a "safe haven"…
C148: …or was it "heaven"?
B151: Am I Confused?
C152: Is there a sure foundation to be found?
C153: One where I may re-orient myself to person, time, and place?
B156: Will anything happen in 2008?
C157: BUT, will it be perceived as anything out of the ordinary…?
C158: Another Great Disappointment?
C159: Another 1844?
C160: …or is ill health, suffering, and death the unavoidable norm?
B163: When? In 2008, or NOW?
B165: Where? Far away, or HERE?
B167: Who? Some one else, or ME?
C168: Should I identify with, and learn from, Jonah, the Ninevites, OR both?
B171: Will 2008 make ETERNAL LIFE available for the choosing?
C172: Or will it be forced upon us when someone else so chooses?
C173: Perhaps Jesus? Perhaps God?
C174: Has God declared the end from the beginning, OR not?
C175: Is free choice free, or is choice forced upon us "by default"?
B178: Will 2008 make Freedom and Safety, from Government Suppression, easily available for the choosing?
C179: What's the default choice?
B183: Jonah = Hebrew 'jod-vav-nun-he' = 10+6+50 + 5 = 66 + 5 = 60 + 6 + 5 = Two marks of a Beast + a window towards heaven
C184: Were Jonah's frustrations related to the 10th Commandment?
C185: Did Jonah turn to his creator for problem resolution?
C186: Were things hopeless for Jonah because the root of Jonah's name is 66?
C187: Are things hopeless for ever once one has the Mark or Number of the Beast?
C188: Don't Mankind, each Man, have from the beginning the Number of the Beast?
D189: Wasn't Man created on the Sixth Day?
B192: How does the Seventh Day add a seal of God upon Man?
D193: What is 6+7 if not 13?
D194: What is 13+13 if not 26?
D195: Which One must be inside the Twelve for any Man to be a Son or Daughter of God?
D196: What's the meaning of 26?
E197: Aleph (1) = jod + vav + jod = 10 + 6 + 10 = 26
E198: YHWH = jod + he + vav + he = 10 + 5 + 6 + 5 = 26
D199: What's the meaning of 'aleph'?
E200: Family
E201: Teach
E202: Learn
E203: Thought
D204: How can the One, the Aleph, the Power of Yahweh, make an image of Themselves?
E205: How about 13+13=39, i.e. male + female = family of three…
B208: Is the family Covenant essential for the existance of one of Man?
C209: Is it possible to ever do without?
C210: Is there such a thing as existance without agreement, without a covenant between parents?
C211: Do we have the patience to figure out where we volunteered to the Covenant?
C212: …any Covenant that binds us, whether for good or for bad?
B215: Is there room for problem resolution re Family relationships today?
C216: Is this part of Jonah's prophetic WARNING MESSAGE?
C217: How many of the commandments are essential for successful Family life?

Sheet Blad1
A2: The Sacred Calendar from the Beginning of Time as perceived by Gunnar Smårs Jr
C3: e' = Exact to the day; '+' = A full year + up to 12 months, BUT click on each cell for a full explanation!
I4: After Creation | N4: BC / AD | R4: Supporting Scriptures
A6: Adam | B6: 130 | C6: exact and by definition of birth as the beginning of the Covenant between parents in terms of Freedom of Choice (cf. Note at Color coding for 1st Millenium after the Creation) | D6: 800 | E6: + | F6: =B6+D6 -> 930 | G6: + | I6: =0 -> 0 | K6: =F6 -> 930 | N6: =ABS(I6-(I115+4)) -> 3819 | P6: =ABS(K6-(I115+4)) -> 2889 | R6: Gen. 5:3-5
A7: Seth | B7: 105 | C7: exact and by definition of birth as the beginning of the Covenant between parents in terms of Freedom of Choice (cf. Note at Color coding for 1st Millenium after the Creation) | D7: 807 | E7: + | F7: =B7+D7 -> 912 | G7: + | I7: =I6+B6 -> 130 | K7: =I7+F7 -> 1042 | N7: =ABS(I7-(I115+4)) -> 3689 | P7: =ABS(K7-(I115+4)) -> 2777 | R7: Gen. 5:6-8
A8: Enos | B8: 90 | C8: exact and by definition of birth as the beginning of the Covenant between parents in terms of Freedom of Choice (cf. Note at Color coding for 1st Millenium after the Creation) | D8: 815 | E8: + | F8: 905 | G8: + | I8: 235 | K8: 1140 | N8: =ABS(I8-(I115+4)) -> 3584 | P8: =ABS(K8-(I115+4)) -> 2679 | R8: Gen. 5:9-11
A9: Cainan | B9: 70 | C9: exact and by definition of birth as the beginning of the Covenant between parents in terms of Freedom of Choice (cf. Note at Color coding for 1st Millenium after the Creation) | D9: 840 | E9: + | F9: 910 | G9: + | I9: 325 | K9: 1235 | N9: =ABS(I9-(I115+4)) -> 3494 | P9: =ABS(K9-(I115+4)) -> 2584 | R9: Gen. 5:12-14
A10: Mahalaleel | B10: 65 | C10: exact and by definition of birth as the beginning of the Covenant between parents in terms of Freedom of Choice (cf. Note at Color coding for 1st Millenium after the Creation) | D10: 830 | E10: + | F10: 895 | G10: + | I10: 395 | K10: 1290 | N10: =ABS(I10-(I115+4)) -> 3424 | P10: =ABS(K10-(I115+4)) -> 2529 | R10: Gen. 5:15-17
A11: Jared | B11: 162 | C11: exact and by definition of birth as the beginning of the Covenant between parents in terms of Freedom of Choice (cf. Note at Color coding for 1st Millenium after the Creation) | D11: 800 | E11: + | F11: 962 | G11: + | I11: 460 | K11: 1422 | N11: =ABS(I11-(I115+4)) -> 3359 | P11: =ABS(K11-(I115+4)) -> 2397 | R11: Gen. 5:18-20
A12: ENOCH | B12: 65 | C12: exact and by definition of birth as the beginning of the Covenant between parents in terms of Freedom of Choice (cf. Note at Color coding for 1st Millenium after the Creation) | D12: 300 | E12: + | F12: 365 | G12: + | I12: 622 | K12: 987 | N12: =ABS(I12-(I115+4)) -> 3197 | P12: =ABS(K12-(I115+4)) -> 2832 | R12: Gen. 5:21-23
A13: Methusaleh | B13: 187 | C13: exact and by definition of birth as the beginning of the Covenant between parents in terms of Freedom of Choice (cf. Note at Color coding for 1st Millenium after the Creation) | D13: 782 | E13: + | F13: 969 | G13: + | I13: 687 | K13: 1656 | N13: =ABS(I13-(I115+4)) -> 3132 | P13: =ABS(K13-(I115+4)) -> 2163 | R13: Gen. 5:25-27
A14: Lamech | B14: 182 | C14: exact and by definition of birth as the beginning of the Covenant between parents in terms of Freedom of Choice (cf. Note at Color coding for 1st Millenium after the Creation) | D14: 595 | E14: + | F14: 777 | G14: + | I14: 874 | K14: 1651 | N14: =ABS(I14-(I115+4)) -> 2945 | P14: =ABS(K14-(I115+4)) -> 2168 | R14: Gen. 5:28-31
A15: NOAH | B15: 500 | C15: exact and by definition of birth as beginning of Covenant between parents in terms of Freedom of Choice | D15: 448 | E15: + | F15: 948 | G15: + | I15: 1056 | K15: 2004 | N15: =ABS(I15-(I115+4)) -> 2763 | P15: =ABS(K15-(I115+4)) -> 1815 | R15: Gen. 7:6; 9:28-29
A16: Shem | B16: 100 | C16: exact and by definition of birth as beginning of Covenant between parents in terms of Freedom of Choice | D16: 500 | E16: + | F16: 600 | G16: + | I16: 1556 | K16: 2156 | N16: =ABS(I16-(I115+4)) -> 2263 | P16: =ABS(K16-(I115+4)) -> 1663 | R16: Gen. 7:6; 11:10
A17: FLOOD | I17: =I15+599 -> 1655 | K17: =I17+1 -> 1656 | N17: =ABS(I17-(I115+4)) -> 2164 | P17: =ABS(K17-(I115+4)) -> 2163 | R17: Gen. 11:11
A18: Arphaxad | B18: 35 | C18: exact and by definition of birth as the beginning of the Covenant between parents in terms of Freedom of Choice (cf. Note at Color coding for 2nd Millenium after the Creation) | D18: 403 | E18: + | F18: 438 | G18: + | I18: =I16+B16 -> 1656 | K18: =I18+F18 -> 2094 | N18: =ABS(I18-(I115+4)) -> 2163 | P18: =ABS(K18-(I115+4)) -> 1725 | R18: Gen. 11:12-13
A19: Salah | B19: 30 | C19: exact and by definition of birth as the beginning of the Covenant between parents in terms of Freedom of Choice (cf. Note at Color coding for 2nd Millenium after the Creation) | D19: 403 | E19: + | F19: 433 | G19: + | I19: =I18+B18 -> 1691 | K19: 2124 | N19: =ABS(I19-(I115+4)) -> 2128 | P19: =ABS(K19-(I115+4)) -> 1695 | R19: Gen. 11:14-15
A20: Eber | B20: 34 | C20: exact and by definition of birth as the beginning of the Covenant between parents in terms of Freedom of Choice (cf. Note at Color coding for 2nd Millenium after the Creation) | D20: 430 | E20: + | F20: 464 | G20: + | I20: 1721 | K20: 2185 | N20: =ABS(I20-(I115+4)) -> 2098 | P20: =ABS(K20-(I115+4)) -> 1634 | R20: Gen. 11:16-17
A21: Peleg | B21: 30 | C21: exact and by definition of birth as the beginning of the Covenant between parents in terms of Freedom of Choice (cf. Note at Color coding for 2nd Millenium after the Creation) | D21: 209 | E21: + | F21: 239 | G21: + | I21: 1755 | K21: 1994 | N21: =ABS(I21-(I115+4)) -> 2064 | P21: =ABS(K21-(I115+4)) -> 1825 | R21: Gen. 11:18-19
A22: Reu | B22: 32 | C22: exact and by definition of birth as the beginning of the Covenant between parents in terms of Freedom of Choice (cf. Note at Color coding for 2nd Millenium after the Creation) | D22: 207 | E22: + | F22: 239 | G22: + | I22: 1785 | K22: 2024 | N22: =ABS(I22-(I115+4)) -> 2034 | P22: =ABS(K22-(I115+4)) -> 1795 | R22: Gen. 11:20-21
A23: Serug | B23: 30 | C23: exact and by definition of birth as the beginning of the Covenant between parents in terms of Freedom of Choice (cf. Note at Color coding for 2nd Millenium after the Creation) | D23: 200 | E23: + | F23: 230 | G23: + | I23: 1817 | K23: 2047 | N23: =ABS(I23-(I115+4)) -> 2002 | P23: =ABS(K23-(I115+4)) -> 1772 | R23: Gen. 11:22-23
A24: Nahor | B24: 29 | C24: exact and by definition of birth as the beginning of the Covenant between parents in terms of Freedom of Choice (cf. Note at Color coding for 2nd Millenium after the Creation) | D24: 119 | E24: + | F24: 148 | G24: + | I24: 1847 | K24: 1995 | N24: =ABS(I24-(I115+4)) -> 1972 | P24: =ABS(K24-(I115+4)) -> 1824 | R24: Gen. 11:24-25
A25: TERAH | B25: 70 | C25: exact and by definition of birth as the beginning of the Covenant between parents in terms of Freedom of Choice (cf. Note at Color coding for 2nd Millenium after the Creation) | D25: =F25-B25 -> 135 | E25: + | F25: 205 | G25: + | I25: 1876 | K25: 2081 | N25: =ABS(I25-(I115+4)) -> 1943 | P25: =ABS(K25-(I115+4)) -> 1738 | R25: Gen. 11:32; 12:4 | S25: Gen. 11:26, 32; 12:1, 4 - If Abram did not leave Haran until Terah died then Terah was 205 y/o - 75 y/o = 130 y/o when Abram was delivered, and Terah's oldest offspring would have been 60 y/o, if alive, when Abram was delivered… If Abram was the oldest then he left his Father Terah in Haran when Terah was 145 y/o.
A26: Abraham | B26: 100 | C26: exact and by definition of birth as the beginning of the Covenant between parents in terms of Freedom of Choice (cf. Note at Color coding for 2nd Millenium after the Creation) | D26: =F26-B26 -> 75 | E26: + | F26: 175 | G26: + | I26: 1946 | K26: 2121 | N26: =ABS(I26-(I115+4)) -> 1873 | P26: =ABS(K26-(I115+4)) -> 1698 | R26: Gen. 17:1-2, 16-17, 19, 21; 18:10, 14; 21:5; 25:7
A27: ISRAELITES (with Abraham as patriarch) in "EGYPT" | B27: 430 | C27: exact and by definition. Consider the words "four hundred and thirty years, even the selfsame day..." Ex. 12:41. This date, thus given, seems unlikely not to be have been given in line with the 2,000 year old tradition of dating as established within the records of life since Creation (the records referenced likely as "according to the time of life" in Gen. 18:10&14). Said records may reasonably be seen as being based upon dates defined in terms of the beginning of the Covenant of each set of parents, i.e. in terms of their Freedom of Choice in consummating a Covenant such as may be expected to bear the most important fruit of all, i.e. Sons and Daughters of the Creator as exclusively held by those parents in trust. (Cf. Note at Color coding for 3rd Millennium after the Creation). | I27: =I25+B25+75 -> 2021 | J27: exact and by definition of birth as the beginning of the Covenant between parents in terms of Freedom of Choice (cf. Note at Color coding for 3rd Millenium after the Creation) | K27: =I27+B27 -> 2451 | L27: =C27 -> exact and by definition. Consider the words "four hundred and thirty years, even the selfsame day..." Ex. 12:41. This date, thus given, seems unlikely not to be have been given in line with the 2,000 year old tradition of dating as established within the records of life since Creation (the records referenced likely as "according to the time of life" in Gen. 18:10&14). Said records may reasonably be seen as being based upon dates defined in terms of the beginning of the Covenant of each set of parents, i.e. in terms of their Freedom of Choice in consummating a Covenant such as may be expected to bear the most important fruit of all, i.e. Sons and Daughters of the Creator as exclusively held by those parents in trust. (Cf. Note at Color coding for 3rd Millennium after the Creation). | N27: =ABS(I27-(I115+4)) -> 1798 | P27: =ABS(K27-(I115+4)) -> 1368 | R27: Gen. 12:4; Ex. 12:40-41 (cf. Gen. 15:13)
A28: Isaac | B28: 60 | C28: exact and by definition of birth as the beginning of the Covenant between parents in terms of Freedom of Choice (cf. Note at Color coding for 3rd Millenium after the Creation) | D28: 120 | E28: + | F28: 180 | G28: + | I28: =I26+B26 -> 2046 | K28: =I28+F28 -> 2226 | N28: =ABS(I28-(I115+4)) -> 1773 | P28: =ABS(K28-(I115+4)) -> 1593 | R28: Gen. 25:26;35:29
A29: Jacob | B29: 92 | C29: exact and by definition of birth as the beginning of the Covenant between parents in terms of Freedom of Choice (cf. Note at Color coding for 3rd Millenium after the Creation) | D29: =F29-B29 -> 55 | E29: + | F29: 147 | G29: + | I29: =I28+B28 -> 2106 | K29: =I29+F29 -> 2253 | N29: =ABS(I29-(I115+4)) -> 1713 | P29: =ABS(K29-(I115+4)) -> 1566 | R29: Gen. 47:28;41:46
A30: ISRAELITES enter Egypt proper | I30: =K29-17 -> 2236 | K30: =K29-17 -> 2236 | N30: =ABS(I30-(I115+4)) -> 1583 | P30: =ABS(K30-(I115+4)) -> 1583 | R30: calculated
A31: Levi | F31: 137 | G31: + | R31: Ex. 6:16
A32: Joseph | F32: 110 | G32: + | I32: =I29+B29 -> 2198 | K32: =I32+F32 -> 2308 | N32: =ABS(I32-(I115+4)) -> 1621 | P32: =ABS(K32-(I115+4)) -> 1511 | R32: Gen. 50:26
A33: Jacob wrestles with God | B33: 98 | I33: 2266 | K33: 2266 | N33: =ABS(I33-(I115+4)) -> 1553 | P33: =ABS(K33-(I115+4)) -> 1553 | R33: Gen. 30:25; 31:41; 32:22-30; 33:7
A34: Joseph taken to Egypt | I34: 2277 | K34: 2277 | N34: =ABS(I34-(I115+4)) -> 1542 | P34: =ABS(K34-(I115+4)) -> 1542 | R34: Gen. 37:2-28
A35: Baker & Butler dream in prison | I35: =I36-2 -> 2288 | K35: =K36-2 -> 2288 | N35: =ABS(I35-(I115+4)) -> 1531 | P35: =ABS(K35-(I115+4)) -> 1531 | R35: Gen. 40;41:1
A36: Pharoah dreams | I36: =I34+13 -> 2290 | K36: =K34+13 -> 2290 | N36: =ABS(I36-(I115+4)) -> 1529 | P36: =ABS(K36-(I115+4)) -> 1529 | R36: Gen 41:1
A38: Kohath | F38: 133 | G38: + | R38: Ex. 6:18
A39: Amram | F39: 137 | G39: + | R39: Ex. 6:20
A40: Aaron | F40: 123 | G40: + | I40: =K40-123 -> 2368 | K40: =K44+40 -> 2491 | N40: =ABS(I40-(I115+4)) -> 1451 | P40: =ABS(K40-(I115+4)) -> 1328 | R40: Num. 33:38-39
A41: Moses | F41: 120 | G41: + | I41: =K41-120 -> 2433 | K41: =2513+40 -> 2553 | N41: =ABS(I41-(I115+4)) -> 1386 | P41: =ABS(K41-(I115+4)) -> 1266 | R41: Ex. 7:7; Deut. 29:5; 34:7
A42: Joshua | F42: 110 | G42: + | R42: Josh. 24:29
A43: Caleb | I43: =K44-40 -> 2411 | K43: =I43+85 -> 2496 | R43: Josh. 14:7
A44: ISRAELITE EXODUS | I44: =K27 -> 2451 | K44: =K27 -> 2451 | N44: =ABS(I44-(I115+4)) -> 1368 | P44: =ABS(K44-(I115+4)) -> 1368 | R44: Ex. 12:40-41 [cf. 1 Kings 6:1]
A45: ENTRY TO CANAAN | I45: =I44+40 -> 2491 | K45: =K44+40 -> 2491 | N45: =ABS(I45-(I115+4)) -> 1328 | P45: =ABS(K45-(I115+4)) -> 1328 | R45: Ex. 16:35; Num. 14:33-34; 32:13; Josh. 5:6
A47: 51st/1st Year of Jubilee | B47: 50 | C47: e | I47: =K27-1+49 -> 2499 | J47: e | K47: =K27-1+50 -> 2500 | L47: e | N47: =ABS(I47-(Sheet1!I120+4)) -> 788 | P47: =ABS(K47-(Sheet1!I120+4)) -> 787 | R47: 2 Chron. 36:19-21; Lev. 25:8-10
A50: TIME OF JUDGES
A52: Chushanrishathaim | F52: 8 | G52: + | I52: =I45+7 -> 2498 | K52: =I52+F52-1 -> 2505 | N52: =ABS(I52-(I115+4)) -> 1321 | P52: =ABS(K52-(I115+4)) -> 1314 | R52: Jud. 3:8
A53: Othniel | F53: 40 | G53: + | I53: =K52-2 -> 2503 | K53: =F53+I53-1 -> 2542 | N53: =ABS(I53-(I115+4)) -> 1316 | P53: =ABS(K53-(I115+4)) -> 1277 | R53: Jud. 3:9-11
A54: Eglon | F54: 18 | G54: + | I54: =K53 -> 2542 | K54: 2559 | N54: =ABS(I54-(I115+4)) -> 1277 | P54: =ABS(K54-(I115+4)) -> 1260 | R54: Jud. 3:12-14
A55: Ehud, Shamgar | F55: 80 | G55: + | I55: 2559 | K55: 2638 | N55: =ABS(I55-(I115+4)) -> 1260 | P55: =ABS(K55-(I115+4)) -> 1181 | R55: Jud. 3:15,30-31
A56: Jabin | F56: 20 | G56: + | I56: 2638 | K56: 2657 | N56: =ABS(I56-(I115+4)) -> 1181 | P56: =ABS(K56-(I115+4)) -> 1162 | R56: Jud. 4:2-3
A57: Deborah/Barak | F57: 40 | G57: + | I57: =K56-5 -> 2652 | K57: 2691 | N57: =ABS(I57-(I115+4)) -> 1167 | P57: =ABS(K57-(I115+4)) -> 1128 | R57: Jud. 4:3-4; 5:31
A58: Midian | F58: 7 | G58: + | I58: =K57-5 -> 2686 | K58: 2692 | N58: =ABS(I58-(I115+4)) -> 1133 | P58: =ABS(K58-(I115+4)) -> 1127 | R58: Jud. 6:1
A59: Gideon | F59: 40 | G59: + | I59: 2692 | K59: 2731 | N59: =ABS(I59-(I115+4)) -> 1127 | P59: =ABS(K59-(I115+4)) -> 1088 | R59: Jud. 6:12-14; 8:28
A60: Abimilech | F60: 3 | G60: + | I60: 2731 | K60: 2733 | N60: =ABS(I60-(I115+4)) -> 1088 | P60: =ABS(K60-(I115+4)) -> 1086 | R60: Jud. 9:22-23
A61: Tola | F61: 23 | G61: + | I61: 2733 | K61: 2755 | N61: =ABS(I61-(I115+4)) -> 1086 | P61: =ABS(K61-(I115+4)) -> 1064 | R61: Jud. 10:1-2
A62: Jair | F62: 22 | G62: + | I62: =K61-12 -> 2743 | K62: 2764 | N62: =ABS(I62-(I115+4)) -> 1076 | P62: =ABS(K62-(I115+4)) -> 1055 | R62: Jud. 10:3-5
A63: Philistines/Ammonites | F63: 18 | G63: + | I63: 2764 | K63: 2781 | N63: =ABS(I63-(I115+4)) -> 1055 | P63: =ABS(K63-(I115+4)) -> 1038 | R63: Jud. 10:7-8
A64: Jephthah | F64: 6 | G64: + | I64: 2781 | K64: 2786 | N64: =ABS(I64-(I115+4)) -> 1038 | P64: =ABS(K64-(I115+4)) -> 1033 | R64: Jud. 12:7-8
A65: Ibzan | F65: 7 | G65: + | I65: =K64-2 -> 2784 | K65: 2790 | N65: =ABS(I65-(I115+4)) -> 1035 | P65: =ABS(K65-(I115+4)) -> 1029 | R65: Jud. 12:8-10
A66: Elon | F66: 10 | G66: + | I66: =K65-2 -> 2788 | K66: 2797 | N66: =ABS(I66-(I115+4)) -> 1031 | P66: =ABS(K66-(I115+4)) -> 1022 | R66: Jud. 12:11-12
A67: Abdon | F67: 8 | G67: + | I67: =K66-2 -> 2795 | K67: 2802 | N67: =ABS(I67-(I115+4)) -> 1024 | P67: =ABS(K67-(I115+4)) -> 1017 | R67: Jud. 12:13-15
A68: Philistines | F68: 40 | G68: + | I68: 2802 | K68: 2841 | N68: =ABS(I68-(I115+4)) -> 1017 | P68: =ABS(K68-(I115+4)) -> 978 | R68: Jud. 13:1
A69: Samson | F69: 20 | G69: + | I69: =K68-27 -> 2814 | K69: =I69+20 -> 2834 | N69: =ABS(I69-(I115+4)) -> 1005 | P69: =ABS(K69-(I115+4)) -> 985 | R69: Jud. 15:16-20; 16:30-31
A70: Eli | F70: 40 | G70: + | I70: =K69 -> 2834 | K70: =I70+F70 -> 2874 | N70: =ABS(I70-(I115+4)) -> 985 | P70: =ABS(K70-(I115+4)) -> 945 | R70: 1 Sam. 4:10,11,15,18; 6:1,2,4,11,12,14,16,17,23; 7:2; Joshua 15:9,60 (KJV)
A71: Samuel | C71: Starting on & before | I71: =K70 -> 2874 | K71: =Sheet7!A47 -> 2886 | N71: =ABS(I71-(I115+4)) -> 945 | P71: =ABS(K71-(I115+4)) -> 933 | R71: Acts 13:17&19-20 (Time of Exodus + 450 years = 2901. Samuel anointed David. How does this agree with the beginning of King David?)
A72: Joel & Abijah, sons of Samuel | C72: Starting prior to ca | I72: =I77 -> 2877 | N72: =ABS(I72-(I115+4)) -> 942 | R72: Joel (Vashni), and Abijah are recorded among the Levites in the Temple service of David and Solomon, and Heman, a son of Joel, was a singer under king David and king Solomon (This represents all references unto those sons of Samuel in Strong's concordance): "The sons of Levi... The sons of Kohath... And the sons of Samuel; the firstborn Vashni, and Abiah…And these are they whom David set over the service of song in the house of the Lord, after that the ark had rest. And they ministered before the dwelling place of the tabernacle of the congregation with singing, until Solomon had built the house of the Lord in Jerusalem. And then they waited on their office according to their order. And these are they that waited with their children. Of the sons of the Kohathites: Heman a singer, the son of Joel, the son of Shemuel, The son of Elkanah, the son of Jeroham, the son of Eliel, the son of Toah, The son of Zuph..." 1 Chron. 5:16,22,25-26; 6:28,32-35
A74: REIGNS OF KINGS | F74: Years reigned
B75: Age at coronation | O75: Yrs between births
B76: Chron. | D76: Kings | M76: Year of Birth | Q76: Name
A77: Saul | B77: 40 | D77: 40 | E77: + | F77: =K77-I77 -> 11 | I77: =Sheet7!A38 -> 2877 | K77: =Sheet7!A49 -> 2888 | M77: =I77-D77 -> 2837 | N77: =ABS(I77-(I115+4)) -> 942 | P77: =ABS(K77-(I115+4)) -> 931 | Q77: =300+1+6+30 -> 337 | R77: Acts 13:21 - See note for Saul on Sheet 7!
A78: David | B78: 30 | D78: 30 | F78: 40 | G78: + | I78: =Sheet7!A51 -> 2888 | K78: =Sheet7!A93 -> 2928 | M78: =I78-D78 -> 2858 | N78: =ABS(I78-(I115+4)) -> 931 | O78: =M78-M77 -> 21 | P78: =ABS(K78-(I115+4)) -> 891 | Q78: =4+6+4 -> 14
A79: Solomon | D79: 30 | F79: 40 | G79: + | I79: =Sheet7!A95 -> 2928 | K79: =Sheet7!A137 -> 2968 | M79: =I79-D79 -> 2898 | N79: =ABS(I79-(I115+4)) -> 891 | O79: =M79-M78 -> 40 | P79: =ABS(K79-(I115+4)) -> 851 | Q79: =300+30+40+5+10+4+10+4+10+5 -> 418 | R79: 1 Kings 6:1; 1 Kings 11:42 | S79: =I79+375+43 -> 3346 | T79: =Q79-Q98 -> 86
A80: The Passover B4 the Temple | B80: 479 | C80: exact and by definition. Passover is in the first month of the year. Zif, or Iyyar, is the second month. Thus, the building of the temple began in the second day of the month immediately following Passover in the 480th year after the Exodus, i.e. 479 years plus one full month plus 1 24-hour day plus 1 night. As to the exact dating for the Passover, please see corresponding note at the Exodus above! | I80: =K27+479 -> 2930 | J80: =C80 -> exact and by definition. Passover is in the first month of the year. Zif, or Iyyar, is the second month. Thus, the building of the temple began in the second day of the month immediately following Passover in the 480th year after the Exodus, i.e. 479 years plus one full month plus 1 24-hour day plus 1 night. As to the exact dating for the Passover, please see corresponding note at the Exodus above! | N80: =ABS(I80-(I115+4)) -> 889 | R80: 1 Kings 6:1&37-38; 2 Chron. 3:2; (Cf. Acts 13:17&19-20)
A81: The Temple of Solomon | B81: 479 | C81: exact and by definition. Passover is in the first month of the year. Zif, or Iyyar, is the second month. Thus, the building of the temple began in the second day of the month immediately following Passover in the 480th year after the Exodus, i.e. 479 years plus one full month plus 1 24-hour day plus 1 night. As to the exact dating for the Passover, please see corresponding note at the Exodus above! | I81: =K27+479 -> 2930 | J81: =C81 -> exact and by definition. Passover is in the first month of the year. Zif, or Iyyar, is the second month. Thus, the building of the temple began in the second day of the month immediately following Passover in the 480th year after the Exodus, i.e. 479 years plus one full month plus 1 24-hour day plus 1 night. As to the exact dating for the Passover, please see corresponding note at the Exodus above! | K81: =I81+(11-4) -> 2937 | L81: + | N81: =ABS(I81-(I115+4)) -> 889 | P81: =ABS(K81-(I115+4)) -> 882 | R81: 1 Kings 6:1&37-38; 2 Chron. 3:2; (Cf. Acts 13:17&19-20)
A82: Solomon's Palace | B82: 13 | C82: + | I82: =K81 -> 2937 | J82: =C82 -> + | K82: =I82+B82 -> 2950 | L82: =C82 -> + | N82: =ABS(I82-(I115+4)) -> 882 | P82: =ABS(K82-(I115+4)) -> 869 | R82: 1 Kings 7:1
A83: Rehoboam | B83: 41 | D83: 41 | F83: 18 | G83: + | I83: =Sheet7!A137 -> 2968 | K83: =Sheet7!A171 -> 0 | M83: =I83-D83 -> 2927 | N83: =ABS(I83-(I115+4)) -> 851 | O83: =M83-M79 -> 29 | P83: =ABS(K83-(I115+4)) -> 3819 | Q83: =200+8+2+70+40 -> 320 | R83: 1 Kings 12; 14:21
A84: Abijah (Abijam) | F84: 3 | G84: + | I84: =Sheet7!A173 -> 2985 | K84: =Sheet7!A181 -> 2988 | N84: =ABS(I84-(I115+4)) -> 834 | P84: =ABS(K84-(I115+4)) -> 831 | Q84: =1+2+10+40 -> 53 | R84: 1 Kings 14:31; 15:1-2
A85: Asa | F85: 41 | G85: + | I85: =Sheet7!A181 -> 2988 | K85: =Sheet7!A276 -> 3028 | N85: =ABS(I85-(I115+4)) -> 831 | P85: =ABS(K85-(I115+4)) -> 791 | Q85: =1+40+1 -> 42 | R85: 1 Kings 8-10; 15:9-11
A86: Jehoshaphat | B86: 35 | D86: 35 | F86: 25 | G86: + | I86: =Sheet7!A280 -> 3029 | K86: =Sheet7!A334 -> 3053 | M86: =I86-D86 -> 2994 | N86: =ABS(I86-(I115+4)) -> 790 | O86: =M86-M83 -> 67 | P86: =ABS(K86-(I115+4)) -> 766 | Q86: =10+5+6+300+80+9 -> 410 | R86: 1 Kings 22:41-43
A87: Jehoram | B87: 32 | D87: 32 | F87: 8 | G87: + | I87: =Sheet7!A314 -> 0 | K87: =Sheet7!#REF! ->  | M87: -32 | N87: =ABS(I87-(I115+4)) -> 3819 | O87: =M87-M86 -> -3026 | P87: =ABS(K87-(I115+4)) ->  | Q87: =10+5+6+200+40 -> 261 | R87: 2 Kings 8:16-18
A88: Ahaziah (Jehoahaz) | B88: 42 | D88: 22 | F88: 1 | G88: + | I88: =Sheet7!A348 -> 3059 | K88: =Sheet7!#REF! ->  | M88: 3037 | N88: =ABS(I88-(I115+4)) -> 760 | O88: =M88-M87 -> 3069 | P88: =ABS(K88-(I115+4)) ->  | Q88: =1+8+7+10+5+6 -> 37 | R88: 2 Kings 8:24-27
A89: Athaliah | F89: 6 | G89: + | I89: =Sheet7!#REF! ->  | K89: =Sheet7!A369 -> 0 | N89: =ABS(I89-(I115+4)) ->  | P89: =ABS(K89-(I115+4)) -> 3819 | Q89: =70+400+30+10+5+6 -> 521 | R89: 2 Kings 11:1-4
A90: Jehoash (Joash) | B90: 7 | D90: 7 | F90: 40 | G90: + | I90: =Sheet7!A371 -> 3067 | K90: =Sheet7!A455 -> 3106 | M90: 3060 | N90: =ABS(I90-(I115+4)) -> 752 | O90: =M90-M88 -> 23 | P90: =ABS(K90-(I115+4)) -> 713 | Q90: =10+5+6+1+300 -> 322 | R90: 2 Kings 11:21; 12:1-2
A91: Amaziah | B91: 25 | D91: 25 | F91: 29 | G91: + | I91: =Sheet7!A453 -> 3105 | K91: =Sheet7!A511 -> 3133 | M91: 3080 | N91: =ABS(I91-(I115+4)) -> 714 | O91: 20 | P91: =ABS(K91-(I115+4)) -> 686 | Q91: =1+40+90+10+5+6 -> 152 | R91: 2 Kings 14:1-3
A92: Azariah (Uzziah) | B92: 16 | D92: 16 | F92: 52 | G92: + | I92: =Sheet7!A491 -> 3123 | K92: =Sheet7!A608 -> 3175 | M92: 3107 | N92: =ABS(I92-(I115+4)) -> 696 | O92: 27 | P92: =ABS(K92-(I115+4)) -> 644 | Q92: =70+7+200+10+5 -> 292 | R92: 2 Kings 15:1-3
A93: Jotham | B93: 25 | D93: 25 | F93: 16 | G93: + | I93: =Sheet7!A612 -> 3176 | K93: =Sheet7!A644 -> 3191 | M93: 3151 | N93: =ABS(I93-(I115+4)) -> 643 | O93: 44 | P93: =ABS(K93-(I115+4)) -> 628 | Q93: =10+6+400+40 -> 456 | R93: 2 Kings 15:32-34
A94: Ahaz | B94: 20 | D94: 20 | F94: 16 | G94: + | I94: =Sheet7!A628 -> 3184 | K94: =Sheet7!A664 -> 3199 | M94: 3164 | N94: =ABS(I94-(I115+4)) -> 635 | O94: 13 | P94: =ABS(K94-(I115+4)) -> 620 | Q94: =1+8+7 -> 16 | R94: 2 Kings 16:1-3
A95: Hezekiah | B95: 25 | D95: 25 | F95: 29 | G95: + | I95: =Sheet7!A662 -> 3198 | K95: =Sheet7!A725 -> 3227 | M95: 3173 | N95: =ABS(I95-(I115+4)) -> 621 | O95: 9 | P95: =ABS(K95-(I115+4)) -> 592 | Q95: =8+7+100+10+5 -> 130 | R95: 2 Kings 18:1-3
A96: Manasseh | B96: 12 | D96: 12 | F96: 55 | G96: + | I96: =Sheet7!A725 -> 3227 | K96: =Sheet7!A839 -> 3283 | M96: 3215 | N96: =ABS(I96-(I115+4)) -> 592 | O96: 42 | P96: =ABS(K96-(I115+4)) -> 536 | Q96: =40+50+300+5 -> 395 | R96: 2 Kings 21:1-2
A97: Amon | B97: 22 | D97: 22 | F97: 2 | G97: + | I97: =Sheet7!A837 -> 3282 | K97: =Sheet7!A843 -> 3284 | M97: 3260 | N97: =ABS(I97-(I115+4)) -> 537 | O97: 45 | P97: =ABS(K97-(I115+4)) -> 535 | Q97: =1+40+6+50 -> 97 | R97: 2 Kings 21:19-20
A98: Josiah | B98: 8 | D98: 8 | F98: 31 | G98: + | I98: =Sheet7!A845 -> 3285 | K98: =Sheet7!A907 -> 0 | M98: 3277 | N98: =ABS(I98-(I115+4)) -> 534 | O98: 17 | P98: =ABS(K98-(I115+4)) -> 3819 | Q98: =10+1+300+10+5+6 -> 332 | R98: 2 Kings 22:1-2
A99: Jehoahaz | B99: 23 | D99: 23 | F99: 0 | G99: + | I99: =Sheet7!A909 -> 0 | K99: =Sheet7!A909 -> 0 | M99: -23 | N99: =ABS(I99-(I115+4)) -> 3819 | O99: -3300 | P99: =ABS(K99-(I115+4)) -> 3819 | Q99: =10+5+6+1+8+7 -> 37 | R99: 2 Kings 23:31-32
A100: Eliakim (Jehoiakim) | B100: 25 | D100: 25 | F100: 11 | G100: + | I100: =Sheet7!A911 -> 3315 | K100: =Sheet7!A931 -> 3325 | M100: 3290 | N100: =ABS(I100-(I115+4)) -> 504 | O100: 3313 | P100: =ABS(K100-(I115+4)) -> 494 | Q100: =10+5+6+10+100+10+40 -> 181 | R100: 2 Kings 23:36-37; Dan. 1:1
A101: Jehoiachin | B101: 8 | D101: 18 | F101: 0 | G101: + | I101: =Sheet7!A934 -> 3325 | K101: =Sheet7!A934 -> 3325 | M101: 3307 | N101: =ABS(I101-(I115+4)) -> 494 | O101: 17 | P101: =ABS(K101-(I115+4)) -> 494 | Q101: =10+5+6+10+20+10+50 -> 111 | R101: 2 Kings 24:8-9
A102: Mattaniah (Zedekiah) | B102: 21 | D102: 21 | F102: 11 | G102: + | I102: =Sheet7!A938 -> 3326 | K102: =Sheet7!A956 -> 3335 | M102: 3305 | N102: =ABS(I102-(I115+4)) -> 493 | O102: =M102-M101 -> -2 | P102: =ABS(K102-(I115+4)) -> 484 | Q102: =90+4+100+10+5+6 -> 215 | R102: 2 Kings 24:18-19
A103: Totals | B103: =SUM(B77:B79,B83:B102) -> 457 | D103: =SUM(D77:D102) -> 477 | F103: =SUM(F77:F79,F83:F102) -> 485 | K103: =K102-I77 -> 458 | M103: =M102-M77 -> 468 | O103: =SUM(O77:O102) -> 468 | Q103: =SUM(Q77:Q102) -> 5149 | R103: Notice 457 is present in 3 places! Cf. 1. 457 BC, 2. Time span for the total reign of kings in Israel and Judah, and 3. Totals for age at coronation, given age of Saul as given in Acts.
A104: Totals: Saul's age=1 at coronation | B104: =B103-39 -> 418 | D104: =D103-39 -> 438 | M104: =M103-39 -> 429 | O104: =O103-39 -> 429 | R104: Notice 418 is present in 3 places! Cf. 1. Hidden prophecy at the anointing of David, 2. Totals for age at coronation, and 3. The word value of Solomons two names.
A105: Enslaved under various kings (Saul - Babylonia) | I105: =K108-I77 -> 485 | R105: 1 Samuel 8
A106: Israel under Jeroboam thru Hoshea | I106: =Sheet7!A677-Sheet7!A137 -> 236 | R106: 1 Samuel 8
A107: Israel under Saul thru Hoshea | I107: =Sheet7!A677-I77 -> 327
A108: CAPTIVE IN BABYLON | F108: =K108-I108 -> 69 | G108: + | I108: =Sheet7!A861 -> 3293 | K108: =Sheet7!A1014 -> 3362 | N108: =ABS(I108-(I115+4)) -> 526 | P108: =ABS(K108-(I115+4)) -> 457 | R108: 2 Kings 25:2-7; 2 Chro. 36:20-23; "In the third year of the reign of Jehoiakim, king of Judah, Nebuchadnezzar the king of Babylon came to Jerusalem and besieged it" (IB) Dan. 1:1. "in order to fulfill the word of Jehovah in the mouth of Jeremiah, until the land had enjoyed its sabbaths; all the days of the desolation it kept the sabbath, to the full measure of seventy years." (IB) 2 Chron. 36:21. Jeremiah's prophecies (Jer. 25:11-12; 29:10) are referenced in 2 Chron. 35:25 & 36:22; Ezra 1:1, & Dan. 9:1-2. (Compare also notes and reference in the corresponding time frame on Sheet7!)
A109: REBUILDING OF 2ND TEMPLE | F109: =K109-I109 -> 5 | G109: + | I109: =Sheet7!A1014 -> 3362 | K109: =Sheet7!A1028 -> 3367 | N109: =ABS(I109-(I115+4)) -> 457 | P109: =ABS(K109-(I115+4)) -> 452 | R109: Ezra 1:1-6; 3:1,6,8; (Cf. John 2:20 - Herod's temple was in the process of being built since 46 years during the year when Jesus was baptized.)
A110: YEARS TO and of Cyrus' DECREE | F110: =K110-K108 -> 0 | G110: + | K110: =Sheet7!A1014 -> 3362 | P110: =ABS(K110-(I115+4)) -> 457 | R110: Whose decree is fulfilling Jeremiah's prophecy? "Now in the first year of Cyrus king of Persia, that the word of the Lord spoken by the mouth of Jeremiah might be accomplished" 2 Chron. 36:22 (KJV). "Now in the first year of Cyrus king of Persia, that the word of the Lord by the mouth of Jeremiah might be fulfilled..." Ezra 1:1 (KJV). "In the first year of Darius the son of Ahasuerus, of the seed of the Medes, which was made king over the realm of the Chaldeans; In the first year of his reign I Daniel understood by books the number of the years, whereof the word of the Lord came to Jeremiah the prophet, that he would accomplish seventy years in the desolations of Jerusalem." Dan 9:1-2 (KJV). And these nations shall serve the king of Babylon seventy years... And it shall be, when seventy years are fulfilled, I will punish the king of Babylon..." Jer. 25:1,3,11-12 (IB). NOTICE> When was the king of Babylon punished? Was it at the end of the Babylonian empire, i.e. at the beginning of the Medo-Persian empire, OR was it many years after that event, i.e. at the time of the presumed decree of a Medo-Persian king named Artaxerxes #X? Remember, Cyrus was a Persian king, thus any Persian king after Cyrus would by necessity start his rule a number of years AFTER the end of the Babylonian Empire and its kings! Thus, I conclude that, if, as I contend, Jeremiah's prophecy is true in every part, then Cyrus must by necessity be the first Medo-Persian king after the fall of the Babylonian Empire, AND his decree must be the one referenced by Daniel's prophecy. PLEASE cf. notes at beginning of Evil-merodach's reign on Sheet 7!
A111: DANIEL'S PROPHECIES | F111: 490 | G111: + | I111: =K110 -> 3362 | K111: =I111+F111 -> 3852 | N111: =ABS(I111-(I115+4)) -> 457 | P111: =ABS(K111-(I115+3)) -> 34
F112: 2300 | G112: + | I112: =I111 -> 3362 | K112: =I112+F112 -> 5662 | N112: =ABS(I112-(I115+4)) -> 457 | P112: =ABS(K112-(I115+3)) -> 1844
F113: 1260 | G113: + | I113: =K111+504 -> 4356 | K113: =I113+F113 -> 5616 | N113: =ABS(I113-(I115+3)) -> 538 | P113: =ABS(K113-(I115+3)) -> 1798
A114: Jehoshua's baptism & crucifixion | I114: =I111+(7+62)*7 -> 3845 | K114: =I111+((7+62)*7+4) -> 3849 | N114: =ABS(I114-(I115+3)) -> 27 | P114: =ABS(K114-(I115+3)) -> 31 | R114: Luke 3:21,23 "it came to pass, that Jesus also being baptized, and praying, the heaven was opened… And Jesus himself began to be about thirty years of age…", i.e. Jesus was baptized at, or shortly following, his 30th birthday.
A115: Jehoshua's birth and death | F115: 33 | G115: + | I115: =I114-30 -> 3815 | K115: =K114 -> 3849 | N115: =ABS(I115-(I115+4)) -> 4 | P115: =ABS(K115-(I115+3)) -> 31
A116: Full years until 1 Nissan in year: [ | B116: 2003 | C116: rd Gregorian] | H116: ( | I116: =K116-1 -> 5820 | J116: ) | K116: =K112+(B116-P112) -> 5821 | M116: ( | N116: =ABS(I116-(I115+3)) -> 2002 | O116: ) | P116: =ABS(K116-(I115+3)) -> 2003
A118: Family days | B118: 21 Iyyar 5709 - May 20 | M118: =K116-(P116-P118) -> 5767 | P118: 1949
B119: 14 Adar 5710 - March 3 | M119: =K116-(P116-P119) -> 5768 | P119: 1950
B120: 15 Av 5713 - July 27 | M120: =K116-(P116-P120) -> 5771 | P120: 1953
B121: 16 Iyyar 5722 - May 20 | M121: =K116-(P116-P121) -> 5780 | P121: 1962
B122: 23 Sivan 5723 - June 15 | M122: =K116-(P116-P122) -> 5781 | P122: 1963
B123: 10 Iyyar 5744 - May 12 | M123: =K116-(P116-P123) -> 5802 | P123: 1984
B124: 25 Sivan 5744 - June 25 | M124: =K116-(P116-P123) -> 5802 | P124: 1984
B125: 15 Nissan 5746 - April 24 | M125: =K116-(P116-P125) -> 5804 | P125: 1986
B126: 9 Tishrei 5749 - September 20 | M126: =K116-(P116-P126) -> 5806 | P126: 1988
B127: 28 Cheswan 5752 - November 5 | M127: =K116-(P116-P127) -> 5809 | P127: 1991
A129: SUMMARY
A131: Adam to Abram's leaving Haran | D131: =I6 -> 0 | F131: =I27 -> 2021 | I131: =D131+F131 -> 2021 | M131: =F131 -> 2021
A132: Abraham to Exodus | D132: =I27 -> 2021 | F132: 430 | I132: =D132+F132 -> 2451 | M132: =F132 -> 430
A133: Exodus to Foundation of Solomon's Temple | D133: =I132 -> 2451 | F133: =I133-D133 -> 479 | I133: =D134 -> 2930 | M133: 479
A134: Solomon's Temple to king Eliakim's revolt | D134: =I81 -> 2930 | F134: =I134-D134 -> 392 | I134: =D135 -> 3322 | M134: 392
A135: King Eliakim's revolt to Foundation of 2nd Temple | D135: =Sheet7!A925 -> 3322 | F135: =I135-D135 -> 40 | I135: =K110 -> 3362 | M135: 40
A136: Cyrus' decree + (62+7+1 wks)*7yrs | D136: =K110 -> 3362 | F136: =7*(62+7+1) -> 490 | I136: =D136+F136 -> 3852
A137: Cyrus' decree + 2300 days/years | D137: =K110 -> 3362 | F137: 2300 | I137: =D137+F137 -> 5662 | M137: =F137 -> 2300 | P137: =ABS(K112-(I115+4))+1 -> 1844
A138: 1844 to 1 Nisan this year | D138: =K112 -> 5662 | F138: =I138-D138 -> 158 | I138: =I116 -> 5820 | M138: 158
A139: 1 Nisan this year to 6000 full years after Creation | D139: =I138 -> 5820 | F139: =I139-D139 -> 180 | I139: 6000 | M139: 180
A141: Total | M141: =SUM(M131:M139) -> 6000
A168: KEY:
A169: Green highlights are points upon which dating is based.
A170: Italicized dates during time of Judges indicate they are only approximations.
A171: Dates in bold print are C.E. [A.D.]
A174: Questions or comments? Send your email to:
A175: PowerOfChoice@gamaliel.intranets.com

Sheet Sheet1
A1: The Sacred Calendar from the Beginning of Time © Tree of Life Time version
A2: Some fundamental concepts springing out of the study leading to this Calendar: 1. The Sacred Calendar as apparently given to Israel at Sinai was given to Mankind already at Creation. Cf. Ex. 12:2 "This month [the month of the Exodus and the Passover] shall be unto you the beginning of months: it shall be the first month of the year to you" (KJV). The Sacred annual Calendar, i.e. the Calendar starting with the month Abib [Nisan], constitutes the basis for every numbered year given in the Holy Scriptures, unless otherwise indicated, whether such year is in reference to Patriarchs, Prophets, Kings, or the People at large. I propose, based upon my findings as referenced within these tables, that the Sacred Calendar is being consistently used within the Bible in such a way that a complete, perfect, exact, Sacred, and Holy Calendar from the Beginning of Creation until Present may be reconstrued from the facts provided us within the Bible text. Although my work upon this Calendar is yet to be perfected I find more and more support for the above hypothesis the further I persue the resolution of every problem encountered towards a perfect Sacred Calendar from the Beginning until the End of Time. Consider some of the many texts supporting such a stand: "And God blessed the seventh day, and sanctified it" Gen. 2:3 (KJV); "And the Lord appeared unto him [Abraham]... And he said, I will certainly return unto thee according to the time of life... At the time appointed I will return unto thee, according to the time of life..." Gen. 18:1,10,14 (KJV); "Now they began on the first day of the first month to sanctify... And Hezekiah sent to all Israel and Judah, and wrote letters... that they should come to the house of the Lord at Jerusalem, to keep the passover unto the Lord God of Israel... in the second month For they could not keep it at that time [i.e. in the first month], because the priests had not sanctified themselves sufficiently..." 2 Chron. 29:17;30:1-3 (KJV). "Upon the four and twentieth day of the eleventh month, which is the month Sebat [the name of the 11th month within the modern Hebrew calendar when Nisan as counted as the first month], in the second year of Darius, came the word of the Lord unto Zechariah" Zech. 1:7 (KJV). | U2: e, +. | V2: e' = Exact to the day; '+' = A full year + up to 12 months, BUT click on each cell for a full explanation!
I3: After Creation - Reckoned and given here is the accession year of each event; e.g. the year within which someone was born (i.e. conceived or else reckoned for the covenant beginning of the parents,) the beginning of the 430 years of dwelling in Egypt, the beginning of the building of Solomon's Temple, etc.. | N3: AT | O3: BC / AD | Q3: AT | R3: BC / AD | T3: Supporting Scriptures | U3: 12345678 | V3: 1st Millenium 0 -1,000 after Creation The Genealogies given within the Pattern Day/Millenium are more perfect (as given in Genesis 5:3-31), than it is in the second Millenium (as given in Genesis 11:11-25. Cf. also the words "My Covenant... bear... at this set time in the next year" Gen. 17:21), allowing no room for rounding. (Had the perfected(!) age given when begetting the next Son in line AND the perfected(!) remaining years of the Father BOTH included up to twelve month, in addition to the perfected(!) TOTAL years given, THEN about half of the perfected total number of years given for the age at death of the Father would have been the sum of the first two numbers + one (1) year, e.g. for Adam 130 years and 7 months + 800 years and 6 months = 931 years and 1 months, not 930 years, etc.. But such is NOT the case for even one out of nine generations. The odds for such a case are otherwise extremely slim, only 0.5 ^ 9 = 0.0000000000000000000000000000000000000000000000000000000000000000000000000000086 or once (1) out of 10^77 times, i.e once (1) out of 100,000,000,000,000,000,000,000,000,000,000,000,000,000,000,000,000,000,000,000,000,000,000,000,000,000 times. Not likely, is it?
U4: 12345678 | V4: 2nd Millenium 1,001-2,000 after Creation. The habits and traditions adhered to are extremely likely to be following the Pattern set in the 1st Day/1st Millenium. A tradition unfailingly adhered unto for 9 generations and 1,000 years plus, is a very strong tradition not likely to be quickly broken. Thus, because the foundation is solidly established, it is not necessary to give us the Genealogies for this second Millenium as exactly as given within the first. (Cf. 1st Millenium note above!). A hint to this lesser degree of perfection is given us by the ABSENCE, in the record of the 2nd Day of Creation as recorded in Genesis 1:6-8, of the words "And God saw... that it was good", as provided for each of the other first six days of Creation.
A5: Adam | B5: 130 | C5: exact and by definition of birth as the beginning of the Covenant between parents in terms of Freedom of Choice (cf. Note at Color coding for 1st Millenium after the Creation) | D5: 800 | E5: + | F5: =B5+D5 -> 930 | G5: + | I5: =0 -> 0 | K5: =F5 -> 930 | N5: =IF(I5<>"", N$130+(I5-I$130), "") -> -3921 | O5: =IF(N5<>"", IF(N5>0, N5, ABS(N5-1)), "") -> 3922 | P5: - | Q5: =IF(K5<>"", Q$130+(K5-K$130), "") -> -2991 | R5: =IF(Q5<>"", IF(Q5>0, Q5, ABS(Q5-1)), "") -> 2992 | T5: Gen. 5:3-5 | U5: 12345678 | V5: 3rd Millenium 2,001-3,000 after Creation. Considering the fact that Abraham personally renewed the Covenant establish with his predecessors, and considering the words "My Covenant... bear... at this set time in the next year" Gen. 17:21, and the fact that Abraham is recorded by Josephus as having been a renowned matematician, Abraham is most likely to have been upholding the Patterns and traditions established since the beginning, while also in line with the Principles of the Creator, and upheld through 19 generations preceeding him, and 2,000 years. (Cf. the notes above for the 1st and 2nd Millenia above!)
A6: Seth | B6: 105 | C6: exact and by definition of birth as the beginning of the Covenant between parents in terms of Freedom of Choice (cf. Note at Color coding for 1st Millenium after the Creation) | D6: 807 | E6: + | F6: =B6+D6 -> 912 | G6: + | I6: =I5+B5 -> 130 | K6: =I6+F6 -> 1042 | N6: -3791 | O6: 3792 | P6: - | Q6: -2879 | R6: 2880 | T6: Gen. 5:6-8 | U6: 12345678 | V6: 4th Millenium 3,001-4,000 after Creation
A7: Enos | B7: 90 | C7: exact and by definition of birth as the beginning of the Covenant between parents in terms of Freedom of Choice (cf. Note at Color coding for 1st Millenium after the Creation) | D7: 815 | E7: + | F7: 905 | G7: + | I7: 235 | K7: 1140 | N7: -3686 | O7: 3687 | P7: - | Q7: -2781 | R7: 2782 | T7: Gen. 5:9-11 | U7: 12345678 | V7: 5th Millenium 4,001-5,000 after Creation
A8: Cainan | B8: 70 | C8: exact and by definition of birth as the beginning of the Covenant between parents in terms of Freedom of Choice (cf. Note at Color coding for 1st Millenium after the Creation) | D8: 840 | E8: + | F8: 910 | G8: + | I8: 325 | K8: 1235 | N8: -3596 | O8: 3597 | P8: - | Q8: -2686 | R8: 2687 | T8: Gen. 5:12-14 | U8: 12345678 | V8: 6th Millenium 5,001-6,000 after Creation
A9: Mahalaleel | B9: 65 | C9: exact and by definition of birth as the beginning of the Covenant between parents in terms of Freedom of Choice (cf. Note at Color coding for 1st Millenium after the Creation) | D9: 830 | E9: + | F9: 895 | G9: + | I9: 395 | K9: 1290 | N9: -3526 | O9: 3527 | P9: - | Q9: -2631 | R9: 2632 | T9: Gen. 5:15-17
A10: Jared | B10: 162 | C10: exact and by definition of birth as the beginning of the Covenant between parents in terms of Freedom of Choice (cf. Note at Color coding for 1st Millenium after the Creation) | D10: 800 | E10: + | F10: 962 | G10: + | I10: 460 | K10: 1422 | N10: -3461 | O10: 3462 | P10: - | Q10: -2499 | R10: 2500 | T10: Gen. 5:18-20 | U10: 12345678 | V10: Changed cell value; Text reference for Abraham (P26) uses it for emphasis and has added (in comparison to Erik's) text in black.
A11: ENOCH | B11: 65 | C11: exact and by definition of birth as the beginning of the Covenant between parents in terms of Freedom of Choice (cf. Note at Color coding for 1st Millenium after the Creation) | D11: 300 | E11: + | F11: 365 | G11: + | I11: 622 | K11: 987 | N11: -3299 | O11: 3300 | P11: - | Q11: -2934 | R11: 2935 | T11: Gen. 5:21-23 | U11: 12345678 | V11: Changed cell value
A12: Methusaleh | B12: 187 | C12: exact and by definition of birth as the beginning of the Covenant between parents in terms of Freedom of Choice (cf. Note at Color coding for 1st Millenium after the Creation) | D12: 782 | E12: + | F12: 969 | G12: + | I12: 687 | K12: 1656 | N12: -3234 | O12: 3235 | P12: - | Q12: -2265 | R12: 2266 | T12: Gen. 5:25-27 | U12: 12345678 | V12: Modified cell formula
A13: Lamech | B13: 182 | C13: exact and by definition of birth as the beginning of the Covenant between parents in terms of Freedom of Choice (cf. Note at Color coding for 1st Millenium after the Creation) | D13: 595 | E13: + | F13: 777 | G13: + | I13: 874 | K13: 1651 | N13: -3047 | O13: 3048 | P13: - | Q13: -2270 | R13: 2271 | T13: Gen. 5:28-31 | U13: 12345678 | V13: Primary numbers (or fixed numbers within formulas) used for calculation of timeline - Any color number for year that's underlined
A14: NOAH | B14: 500 | C14: exact and by definition of birth as beginning of Covenant between parents in terms of Freedom of Choice | D14: =F14-B14 -> 450 | E14: + | F14: 950 | G14: + | I14: 1056 | K14: 2006 | N14: -2865 | O14: 2866 | P14: - | Q14: -1915 | R14: 1916 | T14: Gen. 5:32; 7:6; 9:28-29 | U14: Arphaxad born "two years after the flood" [ended?], OR [consistent with the Hebrew text] in the second year after the Flood started. Counting date of delivery, conception, or date Shem was married - he had his wife brought on board the ark…
A15: Shem | B15: 100 | C15: exact and by definition of birth as beginning of Covenant between parents in terms of Freedom of Choice | D15: 500 | E15: + | F15: 600 | G15: + | I15: 1556 | K15: 2156 | N15: -2365 | O15: 2366 | P15: - | Q15: -1765 | R15: 1766 | T15: Gen. 5:32; 7:6; 11:10-11 | U15: Please notice that Shem was the first born, not Ham (as some suggest), and that Shem was born in the year Noah was 500 years old, i.e. consistent with the Hebrew text.
A16: FLOOD | I16: =I14+599 -> 1655 | K16: =I16+1 -> 1656 | N16: -2266 | O16: 2267 | P16: - | Q16: -2265 | R16: 2266 | T16: Gen. 7:11; 11:11 | U16: The flood started in the 600th year of Noah, i.e. when Noah was 599 years old plus. It lasted just over one (1) year, while touching two separate calendar years. Notice also that Noah lived 350 years after the flood, and thus the flood occurred 350 years before Noah's death. One year - or year one - after the [beginning of the] flood would be the first year, whether the civil or the sacred year, starting after the beginning of the flood, or else a point in time one year to the day after the beginning of the flood. This same year would be the year when Arphaxad was born, i.e. "shanim" ["two years" (KJV)] after the flood.
A17: Arphaxad | B17: 35 | C17: exact and by definition of birth as the beginning of the Covenant between parents in terms of Freedom of Choice (cf. Note at Color coding for 2nd Millenium after the Creation) | D17: 403 | E17: + | F17: 438 | G17: + | I17: =I15+B15 -> 1656 | K17: =I17+F17 -> 2094 | N17: -2265 | O17: 2266 | P17: - | Q17: -1827 | R17: 1828 | T17: Gen. 11:10-11, 12-13 | U17: Cf. My file "שׁנתים - Two years.doc"
A18: Salah | B18: 30 | C18: exact and by definition of birth as the beginning of the Covenant between parents in terms of Freedom of Choice (cf. Note at Color coding for 2nd Millenium after the Creation) | D18: 403 | E18: + | F18: 433 | G18: + | I18: =I17+B17 -> 1691 | K18: 2124 | N18: -2230 | O18: 2231 | P18: - | Q18: -1797 | R18: 1798 | T18: Gen. 11:14-15
A19: Eber | B19: 34 | C19: exact and by definition of birth as the beginning of the Covenant between parents in terms of Freedom of Choice (cf. Note at Color coding for 2nd Millenium after the Creation) | D19: 430 | E19: + | F19: 464 | G19: + | I19: 1721 | K19: 2185 | N19: -2200 | O19: 2201 | P19: - | Q19: -1736 | R19: 1737 | T19: Gen. 11:16-17
A20: Peleg | B20: 30 | C20: exact and by definition of birth as the beginning of the Covenant between parents in terms of Freedom of Choice (cf. Note at Color coding for 2nd Millenium after the Creation) | D20: 209 | E20: + | F20: 239 | G20: + | I20: 1755 | K20: 1994 | N20: -2166 | O20: 2167 | P20: - | Q20: -1927 | R20: 1928 | T20: Gen. 11:18-19
A21: Reu | B21: 32 | C21: exact and by definition of birth as the beginning of the Covenant between parents in terms of Freedom of Choice (cf. Note at Color coding for 2nd Millenium after the Creation) | D21: 207 | E21: + | F21: 239 | G21: + | I21: 1785 | K21: 2024 | N21: -2136 | O21: 2137 | P21: - | Q21: -1897 | R21: 1898 | T21: Gen. 11:20-21
A22: Serug | B22: 30 | C22: exact and by definition of birth as the beginning of the Covenant between parents in terms of Freedom of Choice (cf. Note at Color coding for 2nd Millenium after the Creation) | D22: 200 | E22: + | F22: 230 | G22: + | I22: 1817 | K22: 2047 | N22: -2104 | O22: 2105 | P22: - | Q22: -1874 | R22: 1875 | T22: Gen. 11:22-23
A23: Nahor | B23: 29 | C23: exact and by definition of birth as the beginning of the Covenant between parents in terms of Freedom of Choice (cf. Note at Color coding for 2nd Millenium after the Creation) | D23: 119 | E23: + | F23: 148 | G23: + | I23: 1847 | K23: 1995 | N23: -2074 | O23: 2075 | P23: - | Q23: -1926 | R23: 1927 | T23: Gen. 11:24-25
A24: TERAH | B24: 70 | C24: exact and by definition of birth as the beginning of the Covenant between parents in terms of Freedom of Choice (cf. Note at Color coding for 2nd Millenium after the Creation) | D24: =F24-B24 -> 135 | E24: + | F24: 205 | G24: + | I24: 1876 | K24: 2081 | N24: -2045 | O24: 2046 | P24: - | Q24: -1840 | R24: 1841 | T24: Gen. 11:26, 32; 12:4 | U24: Gen. 11:26, 32; 12:1, 4 - If Abram did not leave Haran until Terah died then Terah was 205 y/o - 75 y/o = 130 y/o when Abram was delivered, and Terah's oldest offspring would have been 60 y/o, if alive, when Abram was delivered… If Abram was the oldest then he left his Father Terah in Haran when Terah was 145 y/o.
A25: Abraham | B25: 100 | C25: exact and by definition of birth as the beginning of the Covenant between parents in terms of Freedom of Choice (cf. Note at Color coding for 2nd Millenium after the Creation) | D25: =F25-B25 -> 75 | E25: + | F25: 175 | G25: + | I25: 1946 | K25: 2121 | N25: -1975 | O25: 1976 | P25: - | Q25: -1800 | R25: 1801 | T25: Gen. 17:1-2, 16-17, 19, 21; 18:10, 14; 21:5; 25:7
A26: The beginning of the 430 years | B26: 430 | C26: exact and by definition. Consider the words "four hundred and thirty years, even the selfsame day..." Ex. 12:41. This date, thus given, seems unlikely not to be have been given in line with the 2,000 year old tradition of dating as established within the records of life since Creation (the records referenced likely as "according to the time of life" in Gen. 18:10&14). Said records may reasonably be seen as being based upon dates defined in terms of the beginning of the Covenant of each set of parents, i.e. in terms of their Freedom of Choice in consummating a Covenant such as may be expected to bear the most important fruit of all, i.e. Sons and Daughters of the Creator as exclusively held by those parents in trust. (Cf. Note at Color coding for 3rd Millennium after the Creation). | I26: =I24+B24+75 -> 2021 | J26: exact and by definition of birth as the beginning of the Covenant between parents in terms of Freedom of Choice (cf. Note at Color coding for 3rd Millenium after the Creation) | K26: =I26+B26 -> 2451 | L26: =C26 -> exact and by definition. Consider the words "four hundred and thirty years, even the selfsame day..." Ex. 12:41. This date, thus given, seems unlikely not to be have been given in line with the 2,000 year old tradition of dating as established within the records of life since Creation (the records referenced likely as "according to the time of life" in Gen. 18:10&14). Said records may reasonably be seen as being based upon dates defined in terms of the beginning of the Covenant of each set of parents, i.e. in terms of their Freedom of Choice in consummating a Covenant such as may be expected to bear the most important fruit of all, i.e. Sons and Daughters of the Creator as exclusively held by those parents in trust. (Cf. Note at Color coding for 3rd Millennium after the Creation). | N26: -1900 | O26: 1901 | P26: - | Q26: -1470 | R26: 1471 | T26: Beginning of the 430 years and 30 years prior to the beginning of affliction: The accession year of the 430 years was within Abram's first 75 years of life: Gen. 12:4 TLT "So Abram departed, as the LORD had spoken unto him; and Lot went with him: and Abram was seventy and five years old within [which year] he departed out of Haran."; Gen. 12:4 KJV "So Abram departed, as the LORD had spoken unto him; and Lot went with him: and Abram was seventy and five years old when he departed out of Haran."; The Exodus took place within the 430th year following Abram's 75th year of life: Exodus 12:40 TLT "Now the dwelling place, of the children of Israel who dwelt in Egypt, was [theirs since] four hundred and thirty years.” (TLT © Tree of Life Time version.) Exodus 12:41 TLT And it came to pass after the point in time marking the beginning of year four hundred and thirty, even the selfsame day it came to pass, that all the hosts of the LORD went out from the land of Egypt. (TLT © Tree of Life Time version 5929± 06 15 2025 [2009-09-06.]) "Now the sojourning of the children of Israel, who dwelt in Egypt, was four hundred and thirty years... And it came to pass at the end of the four hundred and thirty years, even the selfsame day it came to pass, that all the hosts of the LORD went out from the land of Egypt." Exodus 12:40-41 (KJV.) "And he said unto Abram, Know of a surety that thy seed shall be a stranger in a land that is not theirs, and they shall serve them. And they shall afflict them four hundred years." Gen 15:13 (TLT © Tree of Life Time version.) "And he said unto Abram, Know of a surety that thy seed shall be a stranger in a land that is not theirs, and shall serve them; and they shall afflict them four hundred years; And also that nation, whom they shall serve, will I judge: and afterward shall they come out with great substance." Gen 15:13-14 (KJV.)
A27: Beginning of sojourn in Canaan (by 2nd set of texts independent of when Abram left Haran.) | I27: =I28-(10+1) -> 2021 | N27: -1900 | O27: 1901 | P27: - | T27: Gen. 16:3 (Cf. "when Hagar bare" v.16 vs. "when his son Isaac was born unto him" Gen. 21:5. Thus the extra year.)
A28: Ishmael | F28: 137 | I28: =I25+86 -> 2032 | K28: =I28+F28 -> 2169 | N28: -1889 | O28: 1890 | P28: - | Q28: -1752 | R28: 1753 | T28: Gen. 16:15-16; Gen. 25:17
A29: Isaac | B29: 60 | C29: exact and by definition of birth as the beginning of the Covenant between parents in terms of Freedom of Choice (cf. Note at Color coding for 3rd Millenium after the Creation) | D29: 120 | E29: + | F29: 180 | G29: + | I29: =I25+B25 -> 2046 | K29: =I29+F29 -> 2226 | N29: -1875 | O29: 1876 | P29: - | Q29: -1695 | R29: 1696 | T29: Gen. 25:26;35:29
A30: The beginning of the 400 years of affliction | I30: =K30-400 -> 2051 | K30: =K26 -> 2451 | N30: -1870 | O30: 1871 | P30: - | Q30: -1470 | R30: 1471 | T30: Beginning of the 400 years of affliction: "the same day that Isaac was weaned… the son of Hagar… mocking" Gen. 21:8,9 (KJV.) - Notice an important lesson here: The family is not only the corner stone of every society, it is also the mirror of the greater society, a place where one may learn, little by litte, to understand the workings of society as a whole. Without the family there would be no place where one would be able to perceive the grand picture of things in society too large for one man to see. - Anyone working on the destruction of even one family, be it their own or even one of the worst in appearance, is like the woman destroying the mirror because she isn't liking what she is seeing in it. Consider that! - There is no worse species of child abuse than destruction of a child's parenteral family - and the relationships inherent in that! Why? Because it is an ongoing, never ending, severe species of emotional trauma! How would you like to be raped every second for the rest of your life? Would you like that to happen to your child? If not, then stop contributing in any way whatsoever to family destruction, separation, and divorce! Yes, we do need to work towards stopping all kinds of abuse, but not at the cost of adding the worst of all abuses: Parenteral family destruction! - Consider it!: Do you still experience any of the consequences of the "mocking" that started not quite 4000 years ago? What can you do in your life to stop contributing to the mocking, the separations, and the persecutions, that are still a very active part of life today? What can you do within your own domain or dominion? What can you do in your own family so far as you yourself is concerned?
A31: Jacob | B31: =B34 -> 81 | C31: + | D31: =F31-B31 -> 66 | E31: + | F31: 147 | G31: + | I31: =I29+B29 -> 2106 | K31: =I31+F31 -> 2253 | N31: -1815 | O31: 1816 | P31: - | Q31: -1668 | R31: 1669 | T31: Genesis 47:28: "And Jacob lived in the land of Egypt seventeen years: so the whole age of Jacob was a hundred forty and seven years." (KJV) Genesis 41:46 "And Joseph was thirty years old when he stood before Pharaoh king of Egypt. And Joseph went out from the presence of Pharaoh, and went throughout all the land of Egypt. (KJV)"
A32: Esau | B32: 40 | I32: =I31 -> 2106 | N32: -1815 | O32: 1816 | P32: - | T32: Gen. 26:34-35; 27:46.
A33: Jacob at Laban | B33: =I33-I31 -> 74 | C33: + | D33: 20 | I33: =I48-20 -> 2180 | K33: =I48 -> 2200 | N33: -1741 | O33: 1742 | P33: - | Q33: -1721 | R33: 1722
A34: Jacob marries Leah and Rachel | B34: =B33+7 -> 81 | C34: + | I34: =I33+7 -> 2187 | J34: + | N34: -1734 | O34: 1735 | P34: - | T34: Cf. My file "Hur gammal var Jakob när han gifte sig.rtf"
A35: Reuben, son of Leah | I35: =I34 -> 2187 | J35: + | N35: -1734 | O35: 1735 | P35: - | T35: Gen. 29:32
A36: Simeon, son of Leah | I36: =I35+1 -> 2188 | J36: ± | N36: -1733 | O36: 1734 | P36: - | T36: Gen. 29:33
A37: Levi, son of Leah | F37: 137 | G37: + | I37: =I36+1 -> 2189 | J37: ± | K37: =I37+F37 -> 2326 | N37: =IF(I37<>"", N$130+(I37-I$130), "") -> -1732 | O37: 1733 | P37: - | Q37: =IF(K37<>"", Q$130+(K37-K$130), "") -> -1595 | R37: =IF(Q37<>"", IF(Q37>0, Q37, ABS(Q37-1)), "") -> 1596 | T37: Gen. 29:34 "And she conceived again, and bore a son; and said, Now this time will my husband be joined unto me, because I have born him three sons: therefore was his name called Levi." Gen 15:16 "16 But in the fourth generation they shall come hither again: for the iniquity of the Amorites is not yet full. (KJV)" Ex. 6:16. Moses, 4th generation after Levi, who is the 3rd generation after Abraham. (Cf. Gen 15:16 above) Exod 6:16-20 "16 And these are the names of the sons of Levi according to their generations; Gershon, and Kohath, and Merari: and the years of the life of Levi were an hundred thirty and seven years. 18 And the sons of Kohath; Amram, and Izhar, and Hebron, and Uzziel: and the years of the life of Kohath were an hundred thirty and three years. 20 And Amram took him Jochebed his father's sister to wife; and she bare him Aaron and Moses: and the years of the life of Amram were an hundred and thirty and seven years. (KJV)"
A38: Judah, son of Leah | I38: 2190 | J38: ± | N38: -1731 | O38: 1732 | P38: - | T38: Gen. 29:35
A39: Dan, son of Bilhah, Rachel's handmaid | I39: 2191 | J39: ± | N39: -1730 | O39: 1731 | P39: - | T39: Gen. 30:6, 1-6
A40: Naphtali, son of Bilhah, Rachel's handmaid | I40: 2192 | J40: ± | N40: -1729 | O40: 1730 | P40: - | T40: Gen. 30:7-8
A41: Gad, son of Zilpah, Leah's handmaid | I41: 2193 | J41: ± | N41: -1728 | O41: 1729 | P41: - | T41: Gen. 30:9-11
A42: Asher, son of Zilpah, Leah's handmaid | I42: 2194 | J42: ± | N42: -1727 | O42: 1728 | P42: - | T42: Gen. 30:12-13
A43: Issachar, son of Leah | I43: 2195 | J43: ± | N43: -1726 | O43: 1727 | P43: - | T43: Gen. 30:18, 14-18
A44: Zebulon, son of Leah | I44: 2196 | J44: ± | N44: -1725 | O44: 1726 | P44: - | T44: Gen. 30:19-20
A45: Dinah, daughter of Leah | I45: 2197 | J45: ± | N45: -1724 | O45: 1725 | P45: - | T45: Gen. 30:21
A46: Joseph, son of Rachel | B46: =I51-I46 -> 30 | C46: + | F46: 110 | G46: + | I46: =I48-2 -> 2198 | J46: - | K46: =I46+F46 -> 2308 | N46: -1723 | O46: 1724 | P46: - | Q46: =IF(K46<>"", Q$130+(K46-K$130), "") -> -1613 | R46: 1614 | T46: Gen 30:22-24; Gen. 50:26
A47: Benjamin, son of Rachel | I47: 2199 | J47: + | N47: -1722 | O47: 1723 | P47: - | T47: Gen. 30:24; 35:18, 16-20
A48: Jacob leaves Laban (at an age of 94 plus), wrestles with God, and meets Esau. Joseph is at least two years old. Benjamin likely conceived but not yet born. | I48: =I56-36 -> 2200 | K48: =I48+1 -> 2201 | N48: -1721 | O48: 1722 | P48: - | Q48: -1720 | R48: 1721 | T48: Gen. 30:25; 31:41; 32:22-30; 33:7,17-20. Gen 30:25 - "25 And it came to pass, when Rachel had born Joseph, that Jacob said unto Laban, Send me away, that I may go unto mine own place, and to my country. (KJV)." Gen 31:41 - "41 Thus have I been twenty years in thy house; I served thee fourteen years for thy two daughters, and six years for thy cattle: and thou hast changed my wages ten times. (KJV)." Gen 32:22-30 - "22 And he rose up that night, and took his two wives, and his two womenservants, and his eleven sons, and passed over the ford Jabbok. 24 And Jacob was left alone; and there wrestled a man with him until the breaking of the day. 27 And he said unto him, What is thy name? And he said, Jacob. 28 And he said, Thy name shall be called no more Jacob, but Israel: for as a prince hast thou power with God and with men, and hast prevailed. 29 And Jacob asked him, and said, Tell me, I pray thee, thy name. And he said, Wherefore is it that thou dost ask after my name? And he blessed him there. 30 And Jacob called the name of the place Peniel: for I have seen God face to face, and my life is preserved. (KJV)." Gen 33:7 - "7 And Leah also with her children came near, and bowed themselves: and after came Joseph near and Rachel, and they bowed themselves [Thus Joseph must have been at least 2-3 years old.]. (KJV)." Gen 33:17-20 "17 And Jacob journeyed to Succoth, and built him an house, and made booths for his cattle: therefore the name of the place is called Succoth. 18 And Jacob came to Shalem, a city of Shechem, which is in the land of Canaan, when he came from Padan-aram; and pitched his tent before the city. 19 And he bought a parcel of a field, where he had spread his tent, at the hand of the children of Hamor, Shechem's father, for an hundred pieces of money. 20 And he erected there an altar, and called it El-elohe-Israel. (KJV)." Gen 48:5-7 "5 And now thy two sons, Ephraim and Manasseh, which were born unto thee in the land of Egypt before I came unto thee into Egypt, are mine... 7 And as for me, when I came from Padan [where Laban lived, cf. Gen. 25:2-7; 31:18; 33:18-20], Rachel died by me in the land of Canaan in the way, when yet there was but a little way to come unto Ephrath [cf. Gen. 35:16-20]: and I buried her there in the way of Ephrath; the same is Bethlehem. (KJV)."
A49: Joseph taken to Egypt | I49: =I46+17 -> 2215 | K49: =I46+17 -> 2215 | N49: -1706 | O49: 1707 | P49: - | Q49: -1706 | R49: 1707 | T49: Gen. 37:2-28
A50: Baker & Butler dream in prison | I50: =I51-1 -> 2227 | K50: =I50 -> 2227 | N50: -1694 | O50: 1695 | P50: - | Q50: -1694 | R50: 1695 | T50: Gen. 40; 41:1. "Gen 41:1 - 1 And it came to pass at the end of two full years ["shenataim jamim" = one+ year], that Pharaoh dreamed: and, behold, he stood by the river. (KJV)" Gen 41:1 TLT And it came to pass after the point in time marking the beginning of the second hot season, that Pharaoh dreamed: and, behold, he stood by the river. [Cf. HebrewWordStudy-ketz.docx as Updated 5929± 06 15 2025 [2009-09-06.]]
A51: Pharoah dreams | I51: =I46+30 -> 2228 | K51: =I51+1 -> 2229 | N51: -1693 | O51: 1694 | P51: - | Q51: -1692 | R51: 1693 | T51: Gen. 41:1-3, 14, 43, 46. Gen. 41:46: "And Joseph was thirty years old when he stood before Pharaoh king of Egypt. And Joseph went out from the presence of Pharaoh, and went throughout all the land of Egypt. (KJV)"
A52: Seven years of plenty | I52: =I53-7 -> 2228 | K52: =I53 -> 2235 | N52: -1693 | O52: 1694 | P52: - | Q52: -1686 | R52: 1687
A53: Seven years of famine | I53: =I56-1 -> 2235 | K53: =I53+7 -> 2242 | N53: -1686 | O53: 1687 | P53: - | Q53: -1679 | R53: 1680 | T53: Gen. 41:53-54; 45:4,6,17-20. Gen 45:4-6 - " 4 And Joseph said unto his brethren… 6 For these two years ["shenatajim ze" = 1+ year, i.e. "this second year"] hath the famine been in the land: and yet there are five years, in the which there shall neither be earing nor harvest. (KJV)"
A54: Ephraim and Manasseh | P54: - | T54: Gen 48:5-7 "5 And now thy two sons, Ephraim and Manasseh, which were born unto thee in the land of Egypt before I came unto thee into Egypt, are mine… (KJV)”
A55: ISRAELITES enter Egypt proper | I55: =K31-17 -> 2236 | K55: =I55+1 -> 2237 | N55: -1685 | O55: 1686 | P55: - | Q55: -1684 | R55: 1685 | T55: calculated
A56: Jacob meets Pharaoh in Egypt | I56: =I31+130 -> 2236 | K56: =I56+1 -> 2237 | N56: -1685 | O56: 1686 | P56: - | Q56: -1684 | R56: 1685 | T56: Gen. 47:9: "9 And Jacob said unto Pharaoh, The days of the years of my pilgrimage are an hundred and thirty years… (KJV)"
A59: Kohath - 4th generation after Abraham | F59: 133 | G59: + | H59: < | I59: =I55-1 -> 2235 | J59: - | M59: Before | N59: -1686 | O59: 1687 | P59: - | T59: Ex. 6:18 (KJV:) "And the sons of Kohath; Amram, and Izhar, and Hebron, and Uzziel: and the years of the life of Kohath were a hundred thirty and three years." Gen 15:16 (KJV:) "But in the fourth generation they shall come hither again: for the iniquity of the Amorites is not yet full." Gen 46:6, 11 (KJV:) "And they took their cattle, and their goods, which they had gotten in the land of Canaan, and came into Egypt, Jacob, and all his seed with him... And the sons of Levi; Gershon, Kohath, and Merari." - Notice that Kohath is the 4th generation after Abraham, AND that, although Kohath himself was apparently not alive at the time of the Exodus, there were certainly others in the same 4th generation that were born later than Kohath and that were still alive at the time of the Exodus. - Notice also that both Kohath and his younger brother Merari were alive at the time Jacob and his family entered Egypt!
A60: Amram - 5th generation after Abraham | F60: 137 | G60: + | P60: - | T60: Ex. 6:20
A61: Aaron | F61: 123 | G61: + | I61: =K61-123 -> 2367 | K61: =K65+39 -> 2490 | N61: -1554 | O61: 1555 | P61: - | Q61: -1431 | R61: 1432 | T61: Num. 33:38-39
A62: Moses - 6th generation after Abraham | F62: 120 | G62: + | I62: =I61+3 -> 2370 | K62: =I62+120 -> 2490 | N62: -1551 | O62: 1552 | P62: - | Q62: -1431 | R62: 1432 | T62: Ex. 7:7; Deut. 29:5; 34:7
A63: Joshua | F63: 110 | G63: + | P63: - | T63: Josh. 24:29
A64: Caleb | I64: =K65-40 -> 2411 | K64: =I64+85 -> 2496 | N64: -1510 | O64: 1511 | P64: - | Q64: -1425 | R64: 1426 | T64: Josh. 14:7
A65: ISRAELITE EXODUS - 50th Jubilee | I65: =K26 -> 2451 | K65: =K26 -> 2451 | N65: -1470 | O65: 1471 | P65: - | Q65: -1470 | R65: 1471 | T65: Ex. 12:40-41 [cf. 1 Kings 6:1]
A66: ENTRY TO CANAAN | I66: =I65+40 -> 2491 | K66: =K65+40 -> 2491 | N66: -1430 | O66: 1431 | P66: - | Q66: -1430 | R66: 1431 | T66: Ex. 16:35; Num. 14:33-34; 32:13; Josh. 5:6
A68: 51st/1st Year of Jubilee | B68: 50 | C68: e | I68: =K26-1+49 -> 2499 | J68: e | K68: =K26-1+50 -> 2500 | L68: e | N68: -1422 | O68: 1423 | P68: - | Q68: -1421 | R68: 1422 | T68: 2 Chron. 36:19-21; Lev. 25:8-10
N69: =IF(I69<>"", N$130+(I69-I$130), "") -> 
A71: TIME OF JUDGES
A72: Caleb | I72: =I65-40 -> 2411 | N72: -1510 | O72: 1511 | P72: - | T72: “Forty years old was I when Moses the servant of the LORD sent me from Kadesh-barnea to espy out the land; and I brought him word again as it was in mine heart.” Joshua 14:7 (KJV.)
A73: Canaan divided by Joshua & Hebron assigned to Caleb | I73: =I72+85 -> 2496 | N73: -1425 | O73: 1426 | P73: - | T73: “And now, behold, the LORD hath kept me alive, as he said, these forty and five years, even since the LORD spake this word unto Moses, while the children of Israel wandered in the wilderness: and now, lo, I am this day fourscore and five years old.” Joshua 14:10 (KJV.)
A74: Chushan-rishathaim | F74: 8 | G74: + | I74: =I66+7 -> 2498 | K74: =I74+F74-1 -> 2505 | N74: -1423 | O74: 1424 | P74: - | Q74: -1416 | R74: 1417 | T74: Jud. 3:8
A75: Othniel | F75: 40 | G75: + | I75: =K74-2 -> 2503 | K75: =F75+I75-1 -> 2542 | N75: -1418 | O75: 1419 | P75: - | Q75: -1379 | R75: 1380 | T75: Jud. 3:9-11
A76: Eglon | F76: 18 | G76: + | I76: =K75 -> 2542 | K76: 2559 | N76: -1379 | O76: 1380 | P76: - | Q76: -1362 | R76: 1363 | T76: Jud. 3:12-14
A77: Ehud, Shamgar | F77: 80 | G77: + | I77: 2559 | K77: 2638 | N77: -1362 | O77: 1363 | P77: - | Q77: -1283 | R77: 1284 | T77: Jud. 3:15,30-31
A78: Jabin | F78: 20 | G78: + | I78: 2638 | K78: 2657 | N78: -1283 | O78: =IF(N78<>"", IF(N78>0, N78, ABS(N78-1)), "") -> 1284 | P78: - | Q78: =IF(K78<>"", Q$130+(K78-K$130), "") -> -1264 | R78: =IF(Q78<>"", IF(Q78>0, Q78, ABS(Q78-1)), "") -> 1265 | T78: Jud. 4:2-3
A79: Deborah/Barak | F79: 40 | G79: + | I79: =K78-5 -> 2652 | K79: 2691 | N79: -1269 | O79: 1270 | P79: - | Q79: -1230 | R79: 1231 | T79: Jud. 4:3-4; 5:31
A80: Midian | F80: 7 | G80: + | I80: =K79-5 -> 2686 | K80: 2692 | N80: -1235 | O80: 1236 | P80: - | Q80: -1229 | R80: 1230 | T80: Jud. 6:1
A81: Gideon | F81: 40 | G81: + | I81: 2692 | K81: 2731 | N81: -1229 | O81: 1230 | P81: - | Q81: -1190 | R81: 1191 | T81: Jud. 6:12-14; 8:28
A82: Abimilech | F82: 3 | G82: + | I82: 2731 | K82: 2733 | N82: -1190 | O82: 1191 | P82: - | Q82: -1188 | R82: 1189 | T82: Jud. 9:22-23
A83: Tola | F83: 23 | G83: + | I83: 2733 | K83: 2755 | N83: -1188 | O83: 1189 | P83: - | Q83: -1166 | R83: 1167 | T83: Jud. 10:1-2
A84: Jair | F84: 22 | G84: + | I84: =K83-12 -> 2743 | K84: 2764 | N84: -1178 | O84: 1179 | P84: - | Q84: -1157 | R84: 1158 | T84: Jud. 10:3-5
A85: Philistines/Ammonites | F85: 18 | G85: + | I85: 2764 | K85: 2781 | N85: -1157 | O85: 1158 | P85: - | Q85: -1140 | R85: 1141 | T85: Jud. 10:7-8
A86: Jephthah | F86: 6 | G86: + | I86: 2781 | K86: 2786 | N86: -1140 | O86: 1141 | P86: - | Q86: -1135 | R86: 1136 | T86: Jud. 12:7-8
A87: Ibzan | F87: 7 | G87: + | I87: =K86-2 -> 2784 | K87: 2790 | N87: -1137 | O87: 1138 | P87: - | Q87: -1131 | R87: 1132 | T87: Jud. 12:8-10
A88: Elon | F88: 10 | G88: + | I88: =K87-2 -> 2788 | K88: 2797 | N88: -1133 | O88: 1134 | P88: - | Q88: -1124 | R88: 1125 | T88: Jud. 12:11-12
A89: Abdon | F89: 8 | G89: + | I89: =K88-2 -> 2795 | K89: 2802 | N89: -1126 | O89: 1127 | P89: - | Q89: -1119 | R89: 1120 | T89: Jud. 12:13-15
A90: Philistines | F90: 40 | G90: + | I90: 2802 | K90: 2841 | N90: -1119 | O90: 1120 | P90: - | Q90: -1080 | R90: 1081 | T90: Jud. 13:1
A91: Samson | F91: 20 | G91: + | I91: =K90-27 -> 2814 | K91: =I91+20 -> 2834 | N91: -1107 | O91: 1108 | P91: - | Q91: -1087 | R91: 1088 | T91: Jud. 15:16-20; 16:30-31
A92: Eli | F92: 40 | G92: + | I92: =K91 -> 2834 | K92: =I92+F92 -> 2874 | N92: -1087 | O92: 1088 | P92: - | Q92: -1047 | R92: 1048 | T92: 1 Sam. 4:10,11,15,18; 6:1,2,4,11,12,14,16,17,23; 7:2; Joshua 15:9,60 (KJV)
A93: Samuel | C93: Starting on & before | I93: =K92 -> 2874 | K93: =Sheet7!A47 -> 2886 | N93: -1047 | O93: 1048 | P93: - | Q93: -1035 | R93: 1036 | T93: Acts 13:17&19-20 (Time of Exodus + 450 years = 2901. Samuel anointed David. How does this agree with the beginning of King David?)
A94: Joel & Abijah, sons of Samuel | C94: Starting prior to ca | I94: =I99 -> 2877 | N94: -1044 | O94: 1045 | P94: - | T94: Joel (Vashni), and Abijah are recorded among the Levites in the Temple service of David and Solomon, and Heman, a son of Joel, was a singer under king David and king Solomon (This represents all references unto those sons of Samuel in Strong's concordance): "The sons of Levi... The sons of Kohath... And the sons of Samuel; the firstborn Vashni, and Abiah…And these are they whom David set over the service of song in the house of the Lord, after that the ark had rest. And they ministered before the dwelling place of the tabernacle of the congregation with singing, until Solomon had built the house of the Lord in Jerusalem. And then they waited on their office according to their order. And these are they that waited with their children. Of the sons of the Kohathites: Heman a singer, the son of Joel, the son of Shemuel, The son of Elkanah, the son of Jeroham, the son of Eliel, the son of Toah, The son of Zuph..." 1 Chron. 5:16,22,25-26; 6:28,32-35
A96: REIGNS OF KINGS | F96: Years reigned
B97: Age at coronation | P97: Yrs between births
B98: Chron. | D98: Kings | M98: Year of Birth | S98: Name
A99: Saul | B99: 40 | D99: 40 | E99: + | F99: =K99-I99 -> 11 | I99: =Sheet7!A38 -> 2877 | K99: =Sheet7!A49 -> 2888 | M99: =I99-D99 -> 2837 | N99: -1044 | O99: 1045 | Q99: -1033 | R99: 1034 | S99: =300+1+6+30 -> 337 | T99: Acts 13:21 - See note for Saul on Sheet 7!
A100: David | B100: 30 | D100: 30 | F100: 40 | G100: + | I100: =Sheet7!A51 -> 2888 | K100: =Sheet7!A93 -> 2928 | M100: =I100-D100 -> 2858 | N100: -1033 | O100: 1034 | P100: =M100-M99 -> 21 | Q100: -993 | R100: 994 | S100: =4+6+4 -> 14
A101: Solomon | D101: 30 | F101: 40 | G101: + | I101: =Sheet7!A95 -> 2928 | K101: =Sheet7!A134 -> 2967 | M101: =I101-D101 -> 2898 | N101: =IF(I101<>"", N$130+(I101-I$130), "") -> -993 | O101: 994 | P101: =M101-M100 -> 40 | Q101: -954 | R101: 955 | S101: =300+30+40+5+10+4+10+4+10+5 -> 418 | T101: 1 Kings 6:1; 1 Kings 11:42 | U101: =I101+375+43 -> 3346 | V101: =S101-S120 -> 86
A102: The Passover B4 the Temple | B102: 480 | C102: exact and by definition. Passover is in the first month of the year. Zif, or Iyyar, is the second month. Thus, the building of the temple began in the second day of the month immediately following Passover in the 480th year after the Exodus, i.e. 479 years plus one full month plus 1 24-hour day plus 1 night. As to the exact dating for the Passover, please see corresponding note at the Exodus above! | I102: =$K$26+B102 -> 2931 | J102: =C102 -> exact and by definition. Passover is in the first month of the year. Zif, or Iyyar, is the second month. Thus, the building of the temple began in the second day of the month immediately following Passover in the 480th year after the Exodus, i.e. 479 years plus one full month plus 1 24-hour day plus 1 night. As to the exact dating for the Passover, please see corresponding note at the Exodus above! | N102: -990 | O102: 991 | T102: 1 Kings 6:1&37-38; 2 Chron. 3:2; (Cf. Acts 13:17&19-20)
A103: The Temple of Solomon | B103: =B102 -> 480 | C103: exact and by definition. Passover is in the first month of the year. Zif, or Iyyar, is the second month. Thus, the building of the temple began in the second day of the month immediately following Passover in the 480th year after the Exodus, i.e. 479 years plus one full month plus 1 24-hour day plus 1 night. As to the exact dating for the Passover, please see corresponding note at the Exodus above! | I103: =$K$26+B103 -> 2931 | J103: =C103 -> exact and by definition. Passover is in the first month of the year. Zif, or Iyyar, is the second month. Thus, the building of the temple began in the second day of the month immediately following Passover in the 480th year after the Exodus, i.e. 479 years plus one full month plus 1 24-hour day plus 1 night. As to the exact dating for the Passover, please see corresponding note at the Exodus above! | K103: =I103+(11-4) -> 2938 | L103: + | N103: -990 | O103: 991 | Q103: -983 | R103: 984 | T103: 1 Kings 6:1&37-38; 2 Chron. 3:2; (Cf. Acts 13:17&19-20)
A104: Solomon's Palace | B104: 13 | C104: + | I104: =K103 -> 2938 | J104: =C104 -> + | K104: =I104+B104 -> 2951 | L104: =C104 -> + | N104: -983 | O104: 984 | Q104: -970 | R104: 971 | T104: 1 Kings 7:1
A105: Rehoboam | B105: 41 | D105: 41 | F105: 18 | G105: + | I105: =Sheet7!A134 -> 2967 | K105: =Sheet7!A169 -> 2984 | M105: =I105-D105 -> 2926 | N105: -954 | O105: 955 | P105: =M105-M101 -> 28 | Q105: -937 | R105: 938 | S105: =200+8+2+70+40 -> 320 | T105: 1 Kings 12; 14:21
A106: Abijah (Abijam) | F106: 3 | G106: + | I106: =Sheet7!A169 -> 2984 | K106: =Sheet7!A177 -> 2987 | N106: -937 | O106: 938 | Q106: -934 | R106: 935 | S106: =1+2+10+40 -> 53 | T106: 1 Kings 14:31; 15:1-2
A107: Asa | F107: 41 | G107: + | I107: =Sheet7!A177 -> 2987 | K107: =Sheet7!A276 -> 3028 | N107: -934 | O107: 935 | Q107: -893 | R107: 894 | S107: =1+40+1 -> 42 | T107: 1 Kings 8-10; 15:9-11
A108: Jehoshaphat | B108: 35 | D108: 35 | F108: 25 | G108: + | I108: =Sheet7!A276 -> 3028 | K108: =Sheet7!A334 -> 3053 | M108: =I108-D108 -> 2993 | N108: -893 | O108: 894 | P108: =M108-M105 -> 67 | Q108: -868 | R108: 869 | S108: =10+5+6+300+80+9 -> 410 | T108: 1 Kings 22:41-43
A109: Jehoram | B109: 32 | D109: 32 | F109: 8 | G109: + | I109: =Sheet7!A312 -> 3045 | K109: =Sheet7!A351 -> 3059 | M109: 3013 | N109: -876 | O109: 877 | P109: =M109-M108 -> 20 | Q109: -862 | R109: 863 | S109: =10+5+6+200+40 -> 261 | T109: 2 Kings 8:16-18
A110: Ahaziah (Jehoahaz) | B110: 42 | D110: 22 | F110: 1 | G110: + | I110: =Sheet7!A346 -> 3058 | K110: =Sheet7!A351 -> 3059 | M110: 3036 | N110: =IF(I110<>"", N$130+(I110-I$130), "") -> -863 | O110: 864 | P110: =M110-M109 -> 23 | Q110: -862 | R110: 863 | S110: =1+8+7+10+5+6 -> 37 | T110: 2 Kings 8:24-27
A111: Athaliah | F111: 6 | G111: + | I111: =Sheet7!A351 -> 3059 | K111: =Sheet7!A367 -> 3066 | N111: -862 | O111: 863 | Q111: -855 | R111: 856 | S111: =70+400+30+10+5+6 -> 521 | T111: 2 Kings 11:1-4
A112: Jehoash (Joash) | B112: 7 | D112: 7 | F112: 40 | G112: + | I112: =Sheet7!A367 -> 3066 | K112: =Sheet7!A455 -> 3106 | M112: 3059 | N112: -855 | O112: 856 | P112: =M112-M110 -> 23 | Q112: -815 | R112: 816 | S112: =10+5+6+1+300 -> 322 | T112: 2 Kings 11:21; 12:1-2
A113: Amaziah | B113: 25 | D113: 25 | F113: 29 | G113: + | I113: =Sheet7!A449 -> 3104 | K113: =Sheet7!A511 -> 3133 | M113: 3079 | N113: -817 | O113: 818 | P113: 20 | Q113: -788 | R113: 789 | S113: =1+40+90+10+5+6 -> 152 | T113: 2 Kings 14:1-3
A114: Azariah (Uzziah) | B114: 16 | D114: 16 | F114: 52 | G114: + | I114: =Sheet7!A489 -> 3122 | K114: =Sheet7!A608 -> 3175 | M114: 3106 | N114: -799 | O114: 800 | P114: 27 | Q114: -746 | R114: 747 | S114: =70+7+200+10+5 -> 292 | T114: 2 Kings 15:1-3
A115: Jotham | B115: 25 | D115: 25 | F115: 16 | G115: + | I115: =Sheet7!A608 -> 3175 | K115: =Sheet7!A644 -> 3191 | M115: 3150 | N115: -746 | O115: 747 | P115: 44 | Q115: -730 | R115: 731 | S115: =10+6+400+40 -> 456 | T115: 2 Kings 15:32-34
A116: Ahaz | B116: 20 | D116: 20 | F116: 16 | G116: + | I116: =Sheet7!A628 -> 3184 | K116: =Sheet7!A664 -> 3199 | M116: 3164 | N116: -737 | O116: 738 | P116: 14 | Q116: -722 | R116: 723 | S116: =1+8+7 -> 16 | T116: 2 Kings 16:1-3
A117: Hezekiah | B117: 25 | D117: 25 | F117: 29 | G117: + | I117: =Sheet7!A658 -> 3197 | K117: =Sheet7!A721 -> 3226 | M117: 3172 | N117: -724 | O117: 725 | P117: 8 | Q117: -695 | R117: 696 | S117: =8+7+100+10+5 -> 130 | T117: 2 Kings 18:1-3
A118: Manasseh | B118: 12 | D118: 12 | F118: 55 | G118: + | I118: =Sheet7!A721 -> 3226 | K118: =Sheet7!A833 -> 3281 | M118: 3214 | N118: -695 | O118: 696 | P118: 42 | Q118: -640 | R118: 641 | S118: =40+50+300+5 -> 395 | T118: 2 Kings 21:1-2
A119: Amon | B119: 22 | D119: 22 | F119: 2 | G119: + | I119: =Sheet7!A833 -> 3281 | K119: =Sheet7!A839 -> 3283 | M119: 3259 | N119: -640 | O119: 641 | P119: 45 | Q119: -638 | R119: 639 | S119: =1+40+6+50 -> 97 | T119: 2 Kings 21:19-20
A120: Josiah | B120: 8 | D120: 8 | F120: 31 | G120: + | I120: =Sheet7!A839 -> 3283 | K120: =Sheet7!A903 -> 3314 | M120: 3275 | N120: -638 | O120: 639 | P120: 16 | Q120: -607 | R120: 608 | S120: =10+1+300+10+5+6 -> 332 | T120: 2 Kings 22:1-2
A121: Jehoahaz | B121: 23 | D121: 23 | F121: 0 | G121: + | I121: =Sheet7!A903 -> 3314 | K121: =Sheet7!A903 -> 3314 | M121: 3291 | N121: -607 | O121: 608 | P121: 16 | Q121: -607 | R121: 608 | S121: =10+5+6+1+8+7 -> 37 | T121: 2 Kings 23:31-32
A122: Eliakim (Jehoiakim) | B122: 25 | D122: 25 | F122: 11 | G122: + | I122: =Sheet7!A903 -> 3314 | K122: =Sheet7!A931 -> 3325 | M122: 3289 | N122: -607 | O122: 608 | P122: -2 | Q122: -596 | R122: 597 | S122: =10+5+6+10+100+10+40 -> 181 | T122: 2 Kings 23:36-37; Dan. 1:1
A123: Jehoiachin | B123: 8 | D123: 18 | F123: 0 | G123: + | I123: =Sheet7!A931 -> 3325 | K123: =Sheet7!A934 -> 3325 | M123: 3307 | N123: -596 | O123: 597 | P123: 18 | Q123: -596 | R123: 597 | S123: =10+5+6+10+20+10+50 -> 111 | T123: 2 Kings 24:8-9
A124: Mattaniah (Zedekiah) | B124: 21 | D124: 21 | F124: 11 | G124: + | I124: =Sheet7!A934 -> 3325 | K124: =Sheet7!A956 -> 3335 | M124: 3304 | N124: -596 | O124: 597 | P124: =M124-M123 -> -3 | Q124: -586 | R124: 587 | S124: =90+4+100+10+5+6 -> 215 | T124: 2 Kings 24:18-19
A125: Totals | B125: =SUM(B99:B101,B105:B124) -> 457 | D125: =SUM(D99:D124) -> 477 | F125: =SUM(F99:F101,F105:F124) -> 485 | K125: =K124-I99 -> 458 | M125: =M124-M99 -> 467 | P125: =SUM(P99:P124) -> 467 | S125: =SUM(S99:S124) -> 5149 | T125: Notice 457 is present in 3 places! Cf. 1. 457 BC, 2. Time span for the total reign of kings in Israel and Judah, and 3. Totals for age at coronation, given age of Saul as given in Acts.
A126: Totals: Saul's age=1 at coronation | B126: =B125-39 -> 418 | D126: =D125-39 -> 438 | M126: =M125-39 -> 428 | P126: =P125-39 -> 428 | T126: Notice 418 is present in 3 places! Cf. 1. Hidden prophecy at the anointing of David, 2. Totals for age at coronation, and 3. The word value of Solomons two names.
A127: Enslaved under various kings (Saul - Babylonia) | I127: =K131-I99 -> 511 | T127: 1 Samuel 8
A128: Israel under Jeroboam thru Hoshea | I128: =Sheet7!A677-Sheet7!A137 -> 236 | T128: 1 Samuel 8
A129: Israel under Saul thru Hoshea | I129: =Sheet7!A677-I99 -> 327
A130: Nebuchadnezzar's 37th year of reign | I130: =Sheet7!A994 -> 3354 | K130: =Sheet7!A994+1 -> 3355 | N130: -567 | O130: =IF(N130<>"", IF(N130>0, N130, ABS(N130-1)), "") -> 568 | P130: - | Q130: -566 | R130: =IF(Q130<>"", IF(Q130>0, Q130, ABS(Q130-1)), "") -> 567 | T130: Cf. VAT 4956 - the cuneiform tablet from Nebuchadnezzar's 37th year of reign.
A131: Jeremiah's 70 years. These years were 70 years determined for Babylon. The first of the 70 years is also the first year of Nebuchadnezzar's reign. The seventieth year is the year which ended with the destruction of Babylon during the feast of Belshazzar (cf. Daniel 5.) | F131: =K131-I131 -> 70 | G131: + | I131: =Sheet7!A917 -> 3318 | K131: =I131+70 -> 3388 | N131: =IF(I131<>"", N$130+(I131-I$130), "") -> -603 | O131: =IF(N131<>"", IF(N131>0, N131, ABS(N131-1)), "") -> 604 | P131: - | Q131: =Q$130+(K131-K$130) -> -533 | R131: =IF(Q131<>"", IF(Q131>0, Q131, ABS(Q131-1)), "") -> 534 | T131: 2 Kings 25:2-7; 2 Chro. 36:20-23; "In the third year of the reign of Jehoiakim, king of Judah, Nebuchadnezzar the king of Babylon came to Jerusalem and besieged it" (IB) Dan. 1:1. "in order to fulfill the word of Jehovah in the mouth of Jeremiah, until the land had enjoyed its sabbaths; all the days of the desolation it kept the sabbath, to the full measure of seventy years." (IB) 2 Chron. 36:21. Jeremiah's prophecies (Jer. 25:11-12; 29:10) are referenced in 2 Chron. 35:25 & 36:22; Ezra 1:1, & Dan. 9:1-2. (Compare also notes and reference in the corresponding time frame on Sheet7!)
A132: Destruction of Jerusalem and of the temple | I132: =Sheet7!A956 -> 3335 | K132: =Sheet7!A956 -> 3335 | N132: =IF(I132<>"", N$130+(I132-I$130), "") -> -586 | O132: 587 | P132: - | Q132: =Q$130+(K132-K$130) -> -586 | R132: 587
A133: REBUILDING OF 2ND TEMPLE | F133: =K133-I133 -> 4 | G133: + | I133: =Sheet7!A1096 -> 3401 | K133: =Sheet7!A1104 -> 3405 | N133: -520 | O133: 521 | P133: - | Q133: =IF(K133<>"", Q$130+(K133-K$130), "") -> -516 | R133: 517 | T133: Ezra 1:1-6; 3:1,6,8; (Cf. John 2:20 - Herod's temple was in the process of being built since 46 years during the year when Jesus was baptized.)
A134: YEARS TO and of Cyrus' DECREE | F134: =K134-K131 -> 1 | G134: + | K134: =Sheet7!A1072 -> 3389 | P134: - | Q134: =IF(K134<>"", Q$130+(K134-K$130), "") -> -532 | R134: 533 | T134: Whose decree is fulfilling Jeremiah's prophecy? "Now in the first year of Cyrus king of Persia, that the word of the Lord spoken by the mouth of Jeremiah might be accomplished" 2 Chron. 36:22 (KJV). "Now in the first year of Cyrus king of Persia, that the word of the Lord by the mouth of Jeremiah might be fulfilled..." Ezra 1:1 (KJV). "In the first year of Darius the son of Ahasuerus, of the seed of the Medes, which was made king over the realm of the Chaldeans; In the first year of his reign I Daniel understood by books the number of the years, whereof the word of the Lord came to Jeremiah the prophet, that he would accomplish seventy years in the desolations of Jerusalem." Dan 9:1-2 (KJV). And these nations shall serve the king of Babylon seventy years... And it shall be, when seventy years are fulfilled, I will punish the king of Babylon..." Jer. 25:1,3,11-12 (IB). NOTICE> When was the king of Babylon punished? Was it at the end of the Babylonian empire, i.e. at the beginning of the Medo-Persian empire, OR was it many years after that event, i.e. at the time of the presumed decree of a Medo-Persian king named Artaxerxes #X? Remember, Cyrus was a Persian king, thus any Persian king after Cyrus would by necessity start his rule a number of years AFTER the end of the Babylonian Empire and its kings! Thus, I conclude that, if, as I contend, Jeremiah's prophecy is true in every part, then Cyrus must by necessity be the first Medo-Persian king after the fall of the Babylonian Empire, AND his decree must be the one referenced by Daniel's prophecy. PLEASE cf. notes at beginning of Evil-merodach's reign on Sheet 7!
A135: DANIEL'S PROPHECIES | B135: Outside Stat(u)e | F135: 490 | G135: + | I135: =Sheet7!A1192 -> 3449 | K135: =I135+F135 -> 3939 | N135: -472 | O135: 473 | P135: - | Q135: =IF(K135<>"", Q$130+(K135-K$130), "") -> 18 | R135: 18 | T135: For details re Daniel's prophecies, please press this link!
B136: Inside Stat(u)e | F136: =F135 -> 490 | G136: + | I136: =Sheet7!A1072 -> 3389 | K136: =I136+F136 -> 3879 | N136: =IF(I136<>"", N$130+(I136-I$130), "") -> -532 | O136: =IF(N136<>"", IF(N136>0, N136, ABS(N136-1)), "") -> 533 | P136: - | Q136: =IF(K136<>"", Q$130+(K136-K$130), "") -> -42 | R136: =IF(Q136<>"", IF(Q136>0, Q136, ABS(Q136-1)), "") -> 43
F137: 2300 | G137: + | I137: =Sheet7!A1346 -> 3526 | K137: =I137+F137 -> 5826 | N137: -395 | O137: 396 | P137: - | Q137: =IF(K137<>"", Q$130+(K137-K$130), "") -> 1905 | R137: 1905
F138: 1260 | G138: + | K138: =IF(I138<>"",I138+F138,"") ->  | N138: 538 | O138: 538 | P138: - | Q138: =N138+F138 -> 1798 | R138: 1798
A139: Jehoshua's baptism & crucifixion | I139: =K139+(O139-Q139) -> 3936 | K139: =K135 -> 3939 | N139: =N140+30 -> 15 | O139: 15 | P139: - | Q139: =Q140 -> 18 | R139: 18 | T139: Luke 3:21,23 "it came to pass, that Jesus also being baptized, and praying, the heaven was opened… And Jesus himself began to be about thirty years of age…", i.e. Jesus was baptized at, or shortly following, his 30th birthday.
A140: Jehoshua's life | F140: =R140-N140 -> 33 | G140: + | I140: =I139-30 -> 3906 | K140: =K139 -> 3939 | N140: -15 | O140: 16 | P140: - | Q140: 18 | R140: 18
A141: The nth year after Gen 1:1 beginning 22 Tishri in: [ | B141: 2009 | C141: th Gregorian] | I141: =I130+ABS(N130)+B141 -> 5930 | J141: ( | K141: =K130+ABS(Q130)+B141+1 -> 5931 | L141: ) | N141: =IF(I141<>"", N$130+(I141-I$130), "") -> 2009 | O141: =IF(N141<>"", IF(N141>0, N141, ABS(N141)), "") -> 2009 | P141: ( | Q141: =IF(K141<>"", Q$130+(K141-K$130), "") -> 2010 | R141: =IF(Q141<>"", IF(Q141>0, Q141, ABS(Q141)), "") -> 2010 | S141: ) th | V141: 1981 | W141: But on May 13, 1981 things began to change. "At a certain moment on May 13, 1981, during an open-air papal audience in St. Peter’s Square, in the presence of some 75,000 people and before the eyes of an estimated 11 million television viewers, Pope John Paul spied a little girl wearing a small picture of Christ’s mother as Our Lady of Fatima. Just as he bent from the slow-moving ‘Popemobile’ in a spontaneous gesture toward the child, hired assassin Mehmet Ali Agca squeezed off two bullets, aimed precisely where his head had been. As two pilgrims fell wounded to the ground, two more shots rang out and this time John Paul’s blood stained his white papal cassock."12 Malachi Martin continues in his book: "after what were arguably the very pointed events that had taken place in St. Peter’s Square, after exhaustive examination of the documents and living witnesses and participants connected with the Fatima events themselves, and after nothing less than a personal communication [a vision?] from Heaven during his long convalescence -- John Paul ... came face-to-face with the realization that, far from pointing to some distant future time, the contents of the now famous Fatima message - and, specifically the secret contents directed to papal attention - amounted to a geopolitical agenda attached to an immediate time-table."13 (From http://www.lis.net.au/~dbird/10atheism_islam.htm) Footnotes: 9. Martin M, The Keys of This Blood, Simon and Shuster, New York, (c) 1990, pp. 47, 48; 10. Ibid., p. 48.; 11. Ibid.; 12. Ibid., p. 46.; 13. Ibid., p. 48. Emphasis supplied.
A142: Hebrew Calendar years: | H142: [ | I142: =O141-(2002-5762) -> 5769 | K142: =R141-(2002-5762) -> 5770 | L142: ]
A143: Difference between Biblical & Hebrew | K143: =K141-K142 -> 161
B144: Hebrew/Biblical Calendar date: | O144: Xth Year after Creation:
A145: Family days | B145: 21 Iyyar 21 5709 - May 20 | F145: 5709 | G145: 2 | I145: May 20th | M145: 1949 | R145: =F145+(K141-I142) -> 5871 | S145: th | T145: Consummation of parents family contract
B146: 14 Adar 13 5710 - March 3 | F146: 5710 | G146: 12 | I146: March 3rd | M146: 1950 | O146: =F146+(I141-I142) -> 5871 | P146: th
B147: 15 Av 5713 - July 27 | F147: 5713 | G147: 4 | I147: July 27th | M147: 1953 | R147: =F147+(K141-I142) -> 5875 | S147: th
B148: 16 Iyyar 15 5722 - May 20 | F148: 5722 | G148: 2 | I148: =I145 -> May 20th | M148: 1962 | R148: =F148+(K141-I142) -> 5884 | S148: th | T148: 13 y/o re marriage of parents
B149: 23 Sivan 22 5723 - June 15 | F149: 5723 | G149: 3 | I149: June 15th | M149: 1963 | R149: =F149+(K141-I142) -> 5885 | S149: th | T149: baptism
B150: 21 Adar II 5736 - March 23 | F150: 5736 | G150: 13 | I150: March 23rd | M150: 1976 | O150: =F150+(I141-I142) -> 5897 | P150: th | T150: HHIA
B151: Shevat | F151: 5741 | G151: 11 | I151: January | M151: 1981 | O151: =F151+(I141-I142) -> 5902 | P151: th | T151: Gunnar & Laurie first meeting
B152: 10 Iyyar 10 5744 - May 12 | F152: 5744 | G152: 2 | I152: May 12th | M152: 1984 | R152: =F152+(K141-I142) -> 5906 | S152: th
B153: 25 Sivan 24 or 25 5744 - June 25 | F153: 5744 | G153: 3 | I153: June 25th | M153: 1984 | R153: =F153+(K141-I142) -> 5906 | S153: th
B154: 15 Nissan 5746 - April 24 | F154: 5746 | G154: 1 | I154: April 24th | M154: 1986 | R154: =F154+(K141-I142) -> 5908 | S154: th
B155: 9 Tishrei 8 5749 - September 20 | F155: 5749 | G155: 7 | I155: September 20th | M155: 1988 | O155: =F155+(I141-I142) -> 5910 | P155: th
B156: 28 Cheswan 27 5752 - November 5 | F156: 5752 | G156: 8 | I156: November 5th | M156: 1991 | O156: =F156+(I141-I142) -> 5913 | P156: th
A158: SUMMARY
A160: Adam to Abram's leaving Haran | D160: =I5 -> 0 | F160: =I26 -> 2021 | I160: =D160+F160 -> 2021 | M160: =F160 -> 2021
A161: Abraham to Exodus | D161: =I26 -> 2021 | F161: 430 | I161: =D161+F161 -> 2451 | M161: =F161 -> 430
A162: Exodus to Foundation of Solomon's Temple | D162: =I161 -> 2451 | F162: =I162-D162 -> 480 | I162: =D163 -> 2931 | M162: 480
A163: Solomon's Temple to king Eliakim's revolt | D163: =I103 -> 2931 | F163: =I163-D163 -> 391 | I163: =D164 -> 3322 | M163: 391
A164: King Eliakim's revolt to Foundation of 2nd Temple | D164: =Sheet7!A925 -> 3322 | F164: =I164-D164 -> 67 | I164: =K134 -> 3389 | M164: 67
A165: Cyrus' decree + (62+7+1 wks)*7yrs | D165: =K134 -> 3389 | F165: =7*(62+7+1) -> 490 | I165: =D165+F165 -> 3879
A166: Cyrus' decree + 2300 days/years | D166: =K134 -> 3389 | F166: 2300 | I166: =D166+F166 -> 5689 | M166: =F166 -> 2300 | R166: =ABS(K137-(I140+4))+1 -> 1917
A167: 1844 to 1 Nisan this year | D167: =K137 -> 5826 | F167: =I167-D167 -> 104 | I167: =I141 -> 5930 | M167: 104
A168: 1 Nisan this year to 6000 full years after Creation | D168: =I167 -> 5930 | F168: =I168-D168 -> 70 | I168: 6000 | M168: 70
A170: Total | M170: =SUM(M160:M168) -> 5863
A197: KEY:
A198: Green highlights are points upon which dating is based.
A199: Italicized dates during time of Judges indicate they are only approximations.
A200: Dates in bold print are C.E. [A.D.]
A203: Questions or comments? Send your email to:
A204: PowerOfChoice@gamaliel.intranets.com

Sheet Sheet2
B2: [E]vil or [R]ighteous | I2: [E]vil or [R]ighteous
E3: BEGINNING YR. OF | K3: BEGINNING YR. OF
D4: YEARS REIGNED | J4: YEARS REIGNED
A5: KINGS OF JUDAH | C5: Age at coronation | F5: 0 | G5: SCRIPTURES | H5: KINGS OF ISRAEL | M5: SCRIPTURES
A7: Saul | C7: 40 | G7: Acts 13:21 | H7: Saul
A8: David | C8: 30 | D8: 40 | G8: 2 Sam. 5:4-5 | H8: David | J8: 33 | M8: 2 Sam. 5:4-5
A9: Solomon | C9: <30> | D9: 40 | G9: 1 Kings 6:1; 1 Kings 11:42 | H9: Solomon | J9: 40
A10: Rehoboam | B10: E | C10: 41 | D10: 17 | E10: 40 | F10: Solomon | G10: 1 Kings 12; 14:21 | H10: Jeroboam | I10: E | J10: 22 | K10: 1 | L10: Rehoboam | M10: 1 Kings 12; 14:20
B11: E | C11: 41 | D11: 17 | G11: 2 Chron. 12:13-14
A12: Abijah | B12: E | D12: 3 | E12: 18 | F12: Jeroboam | G12: 1 Kings 14:31; 15:1-2 | H12: Nadab | I12: E | J12: 2 | K12: 2 | L12: Asa | M12: 1 Kings 15:25
D13: 3 | E13: 18 | F13: Jeroboam | G13: 2 Chron. 13:1-2
A14: Asa | B14: R | D14: 41 | E14: 20 | F14: Jeroboam | G14: 1 Kings 8-10; 15:9-11 | H14: Baasha | I14: E | J14: 24 | K14: 3 | L14: Asa | M14: 1 Kings 15:27-28,33-34
B15: R | D15: 41 | G15: 2 Chron. 14:1-2; 16:13
A16: Jehoshaphat | B16: R | C16: 35 | D16: 25 | E16: 4 | F16: Ahab | G16: 1 Kings 22:41-43 | H16: Elah | I16: E | J16: 2 | K16: 26 | L16: Asa | M16: 1 Kings 16:8
B17: R | C17: 35 | D17: 25 | G17: 2 Chron. 20:31-32
A18: Jehoram (Joram) | B18: E | C18: 32 | D18: 8 | E18: 5 | F18: Joram | G18: 2 Kings 8:16-18 | H18: Zimri | I18: E | J18: =1/52 -> 0.01923076923 | K18: 27 | L18: Asa | M18: 1 Kings 16:10,15
B19: E | C19: 32 | D19: 8 | G19: 2 Chron. 21:5-6,20 | N19: Not all of Israel
A20: Ahaziah (Jehoahaz) | B20: E | C20: 22 | D20: 1 | E20: 12 | F20: Joram | G20: 2 Kings 8:24-27 | H20: Omri vs. Tibni | I20: ? | J20: 6 | K20: 27 | L20: Asa | M20: 1 Kings 16:16-23 | N20: Reigned 12 including 6 of Tibni
E21: 11 | F21: Joram | G21: 2 Kings 9:29
B22: E | C22: 42 | D22: 1 | G22: 2 Chron. 21:17; 22:1-3 | H22: Omri | I22: E | J22: 12 | K22: 31 | L22: Asa | M22: 1 Kings 16:16-25
A23: Athaliah | B23: E | D23: 6 | G23: 2 Kings 11:1-4
B24: E | D24: 6 | G24: 2 Chron. 22:10-12 | H24: Ahab | I24: E | J24: 22 | K24: 38 | L24: Asa | M24: 1 Kings 16:28-30
A25: Jehoash (Joash) | B25: R | C25: 7 | D25: 40 | E25: 7 | F25: Jehu | G25: 2 Kings 11:21; 12:1-2
B26: R | C26: 7 | D26: 40 | G26: 2 Chron. 24:1-2 | H26: Ahaziah | I26: E | J26: 2 | K26: 17 | L26: Jehoshaphat | M26: 1 Kings 22:40,51-52
A27: Amaziah | B27: R | C27: 25 | D27: 29 | E27: 2 | F27: Joash | G27: 2 Kings 14:1-3
E28: 15 | F28: after | G28: 2 Kings 14:17; 2 Chron. 25:1,25
B29: R | C29: 25 | D29: 29 | G29: 2 Chron. 25:1-2 | H29: Jehoram (Joram) | K29: 2 | L29: Jehoram | M29: 2 Kings 1:17
A30: Azariah (Uzziah) | B30: R | C30: 16 | D30: 52 | E30: 27 | F30: Jeroboam | G30: 2 Kings 15:1-3 | I30: E | J30: 12 | K30: 18 | L30: Jehoshaphat | M30: 2 Kings 3:1-2
B31: R | C31: 16 | D31: 52 | G31: 2 Chron. 26:3-4 | H31: Jehu | I31: R/E | J31: 28 | M31: 2 Kings 10:36
A32: Jotham | B32: R | C32: 25 | D32: 16 | E32: 2 | F32: Pekah | G32: 2 Kings 15:32-34
B33: R | C33: 25 | D33: 16 | G33: 2 Chron. 27:1-2,8 | H33: Jehoahaz | I33: E | J33: 17 | K33: 23 | L33: Joash | M33: 2 Kings 13:1-2
A34: Ahaz | B34: E | C34: 20 | D34: 16 | E34: 17 | F34: Pekah | G34: 2 Kings 16:1-3
B35: E | C35: 20 | D35: 16 | G35: 2 Chron. 28:1 | H35: Jehoash (Joash) | I35: E | J35: 16 | K35: 37 | L35: Joash | M35: 2 Kings 13:10-13
A36: Hezekiah | B36: R | C36: 25 | D36: 29 | E36: 3 | F36: Hoshea | G36: 2 Kings 18:1-3
B37: R | C37: 25 | D37: 29 | G37: 2 Chron. 29:1-2 | H37: Jeroboam | I37: E | J37: 41 | K37: 15 | L37: Amaziah | M37: 2 Kings 14:23-24;
A38: Manasseh | B38: E | C38: 12 | D38: 55 | G38: 2 Kings 21:1-2
B39: E | C39: 12 | D39: 55 | G39: 2 Chron. 33:1-2 | H39: Zachariah | I39: E | J39: 0.5 | K39: 38 | L39: Azariah | M39: 2 Kings 15:8-9
A40: Amon | B40: E | C40: 22 | D40: 2 | G40: 2 Kings 21:19-20
B41: E | C41: 22 | D41: 2 | G41: 2 Chron. 33:21-22 | H41: Shallum | I41: E | J41: =1/12 -> 0.08333333333 | K41: 39 | L41: Azariah (Uzziah) | M41: 2 Kings 15:13
A42: Josiah | B42: R | C42: 8 | D42: 31 | G42: 2 Kings 22:1-2
B43: R | C43: 8 | D43: 31 | G43: 2 Chron. 34:1-2 | H43: Menahem | I43: E | J43: 10 | K43: 39 | L43: Azariah | M43: 2 Kings 15:17-18
A44: Jehoahaz | B44: E | C44: 23 | D44: =0.25 -> 0.25 | G44: 2 Kings 23:31-32
C45: 23 | D45: 0.25 | G45: 2 Chron. 36:2 | H45: Pekahiah | I45: E | J45: 2 | K45: 50 | L45: Azariah | M45: 2 Kings 15:23-24
A46: Eliakim (Jehoiakim) | B46: E | C46: 25 | D46: 11 | G46: 2 Kings 23:36-37
B47: E | C47: 25 | D47: 11 | G47: 2 Chron. 36:3-5 | H47: Pekah | I47: E | J47: 20 | K47: 52 | L47: Azariah | M47: 2 Kings 15:27-28
A48: Jehoiachin | B48: E | C48: 18 | D48: 0.25 | G48: 2 Kings 24:8-9
B49: E | C49: 8 | D49: =100/360 -> 0.2777777778 | G49: 2 Chron. 36:9 | H49: Hoshea | K49: 20 | L49: Jotham | M49: 2 Kings 15:30
A50: Mattaniah (Zedekiah) | B50: E | C50: 21 | D50: 11 | G50: 2 Kings 24:18-19 | I50: E | J50: 9 | K50: 12 | L50: Ahaz | M50: 2 Kings 17:1-2
B51: E | C51: 21 | D51: 11 | G51: 2 Chron. 36:11-12
B52: Taken to Assyria | G52: 2 Kings 25:2-7 | I52: Taken to Assyria | M52: 2 Kings 17:6
D55: =SUM(D4:D51)/2 -> 433.5138889 | J55: =SUM(J4:J51) -> 320.6025641

Sheet Sheet3
A1: Adam | B1: 130 | C1: 800 | D1: =B1+C1 -> 930 | F1: =0 -> 0 | G1: =D1 -> 930
A2: Seth | B2: 105 | C2: 807 | D2: =B2+C2 -> 912 | F2: =F1+B1 -> 130 | G2: =F2+D2 -> 1042
A3: Enos | B3: 90 | C3: 815 | D3: 905 | F3: =F2+B2 -> 235 | G3: =F3+D3 -> 1140
A4: Cainan | B4: 70 | C4: 840 | D4: 910 | F4: 325 | G4: 1235
A5: Mahalaleel | B5: 65 | C5: 830 | D5: 895 | F5: 395 | G5: 1290
A6: Jared | B6: 162 | C6: 800 | D6: 962 | F6: 460 | G6: 1422
A7: ENOCH | B7: 65 | C7: 300 | D7: 365 | F7: 622 | G7: 987
A8: Methusaleh | B8: 187 | C8: 782 | D8: 969 | F8: 687 | G8: 1656
A9: Lamech | B9: 182 | C9: 595 | D9: 777 | F9: 874 | G9: 1651
A10: NOAH | B10: 502 | C10: 448 | D10: 950 | F10: 1056 | G10: 2006
A11: Shem | B11: 100 | C11: 500 | D11: 600 | F11: =F10+B10 -> 1558 | G11: 2158
A12: FLOOD | F12: =F10+600 -> 1656 | G12: =F12 -> 1656
A13: Arphaxad | B13: 35 | C13: 403 | D13: 438 | F13: =F11+B11 -> 1658 | G13: 2096
A14: Salah | B14: 30 | C14: 403 | D14: 433 | F14: 1693 | G14: 2126
A15: Eber | B15: 34 | C15: 430 | D15: 464 | F15: 1723 | G15: 2187
A16: Peleg | B16: 30 | C16: 209 | D16: 239 | F16: 1757 | G16: 1996
A17: Reu | B17: 32 | C17: 207 | D17: 239 | F17: 1787 | G17: 2026
A18: Serug | B18: 30 | C18: 200 | D18: 230 | F18: 1819 | G18: 2049
A19: Nahor | B19: 29 | C19: 119 | D19: 148 | F19: 1849 | G19: 1997
A20: TERAH | B20: 70 | C20: =D20-B20 -> 135 | D20: 205 | F20: 1878 | G20: 2083 | H20: Gen. 11:26, 32; 12:1, 4 - If Abram did not leave Haran until Terah died then Terah was 205 y/o - 75 y/o = 130 y/o when Abram was delivered, and Terah's oldest offspring would have been 60 y/o, if alive, when Abram was delivered… If Abram was the oldest then he left his Father Terah in Haran when Terah was 145 y/o.
A21: Abraham | B21: 100 | C21: 75 | D21: 175 | F21: 1948 | G21: 2123
A22: ISRAELITES (with Abraham as patriarch) in "EGYPT" | D22: 430 | F22: =F20+B20+C21 -> 2023 | G22: =F22+D22 -> 2453
A23: Solomon | D23: 40 | F23: =G22+476 -> 2929 | G23: =F23+D23 -> 2969
A24: Rehoboam | D24: 18 | F24: =G23 -> 2969 | G24: =F24+D24 -> 2987
A25: Abijah | D25: 3 | F25: =G24 -> 2987 | G25: =F25+D25 -> 2990
A26: Asa | D26: 41 | F26: 2990 | G26: 3031
A27: Jehoshaphat | D27: 25 | F27: 3031 | G27: 3056
A28: Jehoram | D28: 8 | F28: =G27-4 -> 3052 | G28: 3060
A29: Ahaziah (Jehoahaz) | D29: 1 | F29: 3060 | G29: 3061
A30: Athaliah | D30: 6 | F30: 3061 | G30: 3067
A31: Jehoash (Joash) | D31: 40 | F31: 3067 | G31: 3107
A32: Amaziah | D32: 29 | F32: 3107 | G32: 3136
A33: Azariah (Uzziah) | D33: 52 | F33: 3136 | G33: 3188
A34: Jotham | D34: 16 | F34: 3188 | G34: 3204
A35: Ahaz | D35: 16 | F35: 3204 | G35: 3220
A36: Hezekiah | D36: 29 | F36: 3220 | G36: 3249
A37: Manasseh | D37: 55 | F37: 3249 | G37: 3304
A38: Amon | D38: 2 | F38: 3304 | G38: 3306
A39: Josiah | D39: 31 | F39: 3306 | G39: 3337
A40: Jehoahaz | D40: 0 | F40: 3337 | G40: 3337
A41: Eliakim (Jehoiakim) | D41: 11 | F41: 3337 | G41: 3348
A42: Jehoiachin | D42: 0 | F42: 3348 | G42: 3348
A43: Mattaniah (Zedekiah) | D43: 11 | F43: 3348 | G43: 3359
A45: CAPTIVE IN BABYLON | D45: 70 | F45: =G40+3 -> 3340 | G45: =F45+D45 -> 3410
A46: REBUILDING OF TEMPLE | D46: 46 | F46: =G45+3 -> 3413 | G46: =F46+46 -> 3459
A47: YEARS TO ARTAXERXES' DECREE | D47: 77 | F47: =G45 -> 3410 | G47: =F47+D47 -> 3487
A48: DANIEL'S PROPHECIES | D48: 490 | F48: =G47 -> 3487 | G48: =F48+D48 -> 3977
D49: 2300 | F49: =G47 -> 3487 | G49: =F49+D49 -> 5787
D50: 1260 | F50: =G48+504 -> 4481 | G50: =F50+D50 -> 5741
A51: JESUS | D51: 33 | F51: =G48-(D51+4) -> 3940 | G51: =F51+D51+1 -> 3974
A52: YEARS UNTIL NOW | D52: 158 | F52: =G49 -> 5787 | G52: =G49+D52 -> 5945

Sheet Sheet4
B2: King(s) ruling in Judah | G2: King(s) ruling in Israel
A3: The Sacred Calendar Completed years after Creation | D3: Age at Coronation [black ## above belong to red # below] | I3: Nebuchadnezzar's years of reign as given by Jeremiah the prophet. Jer 52:2830 ---------------- Age at Coronation [black ## above belong to red # below]
A4: =A5-1 -> 2846
A5: 2847
A6: 2848 | B6: Saul | C6: 1st year - I.e. the 1st Sacred Calendar Year he reigned | G6: Saul | H6: 1st year - I.e. the 1st Sacred Calendar Year he reigned
A7: 2849 | B7: Saul | C7: 2nd year - I.e. the 2nd Sacred Calendar Year he reigned | G7: Saul | H7: 2nd year - I.e. the 2nd Sacred Calendar Year he reigned
A8: 2850 | B8: Saul | C8: 3rd year - I.e. the 3rd Sacred Calendar Year he reigned | G8: Saul | H8: 3rd year - I.e. the 3rd Sacred Calendar Year he reigned
A9: 2851 | B9: Saul | C9: 4th year - I.e. the 4th Sacred Calendar Year he reigned | G9: Saul | H9: 4th year - I.e. the 4th Sacred Calendar Year he reigned
A10: 2852 | B10: Saul | C10: 5th year - I.e. the 5th Sacred Calendar Year he reigned | G10: Saul | H10: 5th year - I.e. the 5th Sacred Calendar Year he reigned
A11: 2853 | B11: Saul | C11: 6th year - I.e. the 6th Sacred Calendar Year he reigned | G11: Saul | H11: 6th year - I.e. the 6th Sacred Calendar Year he reigned | I11: =I12-1 -> 0
A12: 2854 | B12: Saul | C12: 7th year - I.e. the 7th Sacred Calendar Year he reigned | G12: Saul | H12: 7th year - I.e. the 7th Sacred Calendar Year he reigned | I12: =I13-1 -> 1
A13: 2855 | B13: Saul | C13: 8th year - I.e. the 8th Sacred Calendar Year he reigned | G13: Saul | H13: 8th year - I.e. the 8th Sacred Calendar Year he reigned | I13: =I14-1 -> 2
A14: 2856 | B14: Saul | C14: 9th year - I.e. the 9th Sacred Calendar Year he reigned | G14: Saul | H14: 9th year - I.e. the 9th Sacred Calendar Year he reigned | I14: =I15-1 -> 3
A15: 2857 | B15: Saul | C15: 10th year - I.e. the 10th Sacred Calendar Year he reigned | G15: Saul | H15: 10th year - I.e. the 10th Sacred Calendar Year he reigned | I15: =I16-1 -> 4
A16: 2858 | B16: Saul | C16: 11th year - I.e. the 11th Sacred Calendar Year he reigned | G16: Saul | H16: 11th year - I.e. the 11th Sacred Calendar Year he reigned | I16: 5
A17: 2859 | B17: Saul | C17: 12th year - I.e. the 12th Sacred Calendar Year he reigned | D17: =D18-1 -> 1 | G17: Saul | H17: 12th year - I.e. the 12th Sacred Calendar Year he reigned | I17: 6
A18: 2860 | B18: Saul | C18: 13th year - I.e. the 13th Sacred Calendar Year he reigned | D18: 2 | G18: Saul | H18: 13th year - I.e. the 13th Sacred Calendar Year he reigned | I18: 7
A19: 2861 | B19: Saul | C19: 14th year - I.e. the 14th Sacred Calendar Year he reigned | D19: 3 | G19: Saul | H19: 14th year - I.e. the 14th Sacred Calendar Year he reigned | I19: 8
A20: 2862 | B20: Saul | C20: 15th year - I.e. the 15th Sacred Calendar Year he reigned | D20: 4 | G20: Saul | H20: 15th year - I.e. the 15th Sacred Calendar Year he reigned | I20: 9
A21: 2863 | B21: Saul | C21: 16th year - I.e. the 16th Sacred Calendar Year he reigned | D21: 5 | G21: Saul | H21: 16th year - I.e. the 16th Sacred Calendar Year he reigned | I21: 10
A22: 2864 | B22: Saul | C22: 17th year - I.e. the 17th Sacred Calendar Year he reigned | D22: 6 | G22: Saul | H22: 17th year - I.e. the 17th Sacred Calendar Year he reigned | I22: 11
A23: 2865 | B23: Saul | C23: 18th year - I.e. the 18th Sacred Calendar Year he reigned | D23: 7 | G23: Saul | H23: 18th year - I.e. the 18th Sacred Calendar Year he reigned | I23: 12
A24: 2866 | B24: Saul | C24: 19th year - I.e. the 19th Sacred Calendar Year he reigned | D24: 8 | G24: Saul | H24: 19th year - I.e. the 19th Sacred Calendar Year he reigned | I24: 13
A25: 2867 | B25: Saul | C25: 20th year - I.e. the 20th Sacred Calendar Year he reigned | D25: 9 | G25: Saul | H25: 20th year - I.e. the 20th Sacred Calendar Year he reigned | I25: 14
A26: 2868 | B26: Saul | C26: 21st year - I.e. the 21st Sacred Calendar Year he reigned | D26: 10 | G26: Saul | H26: 21st year - I.e. the 21st Sacred Calendar Year he reigned | I26: 15
A27: 2869 | B27: Saul | C27: 22nd year - I.e. the 22nd Sacred Calendar Year he reigned | D27: 11 | G27: Saul | H27: 22nd year - I.e. the 22nd Sacred Calendar Year he reigned | I27: 16
A28: 2870 | B28: Saul | C28: 23rd year - I.e. the 23rd Sacred Calendar Year he reigned | D28: 12 | G28: Saul | H28: 23rd year - I.e. the 23rd Sacred Calendar Year he reigned | I28: 17
A29: 2871 | B29: Saul | C29: 24th year - I.e. the 24th Sacred Calendar Year he reigned | D29: 13 | G29: Saul | H29: 24th year - I.e. the 24th Sacred Calendar Year he reigned | I29: 18
A30: 2872 | B30: Saul | C30: 25th year - I.e. the 25th Sacred Calendar Year he reigned | D30: 14 | G30: Saul | H30: 25th year - I.e. the 25th Sacred Calendar Year he reigned | I30: 19
A31: 2873 | B31: Saul | C31: 26th year - I.e. the 26th Sacred Calendar Year he reigned | D31: 15 | G31: Saul | H31: 26th year - I.e. the 26th Sacred Calendar Year he reigned | I31: 20
A32: 2874 | B32: Saul | C32: 27th year - I.e. the 27th Sacred Calendar Year he reigned | D32: 16 | G32: Saul | H32: 27th year - I.e. the 27th Sacred Calendar Year he reigned | I32: 21
A33: 2875 | B33: Saul | C33: 28th year - I.e. the 28th Sacred Calendar Year he reigned | D33: 17 | G33: Saul | H33: 28th year - I.e. the 28th Sacred Calendar Year he reigned | I33: 22
A34: 2876 | B34: Saul | C34: 29th year - I.e. the 29th Sacred Calendar Year he reigned | D34: 18 | G34: Saul | H34: 29th year - I.e. the 29th Sacred Calendar Year he reigned | I34: 23
A35: 2877 | B35: Saul | C35: 30th year - I.e. the 30th Sacred Calendar Year he reigned | D35: 19 | G35: Saul | H35: 30th year - I.e. the 30th Sacred Calendar Year he reigned | I35: 24
A36: 2878 | B36: Saul | C36: 31st year - I.e. the 31st Sacred Calendar Year he reigned | D36: 20 | G36: Saul | H36: 31st year - I.e. the 31st Sacred Calendar Year he reigned | I36: 25
A37: 2879 | B37: Saul | C37: 32nd year - I.e. the 32nd Sacred Calendar Year he reigned | D37: 21 | G37: Saul | H37: 32nd year - I.e. the 32nd Sacred Calendar Year he reigned | I37: 26
A38: 2880 | B38: Saul | C38: 33rd year - I.e. the 33rd Sacred Calendar Year he reigned | D38: 22 | G38: Saul | H38: 33rd year - I.e. the 33rd Sacred Calendar Year he reigned | I38: 27
A39: 2881 | B39: Saul | C39: 34th year - I.e. the 34th Sacred Calendar Year he reigned | D39: 23 | G39: Saul | H39: 34th year - I.e. the 34th Sacred Calendar Year he reigned | I39: 28
A40: 2882 | B40: Saul | C40: 35th year - I.e. the 35th Sacred Calendar Year he reigned | D40: 24 | G40: Saul | H40: 35th year - I.e. the 35th Sacred Calendar Year he reigned | I40: 29
A41: 2883 | B41: Saul | C41: 36th year - I.e. the 36th Sacred Calendar Year he reigned | D41: 25 | G41: Saul | H41: 36th year - I.e. the 36th Sacred Calendar Year he reigned | I41: 30
A42: 2884 | B42: Saul | C42: 37th year - I.e. the 37th Sacred Calendar Year he reigned | D42: 26 | G42: Saul | H42: 37th year - I.e. the 37th Sacred Calendar Year he reigned | I42: 31
A43: 2885 | B43: Saul | C43: 38th year - I.e. the 38th Sacred Calendar Year he reigned | D43: 27 | G43: Saul | H43: 38th year - I.e. the 38th Sacred Calendar Year he reigned | I43: 32
A44: 2886 | B44: Saul | C44: 39th year - I.e. the 39th Sacred Calendar Year he reigned | D44: 28 | G44: Saul | H44: 39th year - I.e. the 39th Sacred Calendar Year he reigned | I44: 33
A45: 2887 | B45: Saul | C45: 40th year - I.e. the 40th Sacred Calendar Year he reigned | D45: =D46-1 -> 29 | G45: Saul | H45: 40th year - I.e. the 40th Sacred Calendar Year he reigned | I45: 34
A46: =A48 -> 2888 | B46: Saul | C46: 41st year - I.e. the 41st Sacred Calendar Year he reigned | D46: 30 | G46: Saul | H46: 41st year - I.e. the 41st Sacred Calendar Year he reigned | I46: 35 | J46: Acts 13:21
A48: =A49-1 -> 2888 | B48: David | C48: 1st year - I.e. the 1st Sacred Calendar Year he reigned | D48: 30 | I48: =I49-1 -> 35 | J48: 2 Sam. 5:4-5; 15:7; 1 Kings 2:10-12. It is clear from 2 Sam. 2:1-4 that David was anointed King of Judah AFTER the events of King Saul's death as referenced by the words "after this" 2 Sam. 2:1 and "It was the men of Jabesh-gilead who buried Saul" 2 Sam. 2:4. The full story of King Saul's and Jonathan's deaths is recorded in 1 Sam. 31 and 2 Sam. 1.
A49: 2889 | B49: David | C49: 2nd year - I.e. the 2nd Sacred Calendar Year he reigned | I49: =I50-1 -> 36
A50: 2890 | B50: David | C50: 3rd year - I.e. the 3rd Sacred Calendar Year he reigned | I50: =I51-1 -> 37
A51: 2891 | B51: David | C51: 4th year - I.e. the 4th Sacred Calendar Year he reigned | I51: =I52-1 -> 38
A52: 2892 | B52: David | C52: 5th year - I.e. the 5th Sacred Calendar Year he reigned | E52: 5 | I52: =I53-1 -> 39
A53: 2893 | B53: David | C53: 6th year - I.e. the 6th Sacred Calendar Year he reigned | G53: Ishbosheth | H53: 1st year - I.e. the 1st Sacred Calendar Year he reigned | I53: 40 | J53: Ish-Bosheth is an intresting name meaning "Man of Shame". Was he a son or a grand-son of Saul? 2 Sam. 4:4 seems to indicate he was Jonathan's son, i.e. Mephibosheth. Cf. 2 Sam. 2:10 "Ish-bosheth Saul's son was forty years old when he began to reign over Israel, and reigned two years. But the house of Judah followed David."
A54: 2894 | B54: David | C54: 7th year - I.e. the 7th Sacred Calendar Year he reigned | G54: Ishbosheth | H54: 2nd year - I.e. the 2nd Sacred Calendar Year he reigned | J54: 2 Sam. 5:4-5; 15:7; 1 Kings 2:10-12. King David ruled 7 years and six months in Hebron. Thus Davids 1st year in Jerusalem would correspond to the 8th year (or the 9th if the 1st year was less than 6 months and each year represents a full 12/13 month year) of his in Hebron.
A55: =A57 -> 2895 | B55: David | C55: 8th year - I.e. the 8th Sacred Calendar Year he reigned | G55: Ishbosheth | H55: 3rd year - I.e. the 3rd Sacred Calendar Year he reigned | J55: 2 Sam. 2:10; 3:6-16. It is clear from the events recorded in these texts that David took over the rule directly from Isbosheth, the son of Saul, there being no other intermediaries. In v. 10 Hebrew words for both 'two' and 'years' are being used, thus indicating that two full years of reign were completed, not merely a time period greater than one year as clearly indicated in texts where only the one Hebrew word 'years' is used, such texts being usually mistranslated as 'two years'. (Cf. notes referencing e.g. Gen. 11:10!) One may still argue as to whether such years are referencing any part of a Sacred Calendar year, or whether reference is given to two full 12/13 month periods. In either case there is likely to be some odd day(s), week(s), and/or month(s) over and above the "two years" reigned, especially considering the circumstances of the transfer of rule from one King to another.
A57: =A58-1 -> 2895 | B57: David | C57: 8th year - I.e. the 8th Sacred Calendar Year he reigned | G57: David | H57: 1st year - I.e. the 1st Sacred Calendar Year he reigned | J57: 2 Sam. 5:4-5; 15:7; 1 Kings 2:10-12; 1 Chron. 3:4
A58: 2896 | B58: David | C58: 9th year - I.e. the 9th Sacred Calendar Year he reigned | G58: David | H58: 2nd year - I.e. the 2nd Sacred Calendar Year he reigned
A59: 2897 | B59: David | C59: 10th year - I.e. the 10th Sacred Calendar Year he reigned | G59: David | H59: 3rd year - I.e. the 3rd Sacred Calendar Year he reigned
A60: 2898 | B60: David | C60: 11th year - I.e. the 11th Sacred Calendar Year he reigned | G60: David | H60: 4th year - I.e. the 4th Sacred Calendar Year he reigned
A61: 2899 | B61: David | C61: 12th year - I.e. the 12th Sacred Calendar Year he reigned | D61: =D62-1 -> 1 | G61: David | H61: 5th year - I.e. the 5th Sacred Calendar Year he reigned
A62: 2900 | B62: David | C62: 13th year - I.e. the 13th Sacred Calendar Year he reigned | D62: 2 | G62: David | H62: 6th year - I.e. the 6th Sacred Calendar Year he reigned
A63: 2901 | B63: David | C63: 14th year - I.e. the 14th Sacred Calendar Year he reigned | D63: 3 | G63: David | H63: 7th year - I.e. the 7th Sacred Calendar Year he reigned
A64: 2902 | B64: David | C64: 15th year - I.e. the 15th Sacred Calendar Year he reigned | D64: 4 | G64: David | H64: 8th year - I.e. the 8th Sacred Calendar Year he reigned
A65: 2903 | B65: David | C65: 16th year - I.e. the 16th Sacred Calendar Year he reigned | D65: 5 | G65: David | H65: 9th year - I.e. the 9th Sacred Calendar Year he reigned
A66: 2904 | B66: David | C66: 17th year - I.e. the 17th Sacred Calendar Year he reigned | D66: 6 | G66: David | H66: 10th year - I.e. the 10th Sacred Calendar Year he reigned
A67: 2905 | B67: David | C67: 18th year - I.e. the 18th Sacred Calendar Year he reigned | D67: 7 | G67: David | H67: 11th year - I.e. the 11th Sacred Calendar Year he reigned
A68: 2906 | B68: David | C68: 19th year - I.e. the 19th Sacred Calendar Year he reigned | D68: 8 | G68: David | H68: 12th year - I.e. the 12th Sacred Calendar Year he reigned
A69: 2907 | B69: David | C69: 20th year - I.e. the 20th Sacred Calendar Year he reigned | D69: 9 | G69: David | H69: 13th year - I.e. the 13th Sacred Calendar Year he reigned
A70: 2908 | B70: David | C70: 21st year - I.e. the 21st Sacred Calendar Year he reigned | D70: 10 | G70: David | H70: 14th year - I.e. the 14th Sacred Calendar Year he reigned
A71: 2909 | B71: David | C71: 22nd year - I.e. the 22nd Sacred Calendar Year he reigned | D71: 11 | G71: David | H71: 15th year - I.e. the 15th Sacred Calendar Year he reigned
A72: 2910 | B72: David | C72: 23rd year - I.e. the 23rd Sacred Calendar Year he reigned | D72: 12 | G72: David | H72: 16th year - I.e. the 16th Sacred Calendar Year he reigned
A73: 2911 | B73: David | C73: 24th year - I.e. the 24th Sacred Calendar Year he reigned | D73: 13 | G73: David | H73: 17th year - I.e. the 17th Sacred Calendar Year he reigned
A74: 2912 | B74: David | C74: 25th year - I.e. the 25th Sacred Calendar Year he reigned | D74: 14 | G74: David | H74: 18th year - I.e. the 18th Sacred Calendar Year he reigned
A75: 2913 | B75: David | C75: 26th year - I.e. the 26th Sacred Calendar Year he reigned | D75: 15 | G75: David | H75: 19th year - I.e. the 19th Sacred Calendar Year he reigned
A76: 2914 | B76: David | C76: 27th year - I.e. the 27th Sacred Calendar Year he reigned | D76: 16 | G76: David | H76: 20th year - I.e. the 20th Sacred Calendar Year he reigned
A77: 2915 | B77: David | C77: 28th year - I.e. the 28th Sacred Calendar Year he reigned | D77: 17 | G77: David | H77: 21st year - I.e. the 21st Sacred Calendar Year he reigned
A78: 2916 | B78: David | C78: 29th year - I.e. the 29th Sacred Calendar Year he reigned | D78: 18 | G78: David | H78: 22nd year - I.e. the 22nd Sacred Calendar Year he reigned
A79: 2917 | B79: David | C79: 30th year - I.e. the 30th Sacred Calendar Year he reigned | D79: 19 | G79: David | H79: 23rd year - I.e. the 23rd Sacred Calendar Year he reigned
A80: 2918 | B80: David | C80: 31st year - I.e. the 31st Sacred Calendar Year he reigned | D80: 20 | G80: David | H80: 24th year - I.e. the 24th Sacred Calendar Year he reigned
A81: 2919 | B81: David | C81: 32nd year - I.e. the 32nd Sacred Calendar Year he reigned | D81: 21 | G81: David | H81: 25th year - I.e. the 25th Sacred Calendar Year he reigned
A82: 2920 | B82: David | C82: 33rd year - I.e. the 33rd Sacred Calendar Year he reigned | D82: 22 | G82: David | H82: 26th year - I.e. the 26th Sacred Calendar Year he reigned
A83: 2921 | B83: David | C83: 34th year - I.e. the 34th Sacred Calendar Year he reigned | D83: 23 | G83: David | H83: 27th year - I.e. the 27th Sacred Calendar Year he reigned
A84: 2922 | B84: David | C84: 35th year - I.e. the 35th Sacred Calendar Year he reigned | D84: 24 | G84: David | H84: 28th year - I.e. the 28th Sacred Calendar Year he reigned
A85: 2923 | B85: David | C85: 36th year - I.e. the 36th Sacred Calendar Year he reigned | D85: 25 | G85: David | H85: 29th year - I.e. the 29th Sacred Calendar Year he reigned
A86: 2924 | B86: David | C86: 37th year - I.e. the 37th Sacred Calendar Year he reigned | D86: 26 | G86: David | H86: 30th year - I.e. the 30th Sacred Calendar Year he reigned
A87: 2925 | B87: David | C87: 38th year - I.e. the 38th Sacred Calendar Year he reigned | D87: 27 | G87: David | H87: 31st year - I.e. the 31st Sacred Calendar Year he reigned
A88: 2926 | B88: David | C88: 39th year - I.e. the 39th Sacred Calendar Year he reigned | D88: 28 | G88: David | H88: 32nd year - I.e. the 32nd Sacred Calendar Year he reigned
A89: 2927 | B89: David | C89: 40th year - I.e. the 40th Sacred Calendar Year he reigned | D89: =D90-1 -> 29 | G89: David | H89: 33rd year - I.e. the 33rd Sacred Calendar Year he reigned | J89: 2 Sam. 5:4-5; 15:7; 1 Kings 2:10-12; 1 Chron. 3:4
A90: =A92 -> 2928 | B90: David | C90: 41st year - I.e. the 41st Sacred Calendar Year he reigned | D90: 30 | E90: 1 | G90: David | H90: 34th year - I.e. the 34th Sacred Calendar Year he reigned | J90: 2 Sam. 5:4-5; 15:7; 1 Kings 2:10-12; 1 Chron. 3:4. Because King David ruled a full 40/33 years, any additional day(s), week(s), and/or month(s) would make the first year of Solomon that much shorter. (If the 40/33 years were each and all representing a full 12/13 months year, and if there were any additional odd day(s), week(s), and/or months(s), then there could potentially be even a 42nd/35th Calendar year of his reign).
A92: =A93-1 -> 2928 | B92: Solomon | C92: 1st year - I.e. the 1st Sacred Calendar Year he reigned | D92: < or = 30 | G92: Solomon | H92: 1st year - I.e. the 1st Sacred Calendar Year he reigned | J92: 1 Kings 2:10-12. From 2 Sam. 15:7 it is clear that the Absalom lived and caused David to flee from him at the very end of David's 40th year, or more likely into David's 41st year. Considering David's reference to this event in his succession speech to Solomon as recorded in 1 Kings 2:7 there existed no significant co-regency between King David and King Solomon. Also I'm not aware of any texts where Solomon was anointed or otherwise placed on David's throne prior to David's last year of reign. According to 1 Chron. 3:4-5 Solomon's age at Coronation must have been 33 or less, because Solomon was probably the youngest son of four of his mother born in Jerusalem, Solomon was probably 30 years old or less at the time he began his reign. Considering the fact that David was himself 30 at his coronation possibly this contributed to David's choice of Solomon as his successor.
A93: =A94-1 -> 2929 | B93: Solomon | C93: 2nd year - I.e. the 2nd Sacred Calendar Year he reigned | D93: =D94-1 -> 3 | G93: Solomon | H93: 2nd year - I.e. the 2nd Sacred Calendar Year he reigned
A94: =A95-1 -> 2930 | B94: Solomon | C94: 3rd year - I.e. the 3rd Sacred Calendar Year he reigned | D94: 4 | G94: Solomon | H94: 3rd year - I.e. the 3rd Sacred Calendar Year he reigned
A95: =Sheet1!I102 -> 2931 | B95: Solomon | C95: 4th year - I.e. the 4th Sacred Calendar Year he reigned | D95: 5 | G95: Solomon | H95: 4th year - I.e. the 4th Sacred Calendar Year he reigned | J95: 1 Kings 6:1&37-38; (Cf. Acts 13:17&19-20)
A96: =A95+1 -> 2932 | B96: Solomon | C96: 5th year - I.e. the 5th Sacred Calendar Year he reigned | D96: 6 | G96: Solomon | H96: 5th year - I.e. the 5th Sacred Calendar Year he reigned
A97: 2933 | B97: Solomon | C97: 6th year - I.e. the 6th Sacred Calendar Year he reigned | D97: 7 | G97: Solomon | H97: 6th year - I.e. the 6th Sacred Calendar Year he reigned
A98: 2934 | B98: Solomon | C98: 7th year - I.e. the 7th Sacred Calendar Year he reigned | D98: 8 | G98: Solomon | H98: 7th year - I.e. the 7th Sacred Calendar Year he reigned
A99: 2935 | B99: Solomon | C99: 8th year - I.e. the 8th Sacred Calendar Year he reigned | D99: 9 | G99: Solomon | H99: 8th year - I.e. the 8th Sacred Calendar Year he reigned
A100: 2936 | B100: Solomon | C100: 9th year - I.e. the 9th Sacred Calendar Year he reigned | D100: 10 | G100: Solomon | H100: 9th year - I.e. the 9th Sacred Calendar Year he reigned
A101: 2937 | B101: Solomon | C101: 10th year - I.e. the 10th Sacred Calendar Year he reigned | D101: 11 | G101: Solomon | H101: 10th year - I.e. the 10th Sacred Calendar Year he reigned
A102: 2938 | B102: Solomon | C102: 11th year - I.e. the 11th Sacred Calendar Year he reigned | D102: 12 | G102: Solomon | H102: 11th year - I.e. the 11th Sacred Calendar Year he reigned
A103: 2939 | B103: Solomon | C103: 12th year - I.e. the 12th Sacred Calendar Year he reigned | D103: 13 | G103: Solomon | H103: 12th year - I.e. the 12th Sacred Calendar Year he reigned
A104: 2940 | B104: Solomon | C104: 13th year - I.e. the 13th Sacred Calendar Year he reigned | D104: 14 | G104: Solomon | H104: 13th year - I.e. the 13th Sacred Calendar Year he reigned
A105: 2941 | B105: Solomon | C105: 14th year - I.e. the 14th Sacred Calendar Year he reigned | D105: 15 | G105: Solomon | H105: 14th year - I.e. the 14th Sacred Calendar Year he reigned
A106: 2942 | B106: Solomon | C106: 15th year - I.e. the 15th Sacred Calendar Year he reigned | D106: 16 | G106: Solomon | H106: 15th year - I.e. the 15th Sacred Calendar Year he reigned
A107: 2943 | B107: Solomon | C107: 16th year - I.e. the 16th Sacred Calendar Year he reigned | D107: 17 | G107: Solomon | H107: 16th year - I.e. the 16th Sacred Calendar Year he reigned
A108: 2944 | B108: Solomon | C108: 17th year - I.e. the 17th Sacred Calendar Year he reigned | D108: 18 | G108: Solomon | H108: 17th year - I.e. the 17th Sacred Calendar Year he reigned
A109: 2945 | B109: Solomon | C109: 18th year - I.e. the 18th Sacred Calendar Year he reigned | D109: 19 | G109: Solomon | H109: 18th year - I.e. the 18th Sacred Calendar Year he reigned
A110: 2946 | B110: Solomon | C110: 19th year - I.e. the 19th Sacred Calendar Year he reigned | D110: 20 | G110: Solomon | H110: 19th year - I.e. the 19th Sacred Calendar Year he reigned
A111: 2947 | B111: Solomon | C111: 20th year - I.e. the 20th Sacred Calendar Year he reigned | D111: 21 | G111: Solomon | H111: 20th year - I.e. the 20th Sacred Calendar Year he reigned
A112: 2948 | B112: Solomon | C112: 21st year - I.e. the 21st Sacred Calendar Year he reigned | D112: 22 | G112: Solomon | H112: 21st year - I.e. the 21st Sacred Calendar Year he reigned
A113: 2949 | B113: Solomon | C113: 22nd year - I.e. the 22nd Sacred Calendar Year he reigned | D113: 23 | G113: Solomon | H113: 22nd year - I.e. the 22nd Sacred Calendar Year he reigned
A114: 2950 | B114: Solomon | C114: 23rd year - I.e. the 23rd Sacred Calendar Year he reigned | D114: 24 | G114: Solomon | H114: 23rd year - I.e. the 23rd Sacred Calendar Year he reigned
A115: 2951 | B115: Solomon | C115: 24th year - I.e. the 24th Sacred Calendar Year he reigned | D115: 25 | G115: Solomon | H115: 24th year - I.e. the 24th Sacred Calendar Year he reigned
A116: 2952 | B116: Solomon | C116: 25th year - I.e. the 25th Sacred Calendar Year he reigned | D116: 26 | G116: Solomon | H116: 25th year - I.e. the 25th Sacred Calendar Year he reigned
A117: 2953 | B117: Solomon | C117: 26th year - I.e. the 26th Sacred Calendar Year he reigned | D117: 27 | G117: Solomon | H117: 26th year - I.e. the 26th Sacred Calendar Year he reigned
A118: 2954 | B118: Solomon | C118: 27th year - I.e. the 27th Sacred Calendar Year he reigned | D118: 28 | G118: Solomon | H118: 27th year - I.e. the 27th Sacred Calendar Year he reigned
A119: 2955 | B119: Solomon | C119: 28th year - I.e. the 28th Sacred Calendar Year he reigned | D119: 29 | G119: Solomon | H119: 28th year - I.e. the 28th Sacred Calendar Year he reigned
A120: 2956 | B120: Solomon | C120: 29th year - I.e. the 29th Sacred Calendar Year he reigned | D120: 30 | G120: Solomon | H120: 29th year - I.e. the 29th Sacred Calendar Year he reigned
A121: 2957 | B121: Solomon | C121: 30th year - I.e. the 30th Sacred Calendar Year he reigned | D121: 31 | G121: Solomon | H121: 30th year - I.e. the 30th Sacred Calendar Year he reigned
A122: 2958 | B122: Solomon | C122: 31st year - I.e. the 31st Sacred Calendar Year he reigned | D122: 32 | G122: Solomon | H122: 31st year - I.e. the 31st Sacred Calendar Year he reigned
A123: 2959 | B123: Solomon | C123: 32nd year - I.e. the 32nd Sacred Calendar Year he reigned | D123: 33 | G123: Solomon | H123: 32nd year - I.e. the 32nd Sacred Calendar Year he reigned
A124: 2960 | B124: Solomon | C124: 33rd year - I.e. the 33rd Sacred Calendar Year he reigned | D124: 34 | G124: Solomon | H124: 33rd year - I.e. the 33rd Sacred Calendar Year he reigned
A125: 2961 | B125: Solomon | C125: 34th year - I.e. the 34th Sacred Calendar Year he reigned | D125: 35 | G125: Solomon | H125: 34th year - I.e. the 34th Sacred Calendar Year he reigned
A126: 2962 | B126: Solomon | C126: 35th year - I.e. the 35th Sacred Calendar Year he reigned | D126: 36 | G126: Solomon | H126: 35th year - I.e. the 35th Sacred Calendar Year he reigned
A127: 2963 | B127: Solomon | C127: 36th year - I.e. the 36th Sacred Calendar Year he reigned | D127: 37 | G127: Solomon | H127: 36th year - I.e. the 36th Sacred Calendar Year he reigned
A128: 2964 | B128: Solomon | C128: 37th year - I.e. the 37th Sacred Calendar Year he reigned | D128: 38 | G128: Solomon | H128: 37th year - I.e. the 37th Sacred Calendar Year he reigned
A129: 2965 | B129: Solomon | C129: 38th year - I.e. the 38th Sacred Calendar Year he reigned | D129: 39 | G129: Solomon | H129: 38th year - I.e. the 38th Sacred Calendar Year he reigned
A130: 2966 | B130: Solomon | C130: 39th year - I.e. the 39th Sacred Calendar Year he reigned | D130: =D131-1 -> 40 | G130: Solomon | H130: 39th year - I.e. the 39th Sacred Calendar Year he reigned
A131: 2967 | B131: Solomon | C131: 40th year - I.e. the 40th Sacred Calendar Year he reigned | D131: 41 | G131: Solomon | H131: 40th year - I.e. the 40th Sacred Calendar Year he reigned | J131: 1 Kings 11:42
A133: =A131 -> 2967 | B133: Rehoboam | C133: 1st year - I.e. the 1st Sacred Calendar Year he reigned | D133: 41 | G133: Jeroboam | H133: 1st year - I.e. the 1st Sacred Calendar Year he reigned | J133: 1 Kings 12; 14:21
A134: =A131+1 -> 2968 | B134: Rehoboam | C134: 2nd year - I.e. the 2nd Sacred Calendar Year he reigned | G134: Jeroboam | H134: 2nd year - I.e. the 2nd Sacred Calendar Year he reigned
A135: 2969 | B135: Rehoboam | C135: 3rd year - I.e. the 3rd Sacred Calendar Year he reigned | G135: Jeroboam | H135: 3rd year - I.e. the 3rd Sacred Calendar Year he reigned
A136: 2970 | B136: Rehoboam | C136: 4th year - I.e. the 4th Sacred Calendar Year he reigned | G136: Jeroboam | H136: 4th year - I.e. the 4th Sacred Calendar Year he reigned
A137: 2971 | B137: Rehoboam | C137: 5th year - I.e. the 5th Sacred Calendar Year he reigned | G137: Jeroboam | H137: 5th year - I.e. the 5th Sacred Calendar Year he reigned
A138: 2972 | B138: Rehoboam | C138: 6th year - I.e. the 6th Sacred Calendar Year he reigned | G138: Jeroboam | H138: 6th year - I.e. the 6th Sacred Calendar Year he reigned
A139: 2973 | B139: Rehoboam | C139: 7th year - I.e. the 7th Sacred Calendar Year he reigned | G139: Jeroboam | H139: 7th year - I.e. the 7th Sacred Calendar Year he reigned
A140: 2974 | B140: Rehoboam | C140: 8th year - I.e. the 8th Sacred Calendar Year he reigned | G140: Jeroboam | H140: 8th year - I.e. the 8th Sacred Calendar Year he reigned
A141: 2975 | B141: Rehoboam | C141: 9th year - I.e. the 9th Sacred Calendar Year he reigned | G141: Jeroboam | H141: 9th year - I.e. the 9th Sacred Calendar Year he reigned
A142: =A141+1 -> 2976 | B142: Rehoboam | C142: 10th year - I.e. the 10th Sacred Calendar Year he reigned | G142: Jeroboam | H142: 10th year - I.e. the 10th Sacred Calendar Year he reigned
A143: 2977 | B143: Rehoboam | C143: 11th year - I.e. the 11th Sacred Calendar Year he reigned | G143: Jeroboam | H143: 11th year - I.e. the 11th Sacred Calendar Year he reigned
A144: 2978 | B144: Rehoboam | C144: 12th year - I.e. the 12th Sacred Calendar Year he reigned | G144: Jeroboam | H144: 12th year - I.e. the 12th Sacred Calendar Year he reigned
A145: 2979 | B145: Rehoboam | C145: 13th year - I.e. the 13th Sacred Calendar Year he reigned | G145: Jeroboam | H145: 13th year - I.e. the 13th Sacred Calendar Year he reigned
A146: 2980 | B146: Rehoboam | C146: 14th year - I.e. the 14th Sacred Calendar Year he reigned | G146: Jeroboam | H146: 14th year - I.e. the 14th Sacred Calendar Year he reigned
A147: 2981 | B147: Rehoboam | C147: 15th year - I.e. the 15th Sacred Calendar Year he reigned | G147: Jeroboam | H147: 15th year - I.e. the 15th Sacred Calendar Year he reigned
A148: 2982 | B148: Rehoboam | C148: 16th year - I.e. the 16th Sacred Calendar Year he reigned | G148: Jeroboam | H148: 16th year - I.e. the 16th Sacred Calendar Year he reigned
A149: 2983 | B149: Rehoboam | C149: 17th year - I.e. the 17th Sacred Calendar Year he reigned | G149: Jeroboam | H149: 17th year - I.e. the 17th Sacred Calendar Year he reigned
A150: 2984 | B150: Rehoboam | C150: 18th year - I.e. the 18th Sacred Calendar Year he reigned | G150: Jeroboam | H150: 18th year - I.e. the 18th Sacred Calendar Year he reigned | J150: Rehoboam reigned 17 full years! 1 Kings 14:21 & 2 Chron. 12:13
A152: =A150 -> 2984 | B152: Abijah | C152: 1st year - I.e. the 1st Sacred Calendar Year he reigned | G152: Jeroboam | H152: 18th year - I.e. the 18th Sacred Calendar Year he reigned | J152: 1 Kings 15:1-2; 2 Chron. 13:2
A153: =A150+1 -> 2985 | B153: Abijah | C153: 2nd year - I.e. the 2nd Sacred Calendar Year he reigned | G153: Jeroboam | H153: 19th year - I.e. the 19th Sacred Calendar Year he reigned
A154: 2986 | B154: Abijah | C154: 3rd year - I.e. the 3rd Sacred Calendar Year he reigned | G154: Jeroboam | H154: 20th year - I.e. the 20th Sacred Calendar Year he reigned
A155: 2987 | B155: Abijah | C155: 4th year - I.e. the 4th Sacred Calendar Year he reigned | E155: 1 | G155: Jeroboam | H155: 21st year - I.e. the 21st Sacred Calendar Year he reigned | J155: Abijah reigned 3 full years! 1 Kings 15:2; 2 Chron. 13:2
A157: =A155 -> 2987 | B157: Asa | C157: 1st year - I.e. the 1st Sacred Calendar Year he reigned | G157: Jeroboam | H157: 21st year - I.e. the 21st Sacred Calendar Year he reigned
A158: =A155+1 -> 2988 | B158: Asa | C158: 2nd year - I.e. the 2nd Sacred Calendar Year he reigned | G158: Jeroboam | H158: 22nd year - I.e. the 22nd Sacred Calendar Year he reigned | J158: 1 Kings 14:20
A160: =A158 -> 2988 | B160: Asa | C160: 2nd year - I.e. the 2nd Sacred Calendar Year he reigned | G160: Nadab | H160: 1st year - I.e. the 1st Sacred Calendar Year he reigned | J160: 1 Kings 15:25
A161: =A158+1 -> 2989 | B161: Asa | C161: 3rd year - I.e. the 3rd Sacred Calendar Year he reigned | G161: Nadab | H161: 2nd year - I.e. the 2nd Sacred Calendar Year he reigned | J161: Nadab reigned more than one full year! 1 Kings 15:25 (Hebrew 'shanatim' = plural form of 'year' without other numerical designation. Compare Gen. 11:10 as mistranslated "two years after the flood")
A163: =A161 -> 2989 | B163: Asa | C163: 3rd year - I.e. the 3rd Sacred Calendar Year he reigned | G163: Baasha | H163: 1st year - I.e. the 1st Sacred Calendar Year he reigned | J163: 1 Kings 15:28, 33
A164: =A161+1 -> 2990 | B164: Asa | C164: 4th year - I.e. the 4th Sacred Calendar Year he reigned | G164: Baasha | H164: 2nd year - I.e. the 2nd Sacred Calendar Year he reigned
A165: 2991 | B165: Asa | C165: 5th year - I.e. the 5th Sacred Calendar Year he reigned | G165: Baasha | H165: 3rd year - I.e. the 3rd Sacred Calendar Year he reigned
A166: 2992 | B166: Asa | C166: 6th year - I.e. the 6th Sacred Calendar Year he reigned | D166: =D167-1 -> 0 | G166: Baasha | H166: 4th year - I.e. the 4th Sacred Calendar Year he reigned
A167: 2993 | B167: Asa | C167: 7th year - I.e. the 7th Sacred Calendar Year he reigned | D167: 1 | G167: Baasha | H167: 5th year - I.e. the 5th Sacred Calendar Year he reigned
A168: 2994 | B168: Asa | C168: 8th year - I.e. the 8th Sacred Calendar Year he reigned | D168: 2 | G168: Baasha | H168: 6th year - I.e. the 6th Sacred Calendar Year he reigned
A169: 2995 | B169: Asa | C169: 9th year - I.e. the 9th Sacred Calendar Year he reigned | D169: 3 | G169: Baasha | H169: 7th year - I.e. the 7th Sacred Calendar Year he reigned
A170: 2996 | B170: Asa | C170: 10th year - I.e. the 10th Sacred Calendar Year he reigned | D170: 4 | G170: Baasha | H170: 8th year - I.e. the 8th Sacred Calendar Year he reigned
A171: 2997 | B171: Asa | C171: 11th year - I.e. the 11th Sacred Calendar Year he reigned | D171: 5 | G171: Baasha | H171: 9th year - I.e. the 9th Sacred Calendar Year he reigned
A172: 2998 | B172: Asa | C172: 12th year - I.e. the 12th Sacred Calendar Year he reigned | D172: 6 | G172: Baasha | H172: 10th year - I.e. the 10th Sacred Calendar Year he reigned
A173: 2999 | B173: Asa | C173: 13th year - I.e. the 13th Sacred Calendar Year he reigned | D173: 7 | G173: Baasha | H173: 11th year - I.e. the 11th Sacred Calendar Year he reigned
A174: 3000 | B174: Asa | C174: 14th year - I.e. the 14th Sacred Calendar Year he reigned | D174: 8 | G174: Baasha | H174: 12th year - I.e. the 12th Sacred Calendar Year he reigned
A175: 3001 | B175: Asa | C175: 15th year - I.e. the 15th Sacred Calendar Year he reigned | D175: 9 | G175: Baasha | H175: 13th year - I.e. the 13th Sacred Calendar Year he reigned
A176: 3002 | B176: Asa | C176: 16th year - I.e. the 16th Sacred Calendar Year he reigned | D176: 10 | G176: Baasha | H176: 14th year - I.e. the 14th Sacred Calendar Year he reigned
A177: 3003 | B177: Asa | C177: 17th year - I.e. the 17th Sacred Calendar Year he reigned | D177: 11 | G177: Baasha | H177: 15th year - I.e. the 15th Sacred Calendar Year he reigned
A178: 3004 | B178: Asa | C178: 18th year - I.e. the 18th Sacred Calendar Year he reigned | D178: 12 | G178: Baasha | H178: 16th year - I.e. the 16th Sacred Calendar Year he reigned
A179: 3005 | B179: Asa | C179: 19th year - I.e. the 19th Sacred Calendar Year he reigned | D179: 13 | G179: Baasha | H179: 17th year - I.e. the 17th Sacred Calendar Year he reigned
A180: 3006 | B180: Asa | C180: 20th year - I.e. the 20th Sacred Calendar Year he reigned | D180: 14 | G180: Baasha | H180: 18th year - I.e. the 18th Sacred Calendar Year he reigned
A181: 3007 | B181: Asa | C181: 21st year - I.e. the 21st Sacred Calendar Year he reigned | D181: 15 | G181: Baasha | H181: 19th year - I.e. the 19th Sacred Calendar Year he reigned
A182: 3008 | B182: Asa | C182: 22nd year - I.e. the 22nd Sacred Calendar Year he reigned | D182: 16 | G182: Baasha | H182: 20th year - I.e. the 20th Sacred Calendar Year he reigned
A183: 3009 | B183: Asa | C183: 23rd year - I.e. the 23rd Sacred Calendar Year he reigned | D183: 17 | G183: Baasha | H183: 21st year - I.e. the 21st Sacred Calendar Year he reigned
A184: 3010 | B184: Asa | C184: 24th year - I.e. the 24th Sacred Calendar Year he reigned | D184: 18 | G184: Baasha | H184: 22nd year - I.e. the 22nd Sacred Calendar Year he reigned
A185: 3011 | B185: Asa | C185: 25th year - I.e. the 25th Sacred Calendar Year he reigned | D185: 19 | G185: Baasha | H185: 23rd year - I.e. the 23rd Sacred Calendar Year he reigned
A186: 3012 | B186: Asa | C186: 26th year - I.e. the 26th Sacred Calendar Year he reigned | D186: 20 | G186: Baasha | H186: 24th year - I.e. the 24th Sacred Calendar Year he reigned | J186: Baasha reigned 24 full years, however, if (- May be a valuable point of reference?) those years coincided with the Calendar years, then there is no 25th year of his reign. 1 Kings 15:28, 33. He died in the 26 year of Asa. 1 Kings 16:8.
A188: =A186 -> 3012 | B188: Asa | C188: 26th year - I.e. the 26th Sacred Calendar Year he reigned | D188: =D189-1 -> 20 | G188: Elah | H188: 1st year - I.e. the 1st Sacred Calendar Year he reigned | J188: 1 Kings 16:8
A189: =A186+1 -> 3013 | B189: Asa | C189: 27th year - I.e. the 27th Sacred Calendar Year he reigned | D189: 21 | G189: Elah | H189: 2nd year - I.e. the 2nd Sacred Calendar Year he reigned | J189: Elah reigned more than one full year! 1 Kings 16:8 (Hebrew 'shanatim' = plural form of 'year' without other numerical designation. Compare Gen. 11:10 as mistranslated "two years after the flood")
A191: =A189 -> 3013 | B191: Asa | C191: 27th year - I.e. the 27th Sacred Calendar Year he reigned | D191: 21 | G191: Zimri | H191: 7 days. | J191: 1 Kings 16:10, 15
A193: =A191 -> 3013 | B193: Asa | C193: 27th year - I.e. the 27th Sacred Calendar Year he reigned | D193: =D194-1 -> 21 | G193: Omri & Tibni contesting for power from the onset of their reigns | H193: 1st year - I.e. the 1st Sacred Calendar Year he reigned | J193: 1 Kings 16:21-23
A194: =A189+1 -> 3014 | B194: Asa | C194: 28th year - I.e. the 28th Sacred Calendar Year he reigned | D194: =D195-1 -> 22 | G194: Omri & Tibni contesting for power from the onset of their reigns | H194: 2nd year - I.e. the 2nd Sacred Calendar Year he reigned
A195: 3015 | B195: Asa | C195: 29th year - I.e. the 29th Sacred Calendar Year he reigned | D195: =D196-1 -> 23 | G195: Omri & Tibni contesting for power from the onset of their reigns | H195: 3rd year - I.e. the 3rd Sacred Calendar Year he reigned
A196: 3016 | B196: Asa | C196: 30th year - I.e. the 30th Sacred Calendar Year he reigned | D196: =D197-1 -> 24 | G196: Omri & Tibni contesting for power from the onset of their reigns | H196: 4th year - I.e. the 4th Sacred Calendar Year he reigned
A197: 3017 | B197: Asa | C197: 31st year - I.e. the 31st Sacred Calendar Year he reigned | D197: 25 | G197: Omri & Tibni contesting for power from the onset of their reigns | H197: 5th year - I.e. the 5th Sacred Calendar Year he reigned
A199: =A197 -> 3017 | B199: Asa | C199: 31st year - I.e. the 31st Sacred Calendar Year he reigned | D199: =D200-1 -> 25 | G199: Omri | H199: 5th year - I.e. the 5th Sacred Calendar Year he reigned | J199: 1 Kings 16:23
A200: =A197+1 -> 3018 | B200: Asa | C200: 32nd year - I.e. the 32nd Sacred Calendar Year he reigned | D200: 26 | G200: Omri | H200: 6th year - I.e. the 6th Sacred Calendar Year he reigned
A201: 3019 | B201: Asa | C201: 33rd year - I.e. the 33rd Sacred Calendar Year he reigned | D201: 27 | G201: Omri | H201: 7th year - I.e. the 7th Sacred Calendar Year he reigned
A202: 3020 | B202: Asa | C202: 34th year - I.e. the 34th Sacred Calendar Year he reigned | D202: 28 | G202: Omri | H202: 8th year - I.e. the 8th Sacred Calendar Year he reigned
A203: 3021 | B203: Asa | C203: 35th year - I.e. the 35th Sacred Calendar Year he reigned | D203: 29 | G203: Omri | H203: 9th year - I.e. the 9th Sacred Calendar Year he reigned
A204: 3022 | B204: Asa | C204: 36th year - I.e. the 36th Sacred Calendar Year he reigned | D204: 30 | G204: Omri | H204: 10th year - I.e. the 10th Sacred Calendar Year he reigned
A205: 3023 | B205: Asa | C205: 37th year - I.e. the 37th Sacred Calendar Year he reigned | D205: 31 | G205: Omri | H205: 11th year - I.e. the 11th Sacred Calendar Year he reigned
A206: 3024 | B206: Asa | C206: 38th year - I.e. the 38th Sacred Calendar Year he reigned | D206: 32 | G206: Omri | H206: 12th year - I.e. the 12th Sacred Calendar Year he reigned | J206: Omri reigned 12 full years. 1 Kings 16:23. He died in the 38th or, more probably, the 39th year of Asa (the Bible doesn't date his death), being succeeded by his own son in the 38th year of Asa, and there may be a brief period of coregency between father and son as indicated by the words "And his son Ahab reigned in his place" (more precisely translated "And reigned Ahab, his son, under him". Compare Strong's #8482). 1 Kings 16:23, 29. (Compare the similar situation, a coregency of tree years plus, when Ahab transferred his throne to his own son Ahaziah. See note below!)
A208: =A206 -> 3024 | B208: Asa | C208: 38th year - I.e. the 38th Sacred Calendar Year he reigned | D208: =D209-1 -> 32 | G208: Ahab | H208: 1st year - I.e. the 1st Sacred Calendar Year he reigned | J208: 1 Kings 16:29
A209: =A206+1 -> 3025 | B209: Asa | C209: 39th year - I.e. the 39th Sacred Calendar Year he reigned | D209: =D210-1 -> 33 | G209: Ahab | H209: 2nd year - I.e. the 2nd Sacred Calendar Year he reigned
A210: 3026 | B210: Asa | C210: 40th year - I.e. the 40th Sacred Calendar Year he reigned | D210: =D211-1 -> 34 | G210: Ahab | H210: 3rd year - I.e. the 3rd Sacred Calendar Year he reigned
A211: 3027 | B211: Asa | C211: 41st year - I.e. the 41st Sacred Calendar Year he reigned | D211: 35 | G211: Ahab | H211: 4th year - I.e. the 4th Sacred Calendar Year he reigned | J211: Asa died in his 41st year of reign, thus he did not rule a full 41 years. 2 Chron. 16:13
A213: =A211 -> 3027 | B213: Jehoshaphat | C213: 1st year - I.e. the 1st Sacred Calendar Year he reigned | D213: 35 | G213: Ahab | H213: 4th year - I.e. the 4th Sacred Calendar Year he reigned | J213: 1 Kings 22:41
A214: =A211+1 -> 3028 | B214: Jehoshaphat | C214: 2nd year - I.e. the 2nd Sacred Calendar Year he reigned | D214: =D215-1 -> 12 | G214: Ahab | H214: 5th year - I.e. the 5th Sacred Calendar Year he reigned
A215: 3029 | B215: Jehoshaphat | C215: 3rd year - I.e. the 3rd Sacred Calendar Year he reigned | D215: 13 | G215: Ahab | H215: 6th year - I.e. the 6th Sacred Calendar Year he reigned
... 416 more rows

Sheet Sheet5
A1: 1st Sabbath year | B1: 7 | C1: e | F1: Adam | I1: =0+6 -> 6 | J1: e | K1: =1+6 -> 7 | L1: e | S1: =S2+1 -> 236 | T1: 247
A2: 2nd Sabbath year | B2: 7 | C2: e | F2: -6 | I2: =I1+7 -> 13 | J2: e | K2: =K1+7 -> 14 | L2: e | S2: 235 | T2: 246
A3: 3rd Sabbath year | B3: 7 | C3: e | F3: 0=7 | I3: 20 | J3: e | K3: 21 | L3: e | S3: 234 | T3: 245
A4: 4th Sabbath year | B4: 7 | C4: e | I4: 27 | J4: e | K4: 28 | L4: e | S4: 233 | T4: 244
A5: 5th Sabbath year | B5: 7 | C5: e | I5: 34 | J5: e | K5: 35 | L5: e | S5: 232 | T5: 243
A6: 6th Sabbath year | B6: 7 | C6: e | I6: 41 | J6: e | K6: 42 | L6: e | S6: 231 | T6: 242
A7: 7th Sabbath year | B7: 7 | C7: e | I7: 48 | J7: e | K7: 49 | L7: e | S7: 230 | T7: 241
A8: 1st Year of Jubilee | B8: 50 | C8: e | I8: 49 | J8: e | K8: 50 | L8: e | N8: =ABS(I8-(Sheet1!I140+4)) -> 3861 | P8: =ABS(K8-(Sheet1!I140+4)) -> 3860 | S8: =S9+7 -> 229 | T8: =T9+7 -> 240 | V8: 2 Chron. 36:19-21; Lev. 25:8-10
A9: 2nd Year of Jubilee | B9: 50 | C9: e | I9: =I8+49 -> 98 | J9: e | K9: =K8+49 -> 99 | L9: e | N9: =ABS(I9-(Sheet1!I140+4)) -> 3812 | P9: =ABS(K9-(Sheet1!I140+4)) -> 3811 | S9: =S10 -> 222 | T9: =T10+1 -> 233 | V9: 2 Chron. 36:19-21; Lev. 25:8-10
A10: 1st Sabbath year | B10: 7 | C10: e | I10: =I9+6 -> 104 | J10: e | K10: =K9+6 -> 105 | L10: e | S10: =S11+1 -> 222 | T10: 232
A11: 2nd Sabbath year | B11: 7 | C11: e | I11: =I10+7 -> 111 | J11: e | K11: =K10+7 -> 112 | L11: e | S11: 221 | T11: 231
A12: 3rd Sabbath year | B12: 7 | C12: e | I12: =I11+7 -> 118 | J12: e | K12: =K11+7 -> 119 | L12: e | S12: 220 | T12: 230
A13: 4th Sabbath year | B13: 7 | C13: e | F13: Set | I13: =I12+7 -> 125 | J13: e | K13: =K12+7 -> 126 | L13: e | S13: =S20+1 -> 219 | T13: =T20+1 -> 229
A14: 1st Year/Day | B14: 1 | C14: e | I14: =I13+1 -> 126 | J14: e | K14: =K13+1 -> 127 | L14: e
A15: 2nd Year/Day | B15: 1 | C15: e | I15: 127 | J15: e | K15: 128 | L15: e
A16: 3rd Year/Day | B16: 1 | C16: e | I16: 128 | J16: e | K16: 129 | L16: e
A17: 4th Year/Day | B17: 1 | C17: e | I17: 129 | J17: e | K17: 130 | L17: e
A18: 5th Year/Day | B18: 1 | C18: e | I18: 130 | J18: e | K18: 131 | L18: e
A19: 6th Year/Day | B19: 1 | C19: e | I19: 131 | J19: e | K19: 132 | L19: e
A20: 5th Sabbath year | B20: 7 | C20: e | F20: -2 | I20: =I13+7 -> 132 | J20: e | K20: =K13+7 -> 133 | L20: e | S20: 218 | T20: 228
A21: 6th Sabbath year | B21: 7 | C21: e | F21: 4 | I21: =I20+7 -> 139 | J21: e | K21: =K20+7 -> 140 | L21: e | S21: 217 | T21: 227
A22: 7th Sabbath year | B22: 7 | C22: e | I22: =I21+7 -> 146 | J22: e | K22: =K21+7 -> 147 | L22: e | S22: 216 | T22: 226
A23: 3rd Year of Jubilee | B23: 50 | C23: e | I23: =I9+49 -> 147 | J23: e | K23: =K9+49 -> 148 | L23: e | N23: =ABS(I23-(Sheet1!I140+4)) -> 3763 | P23: =ABS(K23-(Sheet1!I140+4)) -> 3762 | S23: =S31+7 -> 215 | T23: =T31+7 -> 225 | V23: 2 Chron. 36:19-21; Lev. 25:8-10
A24: 1st Sabbath year | B24: 7 | C24: e | I24: =I23+6 -> 153 | J24: e | K24: =K23+6 -> 154 | L24: e | S24: 215 | T24: 225
A25: 2nd Sabbath year | B25: 7 | C25: e | I25: =I24+7 -> 160 | J25: e | K25: =K24+7 -> 161 | L25: e | S25: 214 | T25: 224
A26: 3rd Sabbath year | B26: 7 | C26: e | I26: 167 | J26: e | K26: 168 | L26: e | S26: 213 | T26: 223
A27: 4th Sabbath year | B27: 7 | C27: e | F27: Set | I27: 174 | J27: e | K27: 175 | L27: e | S27: 212 | T27: 222
A28: 5th Sabbath year | B28: 7 | C28: e | F28: -2 | I28: 181 | J28: e | K28: 182 | L28: e | S28: 211 | T28: 221
A29: 6th Sabbath year | B29: 7 | C29: e | F29: 4 | I29: 188 | J29: e | K29: 189 | L29: e | S29: 210 | T29: 220
A30: 7th Sabbath year | B30: 7 | C30: e | I30: 195 | J30: e | K30: 196 | L30: e | S30: 209 | T30: 219
A31: 4th Year of Jubilee | B31: 50 | C31: e | I31: =I23+49 -> 196 | J31: e | K31: =K23+49 -> 197 | L31: e | N31: =ABS(I31-(Sheet1!I140+4)) -> 3714 | P31: =ABS(K31-(Sheet1!I140+4)) -> 3713 | S31: =S32 -> 208 | T31: =T32+1 -> 218 | V31: 2 Chron. 36:19-21; Lev. 25:8-10
A32: 1st Sabbath year | B32: 7 | C32: e | I32: =I31+6 -> 202 | J32: e | K32: =K31+6 -> 203 | L32: e | S32: =S33+1 -> 208 | T32: 217
A33: 2nd Sabbath year | B33: 7 | C33: e | I33: =I32+7 -> 209 | J33: e | K33: =K32+7 -> 210 | L33: e | S33: 207 | T33: 216
A34: 3rd Sabbath year | B34: 7 | C34: e | I34: 216 | J34: e | K34: 217 | L34: e | S34: 206 | T34: 215
A35: 4th Sabbath year | B35: 7 | C35: e | I35: 223 | J35: e | K35: 224 | L35: e | S35: 205 | T35: 214
A36: 5th Sabbath year | B36: 7 | C36: e | F36: Enos | I36: 230 | J36: e | K36: 231 | L36: e | S36: 204 | T36: 213
A37: 6th Sabbath year | B37: 7 | C37: e | F37: -2 | I37: 237 | J37: e | K37: 238 | L37: e | S37: 203 | T37: 212
A38: 7th Sabbath year | B38: 7 | C38: e | F38: 4 | I38: 244 | J38: e | K38: 245 | L38: e | S38: 202 | T38: 211
A39: 5th Year of Jubilee | B39: 50 | C39: e | I39: =I31+49 -> 245 | J39: e | K39: =K31+49 -> 246 | L39: e | N39: =ABS(I39-(Sheet1!I140+4)) -> 3665 | P39: =ABS(K39-(Sheet1!I140+4)) -> 3664 | S39: =S40+7 -> 201 | T39: =T40+7 -> 210 | V39: 2 Chron. 36:19-21; Lev. 25:8-10
A40: 6th Year of Jubilee | B40: 50 | C40: e | I40: =I39+49 -> 294 | J40: e | K40: =K39+49 -> 295 | L40: e | N40: =ABS(I40-(Sheet1!I140+4)) -> 3616 | P40: =ABS(K40-(Sheet1!I140+4)) -> 3615 | S40: =S41 -> 194 | T40: =T41+1 -> 203 | V40: 2 Chron. 36:19-21; Lev. 25:8-10
A41: 1st Sabbath year | B41: 7 | C41: e | I41: =I40+6 -> 300 | J41: e | K41: =K40+6 -> 301 | L41: e | S41: =S42+1 -> 194 | T41: 202
A42: 2nd Sabbath year | B42: 7 | C42: e | I42: =I41+7 -> 307 | J42: e | K42: =K41+7 -> 308 | L42: e | S42: 193 | T42: 201
A43: 3rd Sabbath year | B43: 7 | C43: e | I43: 314 | J43: e | K43: 315 | L43: e | S43: 192 | T43: 200
A44: 4th Sabbath year | B44: 7 | C44: e | F44: Cainan | I44: 321 | J44: e | K44: 322 | L44: e | S44: 191 | T44: 199
A45: 5th Sabbath year | B45: 7 | C45: e | F45: -3 | I45: 328 | J45: e | K45: 329 | L45: e | S45: 190 | T45: 198
A46: 6th Sabbath year | B46: 7 | C46: e | F46: 3 | I46: 335 | J46: e | K46: 336 | L46: e | S46: 189 | T46: 197
A47: 7th Sabbath year | B47: 7 | C47: e | I47: 342 | J47: e | K47: 343 | L47: e | S47: 188 | T47: 196
A48: 7th Year of Jubilee | B48: 50 | C48: e | I48: =I40+49 -> 343 | J48: e | K48: =K40+49 -> 344 | L48: e | N48: =ABS(I48-(Sheet1!I140+4)) -> 3567 | P48: =ABS(K48-(Sheet1!I140+4)) -> 3566 | S48: =S49+7 -> 187 | T48: =T49+7 -> 195 | V48: 2 Chron. 36:19-21; Lev. 25:8-10
A49: 8th Year of Jubilee | B49: 50 | C49: e | E49: Mahalaleel | I49: =I48+49 -> 392 | J49: e | K49: =K48+49 -> 393 | L49: e | N49: =ABS(I49-(Sheet1!I140+4)) -> 3518 | P49: =ABS(K49-(Sheet1!I140+4)) -> 3517 | S49: =S50+1 -> 180 | T49: =T50+1 -> 188 | V49: 2 Chron. 36:19-21; Lev. 25:8-10
A50: 1st Sabbath year | B50: 7 | C50: e | F50: -3 | I50: =I49+6 -> 398 | J50: e | K50: =K49+6 -> 399 | L50: e | S50: =S51 -> 179 | T50: =T51+1 -> 187
A51: 2nd Sabbath year | B51: 7 | C51: e | F51: 3 | I51: =I50+7 -> 405 | J51: e | K51: =K50+7 -> 406 | L51: e | S51: 179 | T51: 186
A52: 3rd Sabbath year | B52: 7 | C52: e | I52: 412 | J52: e | K52: 413 | L52: e | S52: 178 | T52: 185
A53: 4th Sabbath year | B53: 7 | C53: e | I53: 419 | J53: e | K53: 420 | L53: e | S53: 177 | T53: 184
A54: 5th Sabbath year | B54: 7 | C54: e | I54: 426 | J54: e | K54: 427 | L54: e | S54: 176 | T54: 183
A55: 6th Sabbath year | B55: 7 | C55: e | I55: 433 | J55: e | K55: 434 | L55: e | S55: 175 | T55: 182
A56: 7th Sabbath year | B56: 7 | C56: e | I56: 440 | J56: e | K56: 441 | L56: e | S56: 174 | T56: 181
A57: 9th Year of Jubilee | B57: 50 | C57: e | I57: =I49+49 -> 441 | J57: e | K57: =K49+49 -> 442 | L57: e | N57: =ABS(I57-(Sheet1!I140+4)) -> 3469 | P57: =ABS(K57-(Sheet1!I140+4)) -> 3468 | S57: =S58 -> 173 | T57: 180 | V57: 2 Chron. 36:19-21; Lev. 25:8-10
A58: 1st Sabbath year | B58: 7 | C58: e | I58: =I57+6 -> 447 | J58: e | K58: =K57+6 -> 448 | L58: e | S58: =S59+1 -> 173 | T58: 179
A59: 2nd Sabbath year | B59: 7 | C59: e | F59: Jared | I59: =I58+7 -> 454 | J59: e | K59: =K58+7 -> 455 | L59: e | S59: 172 | T59: 178
A60: 3rd Sabbath year | B60: 7 | C60: e | F60: -1 | I60: 461 | J60: e | K60: 462 | L60: e | S60: 171 | T60: 177
A61: 4th Sabbath year | B61: 7 | C61: e | F61: 5 | I61: 468 | J61: e | K61: 469 | L61: e | S61: 170 | T61: 176
A62: 5th Sabbath year | B62: 7 | C62: e | I62: 475 | J62: e | K62: 476 | L62: e | S62: 169 | T62: 175
A63: 6th Sabbath year | B63: 7 | C63: e | I63: 482 | J63: e | K63: 483 | L63: e | S63: 168 | T63: 174
A64: 7th Sabbath year | B64: 7 | C64: e | I64: 489 | J64: e | K64: 490 | L64: e | S64: 167 | T64: 173
A65: 10th Year of Jubilee | B65: 50 | C65: e | I65: =I57+49 -> 490 | J65: e | K65: =K57+49 -> 491 | L65: e | N65: =ABS(I65-(Sheet1!I140+4)) -> 3420 | P65: =ABS(K65-(Sheet1!I140+4)) -> 3419 | S65: =S67+7 -> 166 | T65: =T67+7 -> 172 | V65: 2 Chron. 36:19-21; Lev. 25:8-10
A66: Dawn of the Millenium | I66: 500 | J66: e | K66: 501 | L66: e | N66: =ABS(I66-(Sheet1!I140+4)) -> 3410 | P66: =ABS(K66-(Sheet1!I140+4)) -> 3409
A67: 11th Year of Jubilee | B67: 50 | C67: e | I67: =I65+49 -> 539 | J67: e | K67: =K65+49 -> 540 | L67: e | N67: =ABS(I67-(Sheet1!I140+4)) -> 3371 | P67: =ABS(K67-(Sheet1!I140+4)) -> 3370 | S67: =S68+7 -> 159 | T67: =T68+7 -> 165 | V67: 2 Chron. 36:19-21; Lev. 25:8-10
A68: 12th Year of Jubilee | B68: 50 | C68: e | I68: =I67+49 -> 588 | J68: e | K68: =K67+49 -> 589 | L68: e | N68: =ABS(I68-(Sheet1!I140+4)) -> 3322 | P68: =ABS(K68-(Sheet1!I140+4)) -> 3321 | S68: =S69 -> 152 | T68: =T69+1 -> 158 | V68: 2 Chron. 36:19-21; Lev. 25:8-10
A69: 1st Sabbath year | B69: 7 | C69: e | I69: =I68+6 -> 594 | J69: e | K69: =K68+6 -> 595 | L69: e | S69: =S70+1 -> 152 | T69: 157
A70: 2nd Sabbath year | B70: 7 | C70: e | I70: =I69+7 -> 601 | J70: e | K70: =K69+7 -> 602 | L70: e | S70: 151 | T70: 156
A71: 3rd Sabbath year | B71: 7 | C71: e | I71: 608 | J71: e | K71: 609 | L71: e | S71: 150 | T71: 155
A72: 4th Sabbath year | B72: 7 | C72: e | F72: Enoch | I72: 615 | J72: e | K72: 616 | L72: e | S72: 149 | T72: 154
A73: 5th Sabbath year | B73: 7 | C73: e | F73: 0 | I73: 622 | J73: e | K73: 623 | L73: e | S73: 148 | T73: 153
A74: 6th Sabbath year | B74: 7 | C74: e | F74: 6 | I74: 629 | J74: e | K74: 630 | L74: e | S74: 147 | T74: 152
A75: 7th Sabbath year | B75: 7 | C75: e | I75: 636 | J75: e | K75: 637 | L75: e | S75: 146 | T75: 151
A76: 13th Year of Jubilee | B76: 50 | C76: e | I76: =I68+49 -> 637 | J76: e | K76: =K68+49 -> 638 | L76: e | N76: =ABS(I76-(Sheet1!I140+4)) -> 3273 | P76: =ABS(K76-(Sheet1!I140+4)) -> 3272 | S76: =S77+7 -> 145 | T76: =T77+7 -> 150 | V76: 2 Chron. 36:19-21; Lev. 25:8-10
A77: 14th Year of Jubilee | B77: 50 | C77: e | E77: Methusaleh | I77: =I76+49 -> 686 | J77: e | K77: =K76+49 -> 687 | L77: e | N77: =ABS(I77-(Sheet1!I140+4)) -> 3224 | P77: =ABS(K77-(Sheet1!I140+4)) -> 3223 | S77: =S78 -> 138 | T77: =T78+1 -> 143 | V77: 2 Chron. 36:19-21; Lev. 25:8-10
A78: 1st Sabbath year | B78: 7 | C78: e | F78: -5 | I78: =I77+6 -> 692 | J78: e | K78: =K77+6 -> 693 | L78: e | S78: =S79+1 -> 138 | T78: 142
A79: 2nd Sabbath year | B79: 7 | C79: e | F79: 1 | I79: =I78+7 -> 699 | J79: e | K79: =K78+7 -> 700 | L79: e | S79: 137 | T79: 141
A80: 3rd Sabbath year | B80: 7 | C80: e | I80: 706 | J80: e | K80: 707 | L80: e | S80: 136 | T80: 140
A81: 4th Sabbath year | B81: 7 | C81: e | I81: 713 | J81: e | K81: 714 | L81: e | S81: 135 | T81: 139
A82: 5th Sabbath year | B82: 7 | C82: e | I82: 720 | J82: e | K82: 721 | L82: e | S82: 134 | T82: 138
A83: 6th Sabbath year | B83: 7 | C83: e | I83: 727 | J83: e | K83: 728 | L83: e | S83: 133 | T83: 137
A84: 7th Sabbath year | B84: 7 | C84: e | I84: 734 | J84: e | K84: 735 | L84: e | S84: 132 | T84: 136
A85: 15th Year of Jubilee | B85: 50 | C85: e | I85: =I77+49 -> 735 | J85: e | K85: =K77+49 -> 736 | L85: e | N85: =ABS(I85-(Sheet1!I140+4)) -> 3175 | P85: =ABS(K85-(Sheet1!I140+4)) -> 3174 | S85: =S86+7 -> 131 | T85: =T86+7 -> 135 | V85: 2 Chron. 36:19-21; Lev. 25:8-10
A86: 16th Year of Jubilee | B86: 50 | C86: e | I86: =I85+49 -> 784 | J86: e | K86: =K85+49 -> 785 | L86: e | N86: =ABS(I86-(Sheet1!I140+4)) -> 3126 | P86: =ABS(K86-(Sheet1!I140+4)) -> 3125 | S86: =S94+7 -> 124 | T86: =T94+7 -> 128 | V86: 2 Chron. 36:19-21; Lev. 25:8-10
A87: 1st Sabbath year | B87: 7 | C87: e | F87: -5 | I87: =I86+6 -> 790 | J87: e | K87: =K86+6 -> 791 | L87: e | S87: =S88+1 -> 124 | T87: =T88+1 -> 128
A88: 2nd Sabbath year | B88: 7 | C88: e | F88: 1 | I88: =I87+7 -> 797 | J88: e | K88: =K87+7 -> 798 | L88: e | S88: 123 | T88: 127
A89: 3rd Sabbath year | B89: 7 | C89: e | I89: 804 | J89: e | K89: 805 | L89: e | S89: 122 | T89: 126
A90: 4th Sabbath year | B90: 7 | C90: e | I90: 811 | J90: e | K90: 812 | L90: e | S90: 121 | T90: 125
A91: 5th Sabbath year | B91: 7 | C91: e | I91: 818 | J91: e | K91: 819 | L91: e | S91: 120 | T91: 124
A92: 6th Sabbath year | B92: 7 | C92: e | I92: 825 | J92: e | K92: 826 | L92: e | S92: 119 | T92: 123
A93: 7th Sabbath year | B93: 7 | C93: e | I93: 832 | J93: e | K93: 833 | L93: e | S93: 118 | T93: 122
A94: 17th Year of Jubilee | B94: 50 | C94: e | I94: =I86+49 -> 833 | J94: e | K94: =K86+49 -> 834 | L94: e | N94: =ABS(I94-(Sheet1!I140+4)) -> 3077 | P94: =ABS(K94-(Sheet1!I140+4)) -> 3076 | S94: =S95 -> 117 | T94: =T95+1 -> 121 | V94: 2 Chron. 36:19-21; Lev. 25:8-10
A95: 1st Sabbath year | B95: 7 | C95: e | I95: =I94+6 -> 839 | J95: e | K95: =K94+6 -> 840 | L95: e | S95: =S96+1 -> 117 | T95: 120
A96: 2nd Sabbath year | B96: 7 | C96: e | I96: =I95+7 -> 846 | J96: e | K96: =K95+7 -> 847 | L96: e | S96: 116 | T96: 119
A97: 3rd Sabbath year | B97: 7 | C97: e | I97: 853 | J97: e | K97: 854 | L97: e | S97: 115 | T97: 118
A98: 4th Sabbath year | B98: 7 | C98: e | I98: 860 | J98: e | K98: 861 | L98: e | S98: 114 | T98: 117
A99: 5th Sabbath year | B99: 7 | C99: e | F99: Lamech | I99: 867 | J99: e | K99: 868 | L99: e | S99: 113 | T99: 116
A100: 6th Sabbath year | B100: 7 | C100: e | F100: 0 | I100: 874 | J100: e | K100: 875 | L100: e | S100: 112 | T100: 115
A101: 7th Sabbath year | B101: 7 | C101: e | F101: 6 | I101: 881 | J101: e | K101: 882 | L101: e | S101: 111 | T101: 114
A102: 18th Year of Jubilee | B102: 50 | C102: e | I102: =I94+49 -> 882 | J102: e | K102: =K94+49 -> 883 | L102: e | N102: =ABS(I102-(Sheet1!I140+4)) -> 3028 | P102: =ABS(K102-(Sheet1!I140+4)) -> 3027 | S102: =S103+7 -> 110 | T102: =T103+7 -> 113 | V102: 2 Chron. 36:19-21; Lev. 25:8-10
A103: 19th Year of Jubilee | B103: 50 | C103: e | I103: =I102+49 -> 931 | J103: e | K103: =K102+49 -> 932 | L103: e | N103: =ABS(I103-(Sheet1!I140+4)) -> 2979 | P103: =ABS(K103-(Sheet1!I140+4)) -> 2978 | R103: Adam died at the end of 19th cycle of 49 years | S103: =S104+7 -> 103 | T103: =T104+7 -> 106 | V103: 2 Chron. 36:19-21; Lev. 25:8-10
A104: 20th Year of Jubilee | B104: 50 | C104: e | I104: =I103+49 -> 980 | J104: e | K104: =K103+49 -> 981 | L104: e | N104: =ABS(I104-(Sheet1!I140+4)) -> 2930 | P104: =ABS(K104-(Sheet1!I140+4)) -> 2929 | R104: Enoch is taken before the night… | S104: =S106+7 -> 96 | T104: =T106+7 -> 99 | V104: 2 Chron. 36:19-21; Lev. 25:8-10
A105: Eve of the new Millenium | I105: =I66+500 -> 1000 | J105: e | K105: =K66+500 -> 1001 | L105: e | N105: =ABS(I105-(Sheet1!I140+4)) -> 2910 | P105: =ABS(K105-(Sheet1!I140+4)) -> 2909
A106: 21st Year of Jubilee | B106: 50 | C106: e | I106: =I104+49 -> 1029 | J106: e | K106: =K104+49 -> 1030 | L106: e | N106: =ABS(I106-(Sheet1!I140+4)) -> 2881 | P106: =ABS(K106-(Sheet1!I140+4)) -> 2880 | S106: =S107 -> 89 | T106: =T107+1 -> 92 | V106: 2 Chron. 36:19-21; Lev. 25:8-10
A107: 1st Sabbath year | B107: 7 | C107: e | I107: =I106+6 -> 1035 | J107: e | K107: =K106+6 -> 1036 | L107: e | S107: 89 | T107: 91
A108: 2nd Sabbath year | B108: 7 | C108: e | I108: =I107+7 -> 1042 | J108: e | K108: =K107+7 -> 1043 | L108: e | S108: 88 | T108: 90
A109: 3rd Sabbath year | B109: 7 | C109: e | F109: Noah | I109: 1049 | J109: e | K109: 1050 | L109: e | S109: 87 | T109: 89
A110: 4th Sabbath year | B110: 7 | C110: e | F110: 0 | I110: 1056 | J110: e | K110: 1057 | L110: e | S110: 86 | T110: 88
A111: 5th Sabbath year | B111: 7 | C111: e | F111: 6 | I111: 1063 | J111: e | K111: 1064 | L111: e | S111: 85 | T111: 87
A112: 6th Sabbath year | B112: 7 | C112: e | I112: 1070 | J112: e | K112: 1071 | L112: e | S112: 84 | T112: 86
A113: 7th Sabbath year | B113: 7 | C113: e | I113: 1077 | J113: e | K113: 1078 | L113: e | S113: 83 | T113: 85
A114: 22nd Year of Jubilee | B114: 50 | C114: e | I114: =I106+49 -> 1078 | J114: e | K114: =K106+49 -> 1079 | L114: e | N114: =ABS(I114-(Sheet1!I140+4)) -> 2832 | P114: =ABS(K114-(Sheet1!I140+4)) -> 2831 | S114: =S115+7 -> 82 | T114: 84 | V114: 2 Chron. 36:19-21; Lev. 25:8-10
A115: 23rd Year of Jubilee | B115: 50 | C115: e | I115: =I114+49 -> 1127 | J115: e | K115: =K114+49 -> 1128 | L115: e | N115: =ABS(I115-(Sheet1!I140+4)) -> 2783 | P115: =ABS(K115-(Sheet1!I140+4)) -> 2782 | S115: 75 | T115: 77 | V115: 2 Chron. 36:19-21; Lev. 25:8-10
A116: 24th Year of Jubilee | B116: 50 | C116: e | I116: 1176 | J116: e | K116: 1177 | L116: e | N116: =ABS(I116-(Sheet1!I140+4)) -> 2734 | P116: =ABS(K116-(Sheet1!I140+4)) -> 2733 | S116: 68 | T116: 70 | V116: 2 Chron. 36:19-21; Lev. 25:8-10
A117: 25th Year of Jubilee | B117: 50 | C117: e | I117: 1225 | J117: e | K117: 1226 | L117: e | N117: =ABS(I117-(Sheet1!I140+4)) -> 2685 | P117: =ABS(K117-(Sheet1!I140+4)) -> 2684 | S117: 61 | T117: 63 | V117: 2 Chron. 36:19-21; Lev. 25:8-10
A118: 26th Year of Jubilee | B118: 50 | C118: e | I118: 1274 | J118: e | K118: 1275 | L118: e | N118: =ABS(I118-(Sheet1!I140+4)) -> 2636 | P118: =ABS(K118-(Sheet1!I140+4)) -> 2635 | S118: 54 | T118: 56 | V118: 2 Chron. 36:19-21; Lev. 25:8-10
A119: 27th Year of Jubilee | B119: 50 | C119: e | I119: 1323 | J119: e | K119: 1324 | L119: e | N119: =ABS(I119-(Sheet1!I140+4)) -> 2587 | P119: =ABS(K119-(Sheet1!I140+4)) -> 2586 | S119: 47 | T119: 49 | V119: 2 Chron. 36:19-21; Lev. 25:8-10
A120: 28th Year of Jubilee | B120: 50 | C120: e | I120: 1372 | J120: e | K120: 1373 | L120: e | N120: =ABS(I120-(Sheet1!I140+4)) -> 2538 | P120: =ABS(K120-(Sheet1!I140+4)) -> 2537 | S120: 40 | T120: 42 | V120: 2 Chron. 36:19-21; Lev. 25:8-10
A121: 29th Year of Jubilee | B121: 50 | C121: e | I121: 1421 | J121: e | K121: 1422 | L121: e | N121: =ABS(I121-(Sheet1!I140+4)) -> 2489 | P121: =ABS(K121-(Sheet1!I140+4)) -> 2488 | S121: 33 | T121: 35 | V121: 2 Chron. 36:19-21; Lev. 25:8-10
A122: 30th Year of Jubilee | B122: 50 | C122: e | I122: 1470 | J122: e | K122: 1471 | L122: e | N122: =ABS(I122-(Sheet1!I140+4)) -> 2440 | P122: =ABS(K122-(Sheet1!I140+4)) -> 2439 | S122: =S124+7 -> 26 | T122: =T124+7 -> 28 | V122: 2 Chron. 36:19-21; Lev. 25:8-10
A123: Dawn of the Millenium | I123: =I105+500 -> 1500 | J123: e | K123: =K105+500 -> 1501 | L123: e | N123: =ABS(I123-(Sheet1!I140+4)) -> 2410 | P123: =ABS(K123-(Sheet1!I140+4)) -> 2409
A124: 31st Year of Jubilee | B124: 50 | C124: e | I124: =I122+49 -> 1519 | J124: e | K124: =K122+49 -> 1520 | L124: e | N124: =ABS(I124-(Sheet1!I140+4)) -> 2391 | P124: =ABS(K124-(Sheet1!I140+4)) -> 2390 | S124: =S125 -> 19 | T124: =T125+1 -> 21 | V124: 2 Chron. 36:19-21; Lev. 25:8-10
A125: 1st Sabbath year | B125: 7 | C125: e | I125: =I124+6 -> 1525 | J125: e | K125: =K124+6 -> 1526 | L125: e | R125: Years left until the Flood | S125: =S126+1 -> 19 | T125: 20
A126: 2nd Sabbath year | B126: 7 | C126: e | I126: =I125+7 -> 1532 | J126: e | K126: =K125+7 -> 1533 | L126: e | R126: =I139-I126 -> 123 | S126: 18 | T126: 19
A127: 3rd Sabbath year | B127: 7 | C127: e | I127: 1539 | J127: e | K127: 1540 | L127: e | R127: =I139-I127 -> 116 | S127: 17 | T127: 18
A128: 4th Sabbath year | B128: 7 | C128: e | I128: 1546 | J128: e | K128: 1547 | L128: e | R128: =I139-I128 -> 109 | S128: 16 | T128: 17
A129: 5th Sabbath year | B129: 7 | C129: e | F129: Shem | I129: 1553 | J129: e | K129: 1554 | L129: e | R129: =I139-I129 -> 102 | S129: 15 | T129: 16
A130: 6th Sabbath year | B130: 7 | C130: e | F130: -4 | I130: 1560 | J130: e | K130: 1561 | L130: e | R130: =I139-I130 -> 95 | S130: 14 | T130: 15
A131: 7th Sabbath year | B131: 7 | C131: e | F131: 2 | I131: 1567 | J131: e | K131: 1568 | L131: e | R131: =I139-I131 -> 88 | S131: 13 | T131: 14
A132: 32nd Year of Jubilee | B132: 50 | C132: e | I132: =I124+49 -> 1568 | J132: e | K132: =K124+49 -> 1569 | L132: e | N132: =ABS(I132-(Sheet1!I140+4)) -> 2342 | P132: =ABS(K132-(Sheet1!I140+4)) -> 2341 | R132: =I139-I132 -> 87 | S132: =S133+7 -> 12 | T132: =T133+7 -> 13 | V132: 2 Chron. 36:19-21; Lev. 25:8-10
A133: 33rd Year of Jubilee | B133: 50 | C133: e | I133: =I132+49 -> 1617 | J133: e | K133: =K132+49 -> 1618 | L133: e | N133: =ABS(I133-(Sheet1!I140+4)) -> 2293 | P133: =ABS(K133-(Sheet1!I140+4)) -> 2292 | R133: =I139-I133 -> 38 | S133: =S134 -> 5 | T133: =T134+1 -> 6 | V133: 2 Chron. 36:19-21; Lev. 25:8-10
A134: 1st Sabbath year | B134: 7 | C134: e | I134: =I133+6 -> 1623 | J134: e | K134: =K133+6 -> 1624 | L134: e | N134: =ABS(I134-(Sheet1!I140+4)) -> 2287 | P134: =ABS(K134-(Sheet1!I140+4)) -> 2286 | R134: =I139-I134 -> 32 | S134: 5 | T134: 5 | V134: 2 Chron. 36:19-21; Lev. 25:8-10
A135: 2nd Sabbath year | B135: 7 | C135: e | I135: =I134+7 -> 1630 | J135: e | K135: =K134+7 -> 1631 | L135: e | N135: =ABS(I135-(Sheet1!I140+4)) -> 2280 | P135: =ABS(K135-(Sheet1!I140+4)) -> 2279 | R135: =I139-I135 -> 25 | S135: 4 | T135: 4 | V135: 2 Chron. 36:19-21; Lev. 25:8-10
A136: 3rd Sabbath year | B136: 7 | C136: e | I136: 1637 | J136: e | K136: 1638 | L136: e | N136: =ABS(I136-(Sheet1!I140+4)) -> 2273 | P136: =ABS(K136-(Sheet1!I140+4)) -> 2272 | R136: =I139-I136 -> 18 | S136: 3 | T136: 3 | V136: 2 Chron. 36:19-21; Lev. 25:8-10
A137: 4th Sabbath year | B137: 7 | C137: e | I137: 1644 | J137: e | K137: 1645 | L137: e | N137: =ABS(I137-(Sheet1!I140+4)) -> 2266 | P137: =ABS(K137-(Sheet1!I140+4)) -> 2265 | R137: =I139-I137 -> 11 | S137: =S138+1 -> 2 | T137: =T138+1 -> 2 | V137: 2 Chron. 36:19-21; Lev. 25:8-10
A138: 5th Sabbath year | B138: 7 | C138: e | I138: 1651 | J138: e | K138: 1652 | L138: e | N138: =ABS(I138-(Sheet1!I140+4)) -> 2259 | P138: =ABS(K138-(Sheet1!I140+4)) -> 2258 | R138: =I139-I138 -> 4 | S138: 1 | T138: 1 | V138: 2 Chron. 36:19-21; Lev. 25:8-10
A139: - 4th year in cycle of 7 years (39th of 49 yrs) | I139: =Sheet1!I16 -> 1655 | K139: =Sheet1!K16 -> 1656 | N139: =ABS(I139-(Sheet1!I140+4)) -> 2255 | P139: =ABS(K139-(Sheet1!I140+4)) -> 2254 | R139: The Flood
A140: 6th Sabbath year | B140: 7 | C140: e | I140: =I138+7 -> 1658 | J140: e | K140: =K138+7 -> 1659 | L140: e | N140: =ABS(I140-(Sheet1!I140+4)) -> 2252 | P140: =ABS(K140-(Sheet1!I140+4)) -> 2251 | V140: 2 Chron. 36:19-21; Lev. 25:8-10
A141: 7th Sabbath year | B141: 7 | C141: e | I141: 1665 | J141: e | K141: 1666 | L141: e | N141: =ABS(I141-(Sheet1!I140+4)) -> 2245 | P141: =ABS(K141-(Sheet1!I140+4)) -> 2244 | V141: 2 Chron. 36:19-21; Lev. 25:8-10
A142: 34th Year of Jubilee | B142: 50 | C142: e | I142: =I133+49 -> 1666 | J142: e | K142: =K133+49 -> 1667 | L142: e | N142: =ABS(I142-(Sheet1!I140+4)) -> 2244 | P142: =ABS(K142-(Sheet1!I140+4)) -> 2243 | V142: 2 Chron. 36:19-21; Lev. 25:8-10
A143: 35th Year of Jubilee | B143: 50 | C143: e | I143: =I142+49 -> 1715 | J143: e | K143: =K142+49 -> 1716 | L143: e | N143: =ABS(I143-(Sheet1!I140+4)) -> 2195 | P143: =ABS(K143-(Sheet1!I140+4)) -> 2194 | V143: 2 Chron. 36:19-21; Lev. 25:8-10
A144: 36th Year of Jubilee | B144: 50 | C144: e | I144: =I143+49 -> 1764 | J144: e | K144: =K143+49 -> 1765 | L144: e | N144: =ABS(I144-(Sheet1!I140+4)) -> 2146 | P144: =ABS(K144-(Sheet1!I140+4)) -> 2145 | V144: 2 Chron. 36:19-21; Lev. 25:8-10
A145: 37th Year of Jubilee | B145: 50 | C145: e | I145: =I144+49 -> 1813 | J145: e | K145: =K144+49 -> 1814 | L145: e | N145: =ABS(I145-(Sheet1!I140+4)) -> 2097 | P145: =ABS(K145-(Sheet1!I140+4)) -> 2096 | V145: 2 Chron. 36:19-21; Lev. 25:8-10
A146: 38th Year of Jubilee | B146: 50 | C146: e | I146: =I145+49 -> 1862 | J146: e | K146: =K145+49 -> 1863 | L146: e | N146: =ABS(I146-(Sheet1!I140+4)) -> 2048 | P146: =ABS(K146-(Sheet1!I140+4)) -> 2047 | V146: 2 Chron. 36:19-21; Lev. 25:8-10
A147: 39th Year of Jubilee | B147: 50 | C147: e | I147: =I146+49 -> 1911 | J147: e | K147: =K146+49 -> 1912 | L147: e | N147: =ABS(I147-(Sheet1!I140+4)) -> 1999 | P147: =ABS(K147-(Sheet1!I140+4)) -> 1998 | V147: 2 Chron. 36:19-21; Lev. 25:8-10
A148: 1st Sabbath year | B148: 7 | C148: e | I148: =I147+6 -> 1917 | J148: e | K148: =K147+6 -> 1918 | L148: e
A149: 2nd Sabbath year | B149: 7 | C149: e | I149: =I148+7 -> 1924 | J149: e | K149: =K148+7 -> 1925 | L149: e
A150: 3rd Sabbath year | B150: 7 | C150: e | I150: 1931 | J150: e | K150: 1932 | L150: e
A151: 4th Sabbath year | B151: 7 | C151: e | I151: 1938 | J151: e | K151: 1939 | L151: e
A152: 5th Sabbath year | B152: 7 | C152: e | F152: Abram | I152: 1945 | J152: e | K152: 1946 | L152: e
A153: 6th Sabbath year | B153: 7 | C153: e | F153: -6 | I153: 1952 | J153: e | K153: 1953 | L153: e
A154: 7th Sabbath year | B154: 7 | C154: e | F154: 0=7 | I154: 1959 | J154: e | K154: 1960 | L154: e
A155: 40th Year of Jubilee | B155: 50 | C155: e | I155: =I147+49 -> 1960 | J155: e | K155: =K147+49 -> 1961 | L155: e | N155: =ABS(I155-(Sheet1!I140+4)) -> 1950 | P155: =ABS(K155-(Sheet1!I140+4)) -> 1949 | V155: 2 Chron. 36:19-21; Lev. 25:8-10
A156: Eve of the new Millenium | I156: =I123+500 -> 2000 | J156: e | K156: =K123+500 -> 2001 | L156: e | N156: =ABS(I156-(Sheet1!I140+4)) -> 1910 | P156: =ABS(K156-(Sheet1!I140+4)) -> 1909
A157: 41st Year of Jubilee | B157: 50 | C157: e | I157: =I155+49 -> 2009 | J157: e | K157: =K155+49 -> 2010 | L157: e | N157: =ABS(I157-(Sheet1!I140+4)) -> 1901 | P157: =ABS(K157-(Sheet1!I140+4)) -> 1900 | V157: 2 Chron. 36:19-21; Lev. 25:8-10
A158: 42nd Year of Jubilee | B158: 50 | C158: e | I158: =I157+49 -> 2058 | J158: e | K158: =K157+49 -> 2059 | L158: e | N158: =ABS(I158-(Sheet1!I140+4)) -> 1852 | P158: =ABS(K158-(Sheet1!I140+4)) -> 1851 | V158: 2 Chron. 36:19-21; Lev. 25:8-10
A159: 43rd Year of Jubilee | B159: 50 | C159: e | I159: 2107 | J159: e | K159: 2108 | L159: e | N159: =ABS(I159-(Sheet1!I140+4)) -> 1803 | P159: =ABS(K159-(Sheet1!I140+4)) -> 1802 | V159: 2 Chron. 36:19-21; Lev. 25:8-10
A160: 44th Year of Jubilee | B160: 50 | C160: e | I160: 2156 | J160: e | K160: 2157 | L160: e | N160: =ABS(I160-(Sheet1!I140+4)) -> 1754 | P160: =ABS(K160-(Sheet1!I140+4)) -> 1753 | V160: 2 Chron. 36:19-21; Lev. 25:8-10
A161: 45th Year of Jubilee | B161: 50 | C161: e | I161: 2205 | J161: e | K161: 2206 | L161: e | N161: =ABS(I161-(Sheet1!I140+4)) -> 1705 | P161: =ABS(K161-(Sheet1!I140+4)) -> 1704 | V161: 2 Chron. 36:19-21; Lev. 25:8-10
A162: 1st Sabbath year | B162: 7 | C162: e | I162: =I161+6 -> 2211 | J162: e | K162: =K161+6 -> 2212 | L162: e | N162: =ABS(I162-(Sheet1!I140+4)) -> 1699 | P162: =ABS(K162-(Sheet1!I140+4)) -> 1698
A163: 2nd Sabbath year | B163: 7 | C163: e | I163: =I162+7 -> 2218 | J163: e | K163: =K162+7 -> 2219 | L163: e | N163: =ABS(I163-(Sheet1!I140+4)) -> 1692 | P163: =ABS(K163-(Sheet1!I140+4)) -> 1691
A164: 3rd Sabbath year | B164: 7 | C164: e | I164: 2225 | J164: e | K164: 2226 | L164: e | N164: =ABS(I164-(Sheet1!I140+4)) -> 1685 | P164: =ABS(K164-(Sheet1!I140+4)) -> 1684
A165: 4th Sabbath year | B165: 7 | C165: e | I165: 2232 | J165: e | K165: 2233 | L165: e | N165: =ABS(I165-(Sheet1!I140+4)) -> 1678 | P165: =ABS(K165-(Sheet1!I140+4)) -> 1677
A166: 5th Sabbath year | B166: 7 | C166: e | I166: 2239 | J166: e | K166: 2240 | L166: e | N166: =ABS(I166-(Sheet1!I140+4)) -> 1671 | P166: =ABS(K166-(Sheet1!I140+4)) -> 1670
A167: 6th Sabbath year | B167: 7 | C167: e | I167: 2246 | J167: e | K167: 2247 | L167: e | N167: =ABS(I167-(Sheet1!I140+4)) -> 1664 | P167: =ABS(K167-(Sheet1!I140+4)) -> 1663
A168: 7th Sabbath year | B168: 7 | C168: e | I168: 2253 | J168: e | K168: 2254 | L168: e | N168: =ABS(I168-(Sheet1!I140+4)) -> 1657 | P168: =ABS(K168-(Sheet1!I140+4)) -> 1656
A169: 46th Year of Jubilee | B169: 50 | C169: e | I169: =I161+49 -> 2254 | J169: e | K169: =K161+49 -> 2255 | L169: e | N169: =ABS(I169-(Sheet1!I140+4)) -> 1656 | P169: =ABS(K169-(Sheet1!I140+4)) -> 1655 | V169: 2 Chron. 36:19-21; Lev. 25:8-10
A170: 47th Year of Jubilee | B170: 50 | C170: e | I170: 2303 | J170: e | K170: 2304 | L170: e | N170: =ABS(I170-(Sheet1!I140+4)) -> 1607 | P170: =ABS(K170-(Sheet1!I140+4)) -> 1606 | V170: 2 Chron. 36:19-21; Lev. 25:8-10
A171: 48th Year of Jubilee | B171: 50 | C171: e | I171: 2352 | J171: e | K171: 2353 | L171: e | N171: =ABS(I171-(Sheet1!I140+4)) -> 1558 | P171: =ABS(K171-(Sheet1!I140+4)) -> 1557 | V171: 2 Chron. 36:19-21; Lev. 25:8-10
A172: 49th Year of Jubilee | B172: 50 | C172: e | I172: 2401 | J172: e | K172: 2402 | L172: e | N172: =ABS(I172-(Sheet1!I140+4)) -> 1509 | P172: =ABS(K172-(Sheet1!I140+4)) -> 1508 | V172: 2 Chron. 36:19-21; Lev. 25:8-10
A173: 50th Year of Jubilee | B173: 50 | C173: e | I173: 2450 | J173: e | K173: 2451 | L173: e | N173: =ABS(I173-(Sheet1!I140+4)) -> 1460 | P173: =ABS(K173-(Sheet1!I140+4)) -> 1459 | R173: Exodus 15 Nisan, 2451/1473 | V173: 2 Chron. 36:19-21; Lev. 25:8-10
A174: 51st Year of Jubilee | B174: 50 | C174: e | I174: 2499 | J174: e | K174: 2500 | L174: e | N174: =ABS(I174-(Sheet1!I140+4)) -> 1411 | P174: =ABS(K174-(Sheet1!I140+4)) -> 1410 | V174: 2 Chron. 36:19-21; Lev. 25:8-10
A175: Dawn of the Millenium | I175: =I156+500 -> 2500 | J175: e | K175: =K156+500 -> 2501 | L175: e | N175: =ABS(I175-(Sheet1!I140+4)) -> 1410 | P175: =ABS(K175-(Sheet1!I140+4)) -> 1409 | R175: Promised Land entered
A176: 52nd Year of Jubilee | B176: 50 | C176: e | I176: =I174+49 -> 2548 | J176: e | K176: =K174+49 -> 2549 | L176: e | N176: =ABS(I176-(Sheet1!I140+4)) -> 1362 | P176: =ABS(K176-(Sheet1!I140+4)) -> 1361
A177: 53rd Year of Jubilee | B177: 50 | C177: e | I177: =I176+49 -> 2597 | J177: e | K177: =K176+49 -> 2598 | L177: e | N177: =ABS(I177-(Sheet1!I140+4)) -> 1313 | P177: =ABS(K177-(Sheet1!I140+4)) -> 1312
A178: 54th Year of Jubilee | B178: 50 | C178: e | I178: 2646 | J178: e | K178: 2647 | L178: e | N178: =ABS(I178-(Sheet1!I140+4)) -> 1264 | P178: =ABS(K178-(Sheet1!I140+4)) -> 1263
A179: 55th Year of Jubilee | B179: 50 | C179: e | I179: 2695 | J179: e | K179: 2696 | L179: e | N179: =ABS(I179-(Sheet1!I140+4)) -> 1215 | P179: =ABS(K179-(Sheet1!I140+4)) -> 1214
A180: 56th Year of Jubilee | B180: 50 | C180: e | I180: 2744 | J180: e | K180: 2745 | L180: e | N180: =ABS(I180-(Sheet1!I140+4)) -> 1166 | P180: =ABS(K180-(Sheet1!I140+4)) -> 1165
A181: 57th Year of Jubilee | B181: 50 | C181: e | I181: 2793 | J181: e | K181: 2794 | L181: e | N181: =ABS(I181-(Sheet1!I140+4)) -> 1117 | P181: =ABS(K181-(Sheet1!I140+4)) -> 1116
A182: 58th Year of Jubilee | B182: 50 | C182: e | I182: 2842 | J182: e | K182: 2843 | L182: e | N182: =ABS(I182-(Sheet1!I140+4)) -> 1068 | P182: =ABS(K182-(Sheet1!I140+4)) -> 1067
A183: 1st Sabbath year | B183: 7 | C183: e | I183: =I182+6 -> 2848 | J183: e | K183: =K182+6 -> 2849 | L183: e | N183: =ABS(I183-(Sheet1!I140+4)) -> 1062 | P183: =ABS(K183-(Sheet1!I140+4)) -> 1061
A184: 2nd Sabbath year | B184: 7 | C184: e | I184: =I183+7 -> 2855 | J184: e | K184: =K183+7 -> 2856 | L184: e | N184: =ABS(I184-(Sheet1!I140+4)) -> 1055 | P184: =ABS(K184-(Sheet1!I140+4)) -> 1054
A185: 3rd Sabbath year | B185: 7 | C185: e | I185: 2862 | J185: e | K185: 2863 | L185: e | N185: =ABS(I185-(Sheet1!I140+4)) -> 1048 | P185: =ABS(K185-(Sheet1!I140+4)) -> 1047
A186: 4th Sabbath year | B186: 7 | C186: e | I186: 2869 | J186: e | K186: 2870 | L186: e | N186: =ABS(I186-(Sheet1!I140+4)) -> 1041 | P186: =ABS(K186-(Sheet1!I140+4)) -> 1040
A187: Saul's anointing by Samuel? | I187: =Sheet1!I99 -> 2877 | K187: =I187+1 -> 2878 | N187: =ABS(I187-(Sheet1!I140+4)) -> 1033 | P187: =ABS(K187-(Sheet1!I140+4)) -> 1032 | U187: This, i.e. the '60' below, is the 1st of the Sabbath Years ADDING up to the 60 (when the 1 Jubilee years are excluded) non-Sabbath years among the 70 years of Babylonian captivity counting backwards from the start of Evil-merodach's reign. There were 10 Sabbath Years (and 1 Jubilee year) during those 70 Babylonian Years, thus 70-10=60 to make up for! This year, i.e. the 2877th Year, is also the 1st year (?) of Saul's reign. It makes sense to consider each man for himself responsible for keeping the sabbath year of rest, and the consequences of not so doing, and thus no congregational responsibility for Israel as a People. NOTICE: This is the 5th Sabbath Year following the 58th Jubilee Cycle. What follows then is the beginning of the 6th week following the 58 Jubilee Cycle.
A188: 5th Sabbath year | B188: 7 | C188: e | I188: =I186+7 -> 2876 | J188: e | K188: =K186+7 -> 2877 | L188: e | N188: =ABS(I188-(Sheet1!I140+4)) -> 1034 | P188: =ABS(K188-(Sheet1!I140+4)) -> 1033 | U188: =U191+1 -> 60
A189: Saul's anointing by Samuel? | I189: =Sheet1!I99 -> 2877 | K189: =I189+1 -> 2878 | N189: =ABS(I189-(Sheet1!I140+4)) -> 1033 | P189: =ABS(K189-(Sheet1!I140+4)) -> 1032
A190: David's anointing by Samuel? If this date is correct it occurred in the 5th Year of the 6th Sabbath Cycle of the 59th Jubilee Cycle… Significance? Well, on the 5th Day the Beasts of the Seas and the Fowl of the Air were created. Adding One (5th+1=6th & 59th+1=60th), as in One Man or as in the One God, one obtains merely that which is the characteristic of Man, i.e. the Mark of Man, the number 6. Thus the very best any kingdom of Man, even the kingdom of David, can ever be, is the same as that of Man, i.e. Each One is responsible, and to the extent that responsibilities are being delegated to another, e.g. a king, a kingdom, or any government, the result is a BEAST OF THE SEA, a Leviathan, a Dragon, the Mark of the Beast, 666, IMPERFECTION! In other words: THE LESSON is that NO king, NO kingdom, NO government, other than that of the Creator alone, can ever even hope to attain perfection. For anyone to give their allegiance and/or support etc. to such a creation is DOOMED FROM THE VERY BEGINNING, EVEN UNDER THE VERY BEST OF CIRCUMSTANCES! One other question: Does the above, and the synchronicity found in similar events, e.g. 49 years later, confirm the veracity of this assumed date for the anointing of king David by Samuel? Who knows? | I190: =I188+5 -> 2881 | K190: =K188+5 -> 2882 | N190: =ABS(I190-(Sheet1!I140+4)) -> 1029 | P190: =ABS(K190-(Sheet1!I140+4)) -> 1028
A191: 6th Sabbath year | B191: 7 | C191: e | I191: =I188+7 -> 2883 | J191: e | K191: =K188+7 -> 2884 | L191: e | N191: =ABS(I191-(Sheet1!I140+4)) -> 1027 | P191: =ABS(K191-(Sheet1!I140+4)) -> 1026 | U191: =U192+1 -> 59
A192: 7th Sabbath year | B192: 7 | C192: e | I192: 2890 | J192: e | K192: 2891 | L192: e | N192: =ABS(I192-(Sheet1!I140+4)) -> 1020 | P192: =ABS(K192-(Sheet1!I140+4)) -> 1019 | U192: =U194+1 -> 58
A193: 59th Year of Jubilee | B193: 50 | C193: e | I193: =I182+49 -> 2891 | J193: e | K193: =K182+49 -> 2892 | L193: e | N193: =ABS(I193-(Sheet1!I140+4)) -> 1019 | P193: =ABS(K193-(Sheet1!I140+4)) -> 1018
A194: 1st Sabbath year | B194: 7 | C194: e | I194: =I193+6 -> 2897 | J194: e | K194: =K193+6 -> 2898 | L194: e | N194: =ABS(I194-(Sheet1!I140+4)) -> 1013 | P194: =ABS(K194-(Sheet1!I140+4)) -> 1012 | U194: =U195+1 -> 57
A195: 2nd Sabbath year | B195: 7 | C195: e | I195: =I194+7 -> 2904 | J195: e | K195: =K194+7 -> 2905 | L195: e | N195: =ABS(I195-(Sheet1!I140+4)) -> 1006 | P195: =ABS(K195-(Sheet1!I140+4)) -> 1005 | U195: =U196+1 -> 56
A196: 3rd Sabbath year | B196: 7 | C196: e | I196: 2911 | J196: e | K196: 2912 | L196: e | N196: =ABS(I196-(Sheet1!I140+4)) -> 999 | P196: =ABS(K196-(Sheet1!I140+4)) -> 998 | U196: =U197+1 -> 55
A197: 4th Sabbath year | B197: 7 | C197: e | I197: 2918 | J197: e | K197: 2919 | L197: e | N197: =ABS(I197-(Sheet1!I140+4)) -> 992 | P197: =ABS(K197-(Sheet1!I140+4)) -> 991 | U197: =U198+1 -> 54 | V197: This, i.e. the '54' below, is the 1st of the Sabbath Years ADDING up to the 54 (when the 1 Jubilee years are excluded) non-Sabbath years among the 70-7 years of Babylonian captivity counting backwards from the start of Evil-merodach's reign. There were 9 Sabbath Years (and 1 Jubilee year) during those 70-7 Babylonian Years, thus 63-9=54 to make up for! This year, i.e. the 2926th Year, is also the 39th year of David's reign. Were kings Saul, and David, up to this point in time keeping the Sabbath years!!!? NOTICE: This is the 5th Sabbath Year of the 60th Jubilee Cycle. What follows then is the beginning of the last 6th week within the 6th Cycle of 10 Jubilee Cycles, i.e. a kind of 66 mark.
A198: 5th Sabbath year | B198: 7 | C198: e | I198: 2925 | J198: e | K198: 2926 | L198: e | N198: =ABS(I198-(Sheet1!I140+4)) -> 985 | P198: =ABS(K198-(Sheet1!I140+4)) -> 984 | U198: =U200+1 -> 53 | V198: =V200+1 -> 54
A199: Foundation laid to Solomon's Temple. NOTICE the synchronicity between this event and that of David's being anointed by Samuel perhaps exactly 49 years prior. Significance? See comments pertaining to David's anointing by Samuel (above)! | I199: =I198+5 -> 2930 | K199: =K198+5 -> 2931 | N199: =ABS(I199-(Sheet1!I140+4)) -> 980 | P199: =ABS(K199-(Sheet1!I140+4)) -> 979
A200: 6th Sabbath year | B200: 7 | C200: e | I200: =I198+7 -> 2932 | J200: e | K200: =K198+7 -> 2933 | L200: e | N200: =ABS(I200-(Sheet1!I140+4)) -> 978 | P200: =ABS(K200-(Sheet1!I140+4)) -> 977 | T200: This, i.e. the '59' below, is the 1st of the Sabbath Years ADDING up to the 59 non-Sabbath years among the 70 years of Babylonian captivity counting backwards from the start of Evil-merodach's reign. There were 11 Sabbath Years during those 70 Babylonian Years, thus 70-11=59 to make up for! This year, i.e. the 2940th Year, is also the 14th year of Solomon's reign. Were kings Saul, David and Solomon up to this point in time keeping the Sabbath years!!!? NOTICE: This is the last Sabbath Year within the first 60 Jubilee Cycles. What follows then is the beginning o the 7th Cycle of 10 Jubilee Cycles, i.e. a kind of a sabbath cycle in and of itself. Is that what One would call the Day of the Lord? Would the outcome have been different if the people had been focusing more on learning and applying the Sabbath Principles of the Lord during this next Cycle of 10 Jubilee Cycles? The answer is of course a given regardless of what timeperiod it pertains to, but perhaps even more here, just the same as THE 7th Day being different from just keeping 'sabbath' on any day of the week... The Temple of Solomon was finished in 2937, thus the subsequent Sabbath Year, i.e. the one labeled '59' below, was also the first Sabbath Year following the completion of Solomon's Temple. Could it be then that the non-kept Sabbath Years being accounted for during Jeremiah's prophetic definition of the 70 years of captivity - as here uniquely applied - started to accumulate and somehow to be recorded - based upon the finishing of Solomon's Temple???? | U200: =U201+1 -> 52 | V200: 53
... 291 more rows

Sheet Sheet6
A1: =Sheet4!A295 -> 3095 | B1: Jehoash (Joash) | C1: 35th year - I.e. the 35th Sacred Calendar Year he reigned | D1: =D2-1 -> 22 | G1: Jehoahaz | H1: 13th year - I.e. the 13th Sacred Calendar Year he reigned
A2: =A1+1 -> 3096 | B2: Jehoash (Joash) | C2: 36th year - I.e. the 36th Sacred Calendar Year he reigned | D2: =D3-1 -> 23 | G2: Jehoahaz | H2: 14th year - I.e. the 14th Sacred Calendar Year he reigned
A3: =A2+1 -> 3097 | B3: Jehoash (Joash) | C3: 37th year - I.e. the 37th Sacred Calendar Year he reigned | D3: 24 | G3: Jehoahaz | H3: 15th year - I.e. the 15th Sacred Calendar Year he reigned
A5: =A3 -> 3097 | B5: Jehoash (Joash) | C5: 37th year - I.e. the 37th Sacred Calendar Year he reigned | G5: Jehoahaz's 15th & Jehoash's | H5: 1st year - I.e. the 1st Sacred Calendar Year he reigned | J5: 2 Kings 13:10
A6: =A3+1 -> 3098 | B6: Jehoash (Joash) | C6: 38th year - I.e. the 38th Sacred Calendar Year he reigned | D6: 25 | G6: Jehoahaz's 16th & Jehoash's | H6: 2nd year - I.e. the 2nd Sacred Calendar Year he reigned
A8: =A6 -> 3098 | B8: Jehoash's 38th & Amaziah's | C8: 1st year - I.e. the 1st Sacred Calendar Year he reigned | D8: 25 | G8: Jehoahaz's 16th & Jehoash's | H8: 2nd year - I.e. the 2nd Sacred Calendar Year he reigned | J8: 2 Kings 14:1
A9: =A6+1 -> 3099 | B9: Jehoash's 39th & Amaziah's | C9: 2nd year - I.e. the 2nd Sacred Calendar Year he reigned | G9: Jehoahaz's 17th & Jehoash's | H9: 3rd year - I.e. the 3rd Sacred Calendar Year he reigned | J9: 2 Kings 13:1
A10: =A9+1 -> 3100 | B10: Jehoash's 40th & Amaziah's | C10: 3rd year - I.e. the 3rd Sacred Calendar Year he reigned | G10: Jehoash | H10: 4th year - I.e. the 4th Sacred Calendar Year he reigned | J10: 2 Chron. 24:1
A11: =A10+1 -> 3101 | B11: Amaziah | C11: 4th year - I.e. the 4th Sacred Calendar Year he reigned | G11: Jehoash | H11: 5th year - I.e. the 5th Sacred Calendar Year he reigned
A12: 3102 | B12: Amaziah | C12: 5th year - I.e. the 5th Sacred Calendar Year he reigned | G12: Jehoash | H12: 6th year - I.e. the 6th Sacred Calendar Year he reigned
A13: 3103 | B13: Amaziah | C13: 6th year - I.e. the 6th Sacred Calendar Year he reigned | G13: Jehoash | H13: 7th year - I.e. the 7th Sacred Calendar Year he reigned
A14: 3104 | B14: Amaziah | C14: 7th year - I.e. the 7th Sacred Calendar Year he reigned | G14: Jehoash | H14: 8th year - I.e. the 8th Sacred Calendar Year he reigned
A15: 3105 | B15: Amaziah | C15: 8th year - I.e. the 8th Sacred Calendar Year he reigned | G15: Jehoash | H15: 9th year - I.e. the 9th Sacred Calendar Year he reigned
A16: 3106 | B16: Amaziah | C16: 9th year - I.e. the 9th Sacred Calendar Year he reigned | G16: Jehoash | H16: 10th year - I.e. the 10th Sacred Calendar Year he reigned
A17: 3107 | B17: Amaziah | C17: 10th year - I.e. the 10th Sacred Calendar Year he reigned | G17: Jehoash | H17: 11th year - I.e. the 11th Sacred Calendar Year he reigned
A18: 3108 | B18: Amaziah | C18: 11th year - I.e. the 11th Sacred Calendar Year he reigned | G18: Jehoash | H18: 12th year - I.e. the 12th Sacred Calendar Year he reigned
A19: 3109 | B19: Amaziah | C19: 12th year - I.e. the 12th Sacred Calendar Year he reigned | G19: Jehoash | H19: 13th year - I.e. the 13th Sacred Calendar Year he reigned
A20: 3110 | B20: Amaziah | C20: 13th year - I.e. the 13th Sacred Calendar Year he reigned | G20: Jehoash | H20: 14th year - I.e. the 14th Sacred Calendar Year he reigned
A21: 3111 | B21: Amaziah | C21: 14th year - I.e. the 14th Sacred Calendar Year he reigned | G21: Jehoash | H21: 15th year - I.e. the 15th Sacred Calendar Year he reigned
A22: 3112 | B22: Amaziah | C22: 15th year - I.e. the 15th Sacred Calendar Year he reigned | G22: Jehoash | H22: 16th year - I.e. the 16th Sacred Calendar Year he reigned | J22: 2 Kings 13:10
A24: =A22 -> 3112 | B24: Amaziah | C24: 15th year - I.e. the 15th Sacred Calendar Year he reigned | D24: =D25-1 -> 2 | G24: Jeroboam | H24: 1st year - I.e. the 1st Sacred Calendar Year he reigned | J24: 2 Kings 14:23
A25: =A22+1 -> 3113 | B25: Amaziah | C25: 16th year - I.e. the 16th Sacred Calendar Year he reigned | D25: =D26-1 -> 3 | G25: Jeroboam | H25: 2nd year - I.e. the 2nd Sacred Calendar Year he reigned
A26: 3114 | B26: Amaziah | C26: 17th year - I.e. the 17th Sacred Calendar Year he reigned | D26: =D27-1 -> 4 | G26: Jeroboam | H26: 3rd year - I.e. the 3rd Sacred Calendar Year he reigned
A27: 3115 | B27: Amaziah's 18th & Azariah's | C27: 1st year - I.e. the 1st Sacred Calendar Year he reigned | D27: =D28-1 -> 5 | G27: Jeroboam | H27: 4th year - I.e. the 4th Sacred Calendar Year he reigned
A28: 3116 | B28: Amaziah's 19th & Azariah's | C28: 2nd year - I.e. the 2nd Sacred Calendar Year he reigned | D28: =D29-1 -> 6 | G28: Jeroboam | H28: 5th year - I.e. the 5th Sacred Calendar Year he reigned
A29: 3117 | B29: Amaziah's 20th & Azariah's | C29: 3rd year - I.e. the 3rd Sacred Calendar Year he reigned | D29: 7 | G29: Jeroboam | H29: 6th year - I.e. the 6th Sacred Calendar Year he reigned
A30: 3118 | B30: Amaziah's 21th & Azariah's | C30: 4th year - I.e. the 4th Sacred Calendar Year he reigned | D30: 8 | G30: Jeroboam | H30: 7th year - I.e. the 7th Sacred Calendar Year he reigned
A31: 3119 | B31: Amaziah's 22th & Azariah's | C31: 5th year - I.e. the 5th Sacred Calendar Year he reigned | D31: 9 | G31: Jeroboam | H31: 8th year - I.e. the 8th Sacred Calendar Year he reigned
A32: 3120 | B32: Amaziah's 23th & Azariah's | C32: 6th year - I.e. the 6th Sacred Calendar Year he reigned | D32: 10 | G32: Jeroboam | H32: 9th year - I.e. the 9th Sacred Calendar Year he reigned
A33: 3121 | B33: Amaziah's 24th & Azariah's | C33: 7th year - I.e. the 7th Sacred Calendar Year he reigned | D33: 11 | G33: Jeroboam | H33: 10th year - I.e. the 10th Sacred Calendar Year he reigned
A34: 3122 | B34: Amaziah's 25th & Azariah's | C34: 8th year - I.e. the 8th Sacred Calendar Year he reigned | D34: 12 | G34: Jeroboam | H34: 11th year - I.e. the 11th Sacred Calendar Year he reigned
A35: 3123 | B35: Amaziah's 26th & Azariah's | C35: 9th year - I.e. the 9th Sacred Calendar Year he reigned | D35: 13 | G35: Jeroboam | H35: 12th year - I.e. the 12th Sacred Calendar Year he reigned
A36: 3124 | B36: Amaziah's 27th & Azariah's | C36: 10th year - I.e. the 10th Sacred Calendar Year he reigned | D36: 14 | G36: Jeroboam | H36: 13th year - I.e. the 13th Sacred Calendar Year he reigned
A37: 3125 | B37: Amaziah's 28th & Azariah's | C37: 11th year - I.e. the 11th Sacred Calendar Year he reigned | D37: =D38-1 -> 15 | G37: Jeroboam | H37: 14th year - I.e. the 14th Sacred Calendar Year he reigned
A38: 3126 | B38: Amaziah's 29th & Azariah's | C38: 12th year - I.e. the 12th Sacred Calendar Year he reigned | D38: 16 | G38: Jeroboam | H38: 15th year - I.e. the 15th Sacred Calendar Year he reigned | J38: 2 Kings 14:2,17; 2 Chron. 25:1,25,27-28
A40: =A37+1 -> 3126 | B40: Azariah (Uzziah) | C40: 12th year - I.e. the 12th Sacred Calendar Year he reigned | D40: 16 | G40: Jeroboam | H40: 15th year - I.e. the 15th Sacred Calendar Year he reigned | J40: 2 Kings 14:21; 2 Chron. 26:1,3
A41: =A38+1 -> 3127 | B41: Azariah (Uzziah) | C41: 13th year - I.e. the 13th Sacred Calendar Year he reigned | D41: =D42-1 -> 17 | G41: Jeroboam | H41: 16th year - I.e. the 16th Sacred Calendar Year he reigned
A42: 3128 | B42: Azariah (Uzziah) | C42: 14th year - I.e. the 14th Sacred Calendar Year he reigned | D42: 18 | G42: Jeroboam | H42: 17th year - I.e. the 17th Sacred Calendar Year he reigned | J42: [Hosea's prophecy of Israel's destruction Hosea 1:1-5 "The word of the Lord that came unto Hosea, the son of Beeri, in the days of Uzziah, Jotham, Ahaz, and Hezekiah, kings of Judah, and in the days of Jeroboam the son of Joash, king of Israel… And the Lord said... for yet a little while, and I will avenge the blood of Jezreel upon the house of Jehu, and will cause to cease the kingdom of the house of Israel. And it shall come to pass at that day, that I will break the bow of Israel in the valley of Jezreel. (KJV)]
A43: 3129 | B43: Azariah (Uzziah) | C43: 15th year - I.e. the 15th Sacred Calendar Year he reigned | D43: 19 | G43: Jeroboam | H43: 18th year - I.e. the 18th Sacred Calendar Year he reigned | J43: [Amos' prophecy: "The words of Amos… which he saw concerning Israel in the days of Uzziah king of Judah, and in the days of Jeroboam the son of Joash king of Israel, two years before the earthquake. And he said, The Lord will roar from Zion, and utter his voice from Jerusalem..." Amos 1:1-2 (KJV).]
A44: 3130 | B44: Azariah (Uzziah) | C44: 16th year - I.e. the 16th Sacred Calendar Year he reigned | D44: 20 | G44: Jeroboam | H44: 19th year - I.e. the 19th Sacred Calendar Year he reigned
A45: 3131 | B45: Azariah (Uzziah) | C45: 17th year - I.e. the 17th Sacred Calendar Year he reigned | D45: 21 | G45: Jeroboam | H45: 20th year - I.e. the 20th Sacred Calendar Year he reigned
A46: 3132 | B46: Azariah (Uzziah) | C46: 18th year - I.e. the 18th Sacred Calendar Year he reigned | D46: 22 | G46: Jeroboam | H46: 21st year - I.e. the 21st Sacred Calendar Year he reigned
A47: 3133 | B47: Azariah (Uzziah) | C47: 19th year - I.e. the 19th Sacred Calendar Year he reigned | D47: 23 | G47: Jeroboam | H47: 22nd year - I.e. the 22nd Sacred Calendar Year he reigned
A48: 3134 | B48: Azariah (Uzziah) | C48: 20th year - I.e. the 20th Sacred Calendar Year he reigned | D48: 24 | G48: Jeroboam | H48: 23rd year - I.e. the 23rd Sacred Calendar Year he reigned
A49: 3135 | B49: Azariah (Uzziah) | C49: 21st year - I.e. the 21st Sacred Calendar Year he reigned | D49: 25 | G49: Jeroboam | H49: 24th year - I.e. the 24th Sacred Calendar Year he reigned
A50: 3136 | B50: Azariah (Uzziah) | C50: 22nd year - I.e. the 22nd Sacred Calendar Year he reigned | D50: 26 | G50: Jeroboam | H50: 25th year - I.e. the 25th Sacred Calendar Year he reigned
A51: 3137 | B51: Azariah (Uzziah) | C51: 23rd year - I.e. the 23rd Sacred Calendar Year he reigned | D51: 27 | G51: Jeroboam | H51: 26th year - I.e. the 26th Sacred Calendar Year he reigned
A52: 3138 | B52: Azariah (Uzziah) | C52: 24th year - I.e. the 24th Sacred Calendar Year he reigned | D52: 28 | G52: Jeroboam | H52: 27th year - I.e. the 27th Sacred Calendar Year he reigned | J52: 2 Kings 15:1,5. PROBLEM UNRESOLVED: Either this text expands the time-line by 23 years, more or less, OR else, if it pertains to King Azariah (Uzziah) becoming a leper at this time, then his son and successor/judge is not yet born for another 4 years. It cannot possibly pertain to Jotham taking over his responsibility at age 25 y/o at this time, because Jotham's father Azariah was at this time only 27 or 28 y/o (i.e. given this scenario). It is of course possible, even likely, that Azariah (Uzziah) continued to rule actively for a number of years after the onset of his leprosy and until he would allow his son Jotham to take over as his leprosy was getting worse.
A53: 3139 | B53: Azariah (Uzziah) | C53: 25th year - I.e. the 25th Sacred Calendar Year he reigned | G53: Jeroboam | H53: 28th year - I.e. the 28th Sacred Calendar Year he reigned
A54: 3140 | B54: Azariah (Uzziah) | C54: 26th year - I.e. the 26th Sacred Calendar Year he reigned | G54: Jeroboam | H54: 29th year - I.e. the 29th Sacred Calendar Year he reigned
A55: 3141 | B55: Azariah (Uzziah) | C55: 27th year - I.e. the 27th Sacred Calendar Year he reigned | G55: Jeroboam | H55: 30th year - I.e. the 30th Sacred Calendar Year he reigned
A56: 3142 | B56: Azariah (Uzziah) | C56: 28th year - I.e. the 28th Sacred Calendar Year he reigned | D56: =D57-1 -> 0 | G56: Jeroboam | H56: 31st year - I.e. the 31st Sacred Calendar Year he reigned
A57: 3143 | B57: Azariah (Uzziah) | C57: 29th year - I.e. the 29th Sacred Calendar Year he reigned | D57: 1 | G57: Jeroboam | H57: 32nd year - I.e. the 32nd Sacred Calendar Year he reigned
A58: =A57+1 -> 3144 | B58: Azariah (Uzziah) | C58: 30th year - I.e. the 30th Sacred Calendar Year he reigned | D58: 2 | G58: Jeroboam | H58: 33rd year - I.e. the 33rd Sacred Calendar Year he reigned
A59: 3145 | B59: Azariah (Uzziah) | C59: 31st year - I.e. the 31st Sacred Calendar Year he reigned | D59: 3 | G59: Jeroboam | H59: 34th year - I.e. the 34th Sacred Calendar Year he reigned
A60: 3146 | B60: Azariah (Uzziah) | C60: 32nd year - I.e. the 32nd Sacred Calendar Year he reigned | D60: 4 | G60: Jeroboam | H60: 35th year - I.e. the 35th Sacred Calendar Year he reigned
A61: 3147 | B61: Azariah (Uzziah) | C61: 33rd year - I.e. the 33rd Sacred Calendar Year he reigned | D61: 5 | G61: Jeroboam | H61: 36th year - I.e. the 36th Sacred Calendar Year he reigned
A62: 3148 | B62: Azariah (Uzziah) | C62: 34th year - I.e. the 34th Sacred Calendar Year he reigned | D62: 6 | G62: Jeroboam | H62: 37th year - I.e. the 37th Sacred Calendar Year he reigned
A63: 3149 | B63: Azariah (Uzziah) | C63: 35th year - I.e. the 35th Sacred Calendar Year he reigned | D63: 7 | G63: Jeroboam | H63: 38th year - I.e. the 38th Sacred Calendar Year he reigned
A64: 3150 | B64: Azariah (Uzziah) | C64: 36th year - I.e. the 36th Sacred Calendar Year he reigned | D64: 8 | G64: Jeroboam | H64: 39th year - I.e. the 39th Sacred Calendar Year he reigned
A65: 3151 | B65: Azariah (Uzziah) | C65: 37th year - I.e. the 37th Sacred Calendar Year he reigned | D65: 9 | G65: Jeroboam | H65: 40th year - I.e. the 40th Sacred Calendar Year he reigned
A66: 3152 | B66: Azariah (Uzziah) | C66: 38th year - I.e. the 38th Sacred Calendar Year he reigned | D66: 10 | G66: Jeroboam | H66: 41st year - I.e. the 41st Sacred Calendar Year he reigned | J66: 2 Kings 14:23,29. "In the fifteenth year of Amaziah the son of Joash king of Judah Jeroboam the son of Joash king of Israel began to reign in Samaria, and reigned forty and one years… And Jeroboam slept with his fathers, even with the kings of Israel; and Zachariah his son reigned in his stead" (KJV).
A68: =A66 -> 3152 | B68: Azariah (Uzziah) | C68: 38th year - I.e. the 38th Sacred Calendar Year he reigned | D68: =D69-1 -> 10 | G68: Zachariah | H68: 6 months | J68: "In the thirty and eight year of Azariah king of Judah did Zachariah the son of Jeroboam reign over Israel in Samaria six months" 2 Kings 15:8 (KJV). "And Jeroboam slept with his fathers, even with the kings of Israel; and Zachariah his son reigned in his stead" 2 Kings 14:29 (KJV).
A69: =A66+1 -> 3153 | B69: Azariah (Uzziah) | C69: 39th year - I.e. the 39th Sacred Calendar Year he reigned | D69: 11
A71: =A69 -> 3153 | B71: Azariah (Uzziah) | C71: 39th year - I.e. the 39th Sacred Calendar Year he reigned | D71: 11 | G71: Shallum | H71: 1 month | J71: 2 Kings 15:13
A73: =A71 -> 3153 | B73: Azariah (Uzziah) | C73: 39th year - I.e. the 39th Sacred Calendar Year he reigned | D73: =D74-1 -> 11 | G73: Menahem | H73: 1st year - I.e. the 1st Sacred Calendar Year he reigned | J73: 2 Kings 15:17
A74: =A69+1 -> 3154 | B74: Azariah (Uzziah) | C74: 40th year - I.e. the 40th Sacred Calendar Year he reigned | D74: 12 | G74: Menahem | H74: 2nd year - I.e. the 2nd Sacred Calendar Year he reigned
A75: 3155 | B75: Azariah (Uzziah) | C75: 41st year - I.e. the 41st Sacred Calendar Year he reigned | D75: 13 | G75: Menahem | H75: 3rd year - I.e. the 3rd Sacred Calendar Year he reigned
A76: 3156 | B76: Azariah (Uzziah) | C76: 42nd year - I.e. the 42nd Sacred Calendar Year he reigned | D76: 14 | G76: Menahem | H76: 4th year - I.e. the 4th Sacred Calendar Year he reigned
A77: 3157 | B77: Azariah (Uzziah) | C77: 43rd year - I.e. the 43rd Sacred Calendar Year he reigned | D77: 15 | G77: Menahem | H77: 5th year - I.e. the 5th Sacred Calendar Year he reigned
A78: 3158 | B78: Azariah (Uzziah) | C78: 44th year - I.e. the 44th Sacred Calendar Year he reigned | D78: 16 | G78: Menahem | H78: 6th year - I.e. the 6th Sacred Calendar Year he reigned
A79: 3159 | B79: Azariah (Uzziah) | C79: 45th year - I.e. the 45th Sacred Calendar Year he reigned | D79: 17 | G79: Menahem | H79: 7th year - I.e. the 7th Sacred Calendar Year he reigned
A80: 3160 | B80: Azariah (Uzziah) | C80: 46th year - I.e. the 46th Sacred Calendar Year he reigned | D80: 18 | G80: Menahem | H80: 8th year - I.e. the 8th Sacred Calendar Year he reigned
A81: 3161 | B81: Azariah (Uzziah) | C81: 47th year - I.e. the 47th Sacred Calendar Year he reigned | D81: 19 | G81: Menahem | H81: 9th year - I.e. the 9th Sacred Calendar Year he reigned
A82: 3162 | B82: Azariah (Uzziah) | C82: 48th year - I.e. the 48th Sacred Calendar Year he reigned | D82: 20 | G82: Menahem | H82: 10th year - I.e. the 10th Sacred Calendar Year he reigned | J82: 2 Kings 15:17
A83: 3163 | B83: Azariah (Uzziah) | C83: 49th year - I.e. the 49th Sacred Calendar Year he reigned | D83: =D84-1 -> 21
A84: 3164 | B84: Azariah (Uzziah) | C84: 50th year - I.e. the 50th Sacred Calendar Year he reigned | D84: 22
A86: =A84 -> 3164 | B86: Azariah (Uzziah) | C86: 50th year - I.e. the 50th Sacred Calendar Year he reigned | D86: 22 | G86: Pekahiah | H86: 1st year - I.e. the 1st Sacred Calendar Year he reigned | J86: 2 Kings 15:23
A87: =A84+1 -> 3165 | B87: Azariah (Uzziah) | C87: 51st year - I.e. the 51st Sacred Calendar Year he reigned | D87: 23 | G87: Pekahiah | H87: 2nd year - I.e. the 2nd Sacred Calendar Year he reigned | J87: 2 Kings 15:23 (Here the Hebrew word 'shanatajim' is translated 'two years'. As we have seen before the word is applicable to any duration greater than one (1) year. Please compare other notes above, e.g. Gen. 11:10!)
A88: =A87+1 -> 3166 | B88: Azariah (Uzziah) | C88: 52nd year - I.e. the 52nd Sacred Calendar Year he reigned | D88: 24 | J88: 2 Kings 15:2; 2 Chron. 26:3
A90: =A88 -> 3166 | B90: Azariah (Uzziah) | C90: 52nd year - I.e. the 52nd Sacred Calendar Year he reigned | D90: 24 | G90: Pekah | H90: 1st year - I.e. the 1st Sacred Calendar Year he reigned | J90: 2 Kings 15:27
A91: =A88+1 -> 3167 | D91: 25 | G91: Pekah | H91: 2nd year - I.e. the 2nd Sacred Calendar Year he reigned
A93: =A91 -> 3167 | B93: Jotham | C93: 1st year - I.e. the 1st Sacred Calendar Year he reigned | D93: 25 | G93: Pekah | H93: 2nd year - I.e. the 2nd Sacred Calendar Year he reigned | J93: 2 Kings 15:32
A94: =A91+1 -> 3168 | B94: Jotham | C94: 2nd year - I.e. the 2nd Sacred Calendar Year he reigned | D94: =D95-1 -> -1 | G94: Pekah | H94: 3rd year - I.e. the 3rd Sacred Calendar Year he reigned
A104: =Sheet4!A295 -> 3095 | B104: Jehoash (Joash) | C104: 35th year - I.e. the 35th Sacred Calendar Year he reigned | D104: =D105-1 -> 22 | G104: Jehoahaz | H104: 13th year - I.e. the 13th Sacred Calendar Year he reigned
A105: =A104+1 -> 3096 | B105: Jehoash (Joash) | C105: 36th year - I.e. the 36th Sacred Calendar Year he reigned | D105: =D106-1 -> 23 | G105: Jehoahaz | H105: 14th year - I.e. the 14th Sacred Calendar Year he reigned
A106: 3097 | B106: Jehoash (Joash) | C106: 37th year - I.e. the 37th Sacred Calendar Year he reigned | D106: 24 | G106: Jehoahaz | H106: 15th year - I.e. the 15th Sacred Calendar Year he reigned
A108: =A106 -> 3097 | B108: Jehoash (Joash) | C108: 37th year - I.e. the 37th Sacred Calendar Year he reigned | G108: Jehoahaz's 15th & Jehoash's | H108: 1st year - I.e. the 1st Sacred Calendar Year he reigned | J108: 2 Kings 13:10
A109: =A106+1 -> 3098 | B109: Jehoash (Joash) | C109: 38th year - I.e. the 38th Sacred Calendar Year he reigned | D109: 25 | G109: Jehoahaz's 16th & Jehoash's | H109: 2nd year - I.e. the 2nd Sacred Calendar Year he reigned
A111: =A109 -> 3098 | B111: Jehoash's 38th & Amaziah's | C111: 1st year - I.e. the 1st Sacred Calendar Year he reigned | D111: 25 | G111: Jehoahaz's 16th & Jehoash's | H111: 2nd year - I.e. the 2nd Sacred Calendar Year he reigned | J111: 2 Kings 14:1
A112: =A109+1 -> 3099 | B112: Jehoash's 39th & Amaziah's | C112: 2nd year - I.e. the 2nd Sacred Calendar Year he reigned | G112: Jehoahaz's 17th & Jehoash's | H112: 3rd year - I.e. the 3rd Sacred Calendar Year he reigned | J112: 2 Kings 13:1
A113: 3100 | B113: Jehoash's 40th & Amaziah's | C113: 3rd year - I.e. the 3rd Sacred Calendar Year he reigned | G113: Jehoash | H113: 4th year - I.e. the 4th Sacred Calendar Year he reigned | J113: 2 Chron. 24:1
A114: 3101 | B114: Amaziah | C114: 4th year - I.e. the 4th Sacred Calendar Year he reigned | G114: Jehoash | H114: 5th year - I.e. the 5th Sacred Calendar Year he reigned
A115: 3102 | B115: Amaziah | C115: 5th year - I.e. the 5th Sacred Calendar Year he reigned | G115: Jehoash | H115: 6th year - I.e. the 6th Sacred Calendar Year he reigned
A116: 3103 | B116: Amaziah | C116: 6th year - I.e. the 6th Sacred Calendar Year he reigned | G116: Jehoash | H116: 7th year - I.e. the 7th Sacred Calendar Year he reigned
A117: 3104 | B117: Amaziah | C117: 7th year - I.e. the 7th Sacred Calendar Year he reigned | G117: Jehoash | H117: 8th year - I.e. the 8th Sacred Calendar Year he reigned
A118: 3105 | B118: Amaziah | C118: 8th year - I.e. the 8th Sacred Calendar Year he reigned | G118: Jehoash | H118: 9th year - I.e. the 9th Sacred Calendar Year he reigned
A119: 3106 | B119: Amaziah | C119: 9th year - I.e. the 9th Sacred Calendar Year he reigned | G119: Jehoash | H119: 10th year - I.e. the 10th Sacred Calendar Year he reigned
A120: 3107 | B120: Amaziah | C120: 10th year - I.e. the 10th Sacred Calendar Year he reigned | G120: Jehoash | H120: 11th year - I.e. the 11th Sacred Calendar Year he reigned
A121: 3108 | B121: Amaziah | C121: 11th year - I.e. the 11th Sacred Calendar Year he reigned | G121: Jehoash | H121: 12th year - I.e. the 12th Sacred Calendar Year he reigned
A122: 3109 | B122: Amaziah | C122: 12th year - I.e. the 12th Sacred Calendar Year he reigned | G122: Jehoash | H122: 13th year - I.e. the 13th Sacred Calendar Year he reigned
A123: 3110 | B123: Amaziah | C123: 13th year - I.e. the 13th Sacred Calendar Year he reigned | G123: Jehoash | H123: 14th year - I.e. the 14th Sacred Calendar Year he reigned
A124: 3111 | B124: Amaziah | C124: 14th year - I.e. the 14th Sacred Calendar Year he reigned | G124: Jehoash | H124: 15th year - I.e. the 15th Sacred Calendar Year he reigned
A125: 3112 | B125: Amaziah | C125: 15th year - I.e. the 15th Sacred Calendar Year he reigned | G125: Jehoash | H125: 16th year - I.e. the 16th Sacred Calendar Year he reigned | J125: 2 Kings 13:10
A127: =A125 -> 3112 | B127: Amaziah | C127: 15th year - I.e. the 15th Sacred Calendar Year he reigned | G127: Jeroboam | H127: 1st year - I.e. the 1st Sacred Calendar Year he reigned | J127: 2 Kings 14:23
A128: =A125+1 -> 3113 | B128: Amaziah | C128: 16th year - I.e. the 16th Sacred Calendar Year he reigned | G128: Jeroboam | H128: 2nd year - I.e. the 2nd Sacred Calendar Year he reigned
A129: 3114 | B129: Amaziah | C129: 17th year - I.e. the 17th Sacred Calendar Year he reigned | G129: Jeroboam | H129: 3rd year - I.e. the 3rd Sacred Calendar Year he reigned
A130: 3115 | B130: Amaziah | C130: 18th year - I.e. the 18th Sacred Calendar Year he reigned | G130: Jeroboam | H130: 4th year - I.e. the 4th Sacred Calendar Year he reigned
A131: 3116 | B131: Amaziah | C131: 19th year - I.e. the 19th Sacred Calendar Year he reigned | G131: Jeroboam | H131: 5th year - I.e. the 5th Sacred Calendar Year he reigned
A132: 3117 | B132: Amaziah | C132: 20th year - I.e. the 20th Sacred Calendar Year he reigned | G132: Jeroboam | H132: 6th year - I.e. the 6th Sacred Calendar Year he reigned
A133: 3118 | B133: Amaziah | C133: 21st year - I.e. the 21st Sacred Calendar Year he reigned | G133: Jeroboam | H133: 7th year - I.e. the 7th Sacred Calendar Year he reigned
A134: 3119 | B134: Amaziah | C134: 22nd year - I.e. the 22nd Sacred Calendar Year he reigned | G134: Jeroboam | H134: 8th year - I.e. the 8th Sacred Calendar Year he reigned
A135: 3120 | B135: Amaziah | C135: 23rd year - I.e. the 23rd Sacred Calendar Year he reigned | G135: Jeroboam | H135: 9th year - I.e. the 9th Sacred Calendar Year he reigned
A136: 3121 | B136: Amaziah | C136: 24th year - I.e. the 24th Sacred Calendar Year he reigned | G136: Jeroboam | H136: 10th year - I.e. the 10th Sacred Calendar Year he reigned
A137: 3122 | B137: Amaziah | C137: 25th year - I.e. the 25th Sacred Calendar Year he reigned | D137: =D138-1 -> 0 | G137: Jeroboam | H137: 11th year - I.e. the 11th Sacred Calendar Year he reigned
A138: 3123 | B138: Amaziah | C138: 26th year - I.e. the 26th Sacred Calendar Year he reigned | D138: 1 | G138: Jeroboam | H138: 12th year - I.e. the 12th Sacred Calendar Year he reigned
A139: 3124 | B139: Amaziah | C139: 27th year - I.e. the 27th Sacred Calendar Year he reigned | D139: 2 | G139: Jeroboam | H139: 13th year - I.e. the 13th Sacred Calendar Year he reigned
A140: 3125 | B140: Amaziah | C140: 28th year - I.e. the 28th Sacred Calendar Year he reigned | D140: 3 | G140: Jeroboam | H140: 14th year - I.e. the 14th Sacred Calendar Year he reigned
A141: 3126 | B141: Amaziah | C141: 29th year - I.e. the 29th Sacred Calendar Year he reigned | D141: 4 | G141: Jeroboam | H141: 15th year - I.e. the 15th Sacred Calendar Year he reigned | J141: 2 Kings 14:2,17; 2 Chron. 25:1,25
A142: 3127 | D142: 5 | G142: Jeroboam | H142: 16th year - I.e. the 16th Sacred Calendar Year he reigned | J142: 2 Kings 14:21; 2 Chron. 25:27-28
A143: 3128 | D143: 6 | G143: Jeroboam | H143: 17th year - I.e. the 17th Sacred Calendar Year he reigned | J143: 2 Kings 14:21; 2 Chron. 25:27-28
A144: 3129 | D144: 7 | G144: Jeroboam | H144: 18th year - I.e. the 18th Sacred Calendar Year he reigned | J144: 2 Kings 14:21; 2 Chron. 25:27-28
A145: 3130 | D145: 8 | G145: Jeroboam | H145: 19th year - I.e. the 19th Sacred Calendar Year he reigned | J145: 2 Kings 14:21; 2 Chron. 25:27-28
A146: 3131 | D146: 9 | G146: Jeroboam | H146: 20th year - I.e. the 20th Sacred Calendar Year he reigned | J146: 2 Kings 14:21; 2 Chron. 25:27-28
A147: 3132 | D147: 10 | G147: Jeroboam | H147: 21st year - I.e. the 21st Sacred Calendar Year he reigned | J147: 2 Kings 14:21; 2 Chron. 25:27-28
A148: 3133 | D148: 11 | G148: Jeroboam | H148: 22nd year - I.e. the 22nd Sacred Calendar Year he reigned | J148: 2 Kings 14:21; 2 Chron. 25:27-28
A149: 3134 | D149: 12 | G149: Jeroboam | H149: 23rd year - I.e. the 23rd Sacred Calendar Year he reigned | J149: 2 Kings 14:21; 2 Chron. 25:27-28
A150: 3135 | D150: 13 | G150: Jeroboam | H150: 24th year - I.e. the 24th Sacred Calendar Year he reigned | J150: 2 Kings 14:21; 2 Chron. 25:27-28
A151: 3136 | D151: 14 | G151: Jeroboam | H151: 25th year - I.e. the 25th Sacred Calendar Year he reigned | J151: 2 Kings 14:21; 2 Chron. 25:27-28
A152: 3137 | D152: =D153-1 -> 15 | G152: Jeroboam | H152: 26th year - I.e. the 26th Sacred Calendar Year he reigned | J152: 2 Kings 14:21; 2 Chron. 25:27-28
A153: 3138 | D153: 16 | G153: Jeroboam | H153: 27th year - I.e. the 27th Sacred Calendar Year he reigned | J153: 2 Kings 14:21; 2 Chron. 25:27-28
A155: =A153 -> 3138 | B155: Azariah (Uzziah) | C155: 1st year - I.e. the 1st Sacred Calendar Year he reigned | D155: 16 | G155: Jeroboam | H155: 27th year - I.e. the 27th Sacred Calendar Year he reigned | J155: 2 Kings 14:21; 15:1; 2 Chron. 26:1
A156: =A153+1 -> 3139 | B156: Azariah (Uzziah) | C156: 2nd year - I.e. the 2nd Sacred Calendar Year he reigned | G156: Jeroboam | H156: 28th year - I.e. the 28th Sacred Calendar Year he reigned | J156: [Hosea's prophecy of Israel's destruction Hosea 1:1-5 "The word of the Lord that came unto Hosea, the son of Beeri, in the days of Uzziah, Jotham, Ahaz, and Hezekiah, kings of Judah, and in the days of Jeroboam the son of Joash, king of Israel… And the Lord said... for yet a little while, and I will avenge the blood of Jezreel upon the house of Jehu, and will cause to cease the kingdom of the house of Israel. And it shall come to pass at that day, that I will break the bow of Israel in the valley of Jezreel. (KJV)]
A157: 3140 | B157: Azariah (Uzziah) | C157: 3rd year - I.e. the 3rd Sacred Calendar Year he reigned | G157: Jeroboam | H157: 29th year - I.e. the 29th Sacred Calendar Year he reigned | J157: [Amos' prophecy: "The words of Amos… which he saw concerning Israel in the days of Uzziah king of Judah, and in the days of Jeroboam the son of Joash king of Israel, two years before the earthquake. And he said, The Lord will roar from Zion, and utter his voice from Jerusalem..." Amos 1:1-2 (KJV).]
A158: 3141 | B158: Azariah (Uzziah) | C158: 4th year - I.e. the 4th Sacred Calendar Year he reigned | G158: Jeroboam | H158: 30th year - I.e. the 30th Sacred Calendar Year he reigned
A159: 3142 | B159: Azariah (Uzziah) | C159: 5th year - I.e. the 5th Sacred Calendar Year he reigned | G159: Jeroboam | H159: 31st year - I.e. the 31st Sacred Calendar Year he reigned
A160: 3143 | B160: Azariah (Uzziah) | C160: 6th year - I.e. the 6th Sacred Calendar Year he reigned | G160: Jeroboam | H160: 32nd year - I.e. the 32nd Sacred Calendar Year he reigned
A161: 3144 | B161: Azariah (Uzziah) | C161: 7th year - I.e. the 7th Sacred Calendar Year he reigned | G161: Jeroboam | H161: 33rd year - I.e. the 33rd Sacred Calendar Year he reigned
A162: 3145 | B162: Azariah (Uzziah) | C162: 8th year - I.e. the 8th Sacred Calendar Year he reigned | G162: Jeroboam | H162: 34th year - I.e. the 34th Sacred Calendar Year he reigned
A163: 3146 | B163: Azariah (Uzziah) | C163: 9th year - I.e. the 9th Sacred Calendar Year he reigned | G163: Jeroboam | H163: 35th year - I.e. the 35th Sacred Calendar Year he reigned
A164: 3147 | B164: Azariah (Uzziah) | C164: 10th year - I.e. the 10th Sacred Calendar Year he reigned | G164: Jeroboam | H164: 36th year - I.e. the 36th Sacred Calendar Year he reigned
A165: 3148 | B165: Azariah (Uzziah) | C165: 11th year - I.e. the 11th Sacred Calendar Year he reigned | G165: Jeroboam | H165: 37th year - I.e. the 37th Sacred Calendar Year he reigned
A166: 3149 | B166: Azariah (Uzziah) | C166: 12th year - I.e. the 12th Sacred Calendar Year he reigned | G166: Jeroboam | H166: 38th year - I.e. the 38th Sacred Calendar Year he reigned
A167: 3150 | B167: Azariah (Uzziah) | C167: 13th year - I.e. the 13th Sacred Calendar Year he reigned | G167: Jeroboam | H167: 39th year - I.e. the 39th Sacred Calendar Year he reigned
A168: 3151 | B168: Azariah (Uzziah) | C168: 14th year - I.e. the 14th Sacred Calendar Year he reigned | G168: Jeroboam | H168: 40th year - I.e. the 40th Sacred Calendar Year he reigned
A169: 3152 | B169: Azariah (Uzziah) | C169: 15th year - I.e. the 15th Sacred Calendar Year he reigned | G169: Jeroboam | H169: 41st year - I.e. the 41st Sacred Calendar Year he reigned | J169: 2 Kings 14:23,29. "In the fifteenth year of Amaziah the son of Joash king of Judah Jeroboam the son of Joash king of Israel began to reign in Samaria, and reigned forty and one years… And Jeroboam slept with his fathers, even with the kings of Israel; and Zachariah his son reigned in his stead" (KJV).
A170: 3153 | B170: Azariah (Uzziah) | C170: 16th year - I.e. the 16th Sacred Calendar Year he reigned
A171: 3154 | B171: Azariah (Uzziah) | C171: 17th year - I.e. the 17th Sacred Calendar Year he reigned
A172: 3155 | B172: Azariah (Uzziah) | C172: 18th year - I.e. the 18th Sacred Calendar Year he reigned
A173: 3156 | B173: Azariah (Uzziah) | C173: 19th year - I.e. the 19th Sacred Calendar Year he reigned
A174: 3157 | B174: Azariah (Uzziah) | C174: 20th year - I.e. the 20th Sacred Calendar Year he reigned
A175: 3158 | B175: Azariah (Uzziah) | C175: 21st year - I.e. the 21st Sacred Calendar Year he reigned
A176: 3159 | B176: Azariah (Uzziah) | C176: 22nd year - I.e. the 22nd Sacred Calendar Year he reigned
A177: 3160 | B177: Azariah (Uzziah) | C177: 23rd year - I.e. the 23rd Sacred Calendar Year he reigned
A178: 3161 | B178: Azariah (Uzziah) | C178: 24th year - I.e. the 24th Sacred Calendar Year he reigned
A179: 3162 | B179: Azariah (Uzziah) | C179: 25th year - I.e. the 25th Sacred Calendar Year he reigned
A180: 3163 | B180: Azariah (Uzziah) | C180: 26th year - I.e. the 26th Sacred Calendar Year he reigned
A181: 3164 | B181: Azariah (Uzziah) | C181: 27th year - I.e. the 27th Sacred Calendar Year he reigned
A182: 3165 | B182: Azariah (Uzziah) | C182: 28th year - I.e. the 28th Sacred Calendar Year he reigned | D182: =D183-1 -> 0
A183: 3166 | B183: Azariah (Uzziah) | C183: 29th year - I.e. the 29th Sacred Calendar Year he reigned | D183: 1
A184: 3167 | B184: Azariah (Uzziah) | C184: 30th year - I.e. the 30th Sacred Calendar Year he reigned | D184: 2
A185: 3168 | B185: Azariah (Uzziah) | C185: 31st year - I.e. the 31st Sacred Calendar Year he reigned | D185: 3
A186: =A185+1 -> 3169 | B186: Azariah (Uzziah) | C186: 32nd year - I.e. the 32nd Sacred Calendar Year he reigned | D186: 4
A187: 3170 | B187: Azariah (Uzziah) | C187: 33rd year - I.e. the 33rd Sacred Calendar Year he reigned | D187: 5
A188: 3171 | B188: Azariah (Uzziah) | C188: 34th year - I.e. the 34th Sacred Calendar Year he reigned | D188: 6
A189: 3172 | B189: Azariah (Uzziah) | C189: 35th year - I.e. the 35th Sacred Calendar Year he reigned | D189: 7
A190: 3173 | B190: Azariah (Uzziah) | C190: 36th year - I.e. the 36th Sacred Calendar Year he reigned | D190: 8
A191: 3174 | B191: Azariah (Uzziah) | C191: 37th year - I.e. the 37th Sacred Calendar Year he reigned | D191: =D192-1 -> 9
A192: 3175 | B192: Azariah (Uzziah) | C192: 38th year - I.e. the 38th Sacred Calendar Year he reigned | D192: 10 | F192: 23
A194: =A192 -> 3175 | B194: Azariah (Uzziah) | C194: 38th year - I.e. the 38th Sacred Calendar Year he reigned | D194: =D195-1 -> 10 | G194: Zachariah | H194: 6 months | J194: "In the thirty and eight year of Azariah king of Judah did Zachariah the son of Jeroboam reign over Israel in Samaria six months" 2 Kings 15:8 (KJV). "And Jeroboam slept with his fathers, even with the kings of Israel; and Zachariah his son reigned in his stead" 2 Kings 14:29 (KJV).
A195: =A192+1 -> 3176 | B195: Azariah (Uzziah) | C195: 39th year - I.e. the 39th Sacred Calendar Year he reigned | D195: 11
A197: =A195 -> 3176 | B197: Azariah (Uzziah) | C197: 39th year - I.e. the 39th Sacred Calendar Year he reigned | D197: 11 | G197: Shallum | H197: 1 month | J197: 2 Kings 15:13
A199: =A197 -> 3176 | B199: Azariah (Uzziah) | C199: 39th year - I.e. the 39th Sacred Calendar Year he reigned | D199: =D200-1 -> 11 | G199: Menahem | H199: 1st year - I.e. the 1st Sacred Calendar Year he reigned | J199: 2 Kings 15:17
A200: =A195+1 -> 3177 | B200: Azariah (Uzziah) | C200: 40th year - I.e. the 40th Sacred Calendar Year he reigned | D200: 12 | G200: Menahem | H200: 2nd year - I.e. the 2nd Sacred Calendar Year he reigned
A201: 3178 | B201: Azariah (Uzziah) | C201: 41st year - I.e. the 41st Sacred Calendar Year he reigned | D201: 13 | G201: Menahem | H201: 3rd year - I.e. the 3rd Sacred Calendar Year he reigned
A202: 3179 | B202: Azariah (Uzziah) | C202: 42nd year - I.e. the 42nd Sacred Calendar Year he reigned | D202: 14 | G202: Menahem | H202: 4th year - I.e. the 4th Sacred Calendar Year he reigned
A203: 3180 | B203: Azariah (Uzziah) | C203: 43rd year - I.e. the 43rd Sacred Calendar Year he reigned | D203: 15 | G203: Menahem | H203: 5th year - I.e. the 5th Sacred Calendar Year he reigned
A204: 3181 | B204: Azariah (Uzziah) | C204: 44th year - I.e. the 44th Sacred Calendar Year he reigned | D204: 16 | G204: Menahem | H204: 6th year - I.e. the 6th Sacred Calendar Year he reigned
A205: 3182 | B205: Azariah (Uzziah) | C205: 45th year - I.e. the 45th Sacred Calendar Year he reigned | D205: 17 | G205: Menahem | H205: 7th year - I.e. the 7th Sacred Calendar Year he reigned
A206: 3183 | B206: Azariah (Uzziah) | C206: 46th year - I.e. the 46th Sacred Calendar Year he reigned | D206: 18 | G206: Menahem | H206: 8th year - I.e. the 8th Sacred Calendar Year he reigned
A207: 3184 | B207: Azariah (Uzziah) | C207: 47th year - I.e. the 47th Sacred Calendar Year he reigned | D207: 19 | G207: Menahem | H207: 9th year - I.e. the 9th Sacred Calendar Year he reigned
A208: 3185 | B208: Azariah (Uzziah) | C208: 48th year - I.e. the 48th Sacred Calendar Year he reigned | D208: 20 | G208: Menahem | H208: 10th year - I.e. the 10th Sacred Calendar Year he reigned | J208: 2 Kings 15:17
A209: 3186 | B209: Azariah (Uzziah) | C209: 49th year - I.e. the 49th Sacred Calendar Year he reigned | D209: =D210-1 -> 21
A210: 3187 | B210: Azariah (Uzziah) | C210: 50th year - I.e. the 50th Sacred Calendar Year he reigned | D210: 22
A212: =A210 -> 3187 | B212: Azariah (Uzziah) | C212: 50th year - I.e. the 50th Sacred Calendar Year he reigned | D212: 22 | G212: Pekahiah | H212: 1st year - I.e. the 1st Sacred Calendar Year he reigned | J212: 2 Kings 15:23
A213: =A210+1 -> 3188 | B213: Azariah (Uzziah) | C213: 51st year - I.e. the 51st Sacred Calendar Year he reigned | D213: 23 | G213: Pekahiah | H213: 2nd year - I.e. the 2nd Sacred Calendar Year he reigned | J213: 2 Kings 15:23 (Here the Hebrew word 'shanatajim' is translated 'two years'. As we have seen before the word is applicable to any duration greater than one (1) year. Please compare other notes above, e.g. Gen. 11:10!)
A214: 3189 | B214: Azariah (Uzziah) | C214: 52nd year - I.e. the 52nd Sacred Calendar Year he reigned | D214: 24 | J214: 2 Kings 15:2; 2 Chron. 26:3
A216: =A214 -> 3189 | B216: Azariah (Uzziah) | C216: 52nd year - I.e. the 52nd Sacred Calendar Year he reigned | D216: 24 | G216: Pekah | H216: 1st year - I.e. the 1st Sacred Calendar Year he reigned | J216: 2 Kings 15:27
A217: =A214+1 -> 3190 | D217: 25 | G217: Pekah | H217: 2nd year - I.e. the 2nd Sacred Calendar Year he reigned
A219: =A217 -> 3190 | B219: Jotham | C219: 1st year - I.e. the 1st Sacred Calendar Year he reigned | D219: 25 | G219: Pekah | H219: 2nd year - I.e. the 2nd Sacred Calendar Year he reigned | J219: 2 Kings 15:32
A220: =A217+1 -> 3191 | B220: Jotham | C220: 2nd year - I.e. the 2nd Sacred Calendar Year he reigned | D220: =D221-1 -> -1 | G220: Pekah | H220: 3rd year - I.e. the 3rd Sacred Calendar Year he reigned

Sheet Sheet7
B1: AT | F1: Velikovsky references
C2: BC/AD | E2: AT & archeological based comments | I2: King(s) ruling in Judah | O2: King(s) ruling in Israel
A3: The Sacred Calendar Completed years after Creation | L3: Age at Coronation [black ## above belong to red # below] | R3: Nebuchadnezzar's years of reign as given by Jeremiah the prophet. Jer 52:2830 ---------------- Age at Coronation [black ## above belong to red # below]
F4: Velikovsky’s “…nomenclature for the Egyptian dysasties. The Middle Kingdom of Egypt (the division into Eleventh and Twelfth Dynasties is unnecessary) came to its end in a natural catastrophe in the mid-fifteenth century before the present era; the land was invaded by the Arabs (Amalekites, known as Amu to the Egyptians, or as Hyksos to Greek authors). The Arab Dynasty ruled for over four hundred years, till about -1020. Already before that date there were vassal princes in Thebes. The Arab domination of Egypt was terminated by the united efforts of Saul of Israel and Kamose and Ahmose of Thebes. For the next (almost) two hundred years (ca. -1200 to ca. -830) the land was ruled by the Theban Dynasty (known as the Eighteenth) of Thutmoses and Amenhoteps. Close to the end of that period, Akhnaton moved the capi9tal to Akhet-Aton (el-Amarna) but Thebes was soon restored as the capital under Smenkhkare and Ay. The Theban period was followed by the Libyan domination of Sosenks [= Shoshenk, cf. Ages in Chaos, p. 174-176] and Osorkons for over one hundred years (ca. -830 to ca. -720). Next came the Ethiopian rule that endured for fifty or sixty years; however, at the same time the Assyrians pressed from the north and the land was occupied repeatedly by Sennacherib (who crowned Haremheb), Esarhaddon, and Assurbanipal (who elevated Necho I-Rameses I to be a vassal king). When Necho was killed by invading Ethiopians, Assurbanipal once more occupied Thebes (-663). The period of the Tanitic Dynasty follows: Seti (Psammetich of the Greek authors), son of Ramses I (Necho I), obtained independence from Assurbanipal and acted as his ally in his wars against the Chaldeans and Medes, Seti’s capital was in Tanis in the Delta, The Tanitic Dynasty endured from -663 to -525. After Seti reigned Ramses II (Necho II), his son, who for a lengthy period had been Seti’s co-ruler. He carried on a prolonged war with Nebuchadnezzar, the Chaldean. Ramses’ heir Merneptah (Hophra of Jeremiah and Apries of Herodutus) lost the throne to a rebel, General Amasis, the latter reigned in peace for over forty years and died when Cambyses the Persian was already on his march of conquest toward Egypt. From -525 to -332, for close to two hundred years, Egypt was dominated by the Persian kings (Cambyses, Darius, Xerxes, Artaxerxes I, Darius II, Artaxerxes II and III); some of them were crowned also as Egyptian pharaohs; they kept native governors in Egypt like Psamshek or Nekht-hor. In the fourth century, during the reigns of Artaxerxer II and Artaxerxes III, Egypt achieved a measure of independence comparable to the independence the Greek states maintained during thetime of the Great Kings of Persia. Nepherites, Acoris, Nectanebo I (Ramses III), Tachos, and Nectanebo II were the indigenous kings of that period and they could be termed Native Kings or, if preferred, Sebennytic Dynasty, for the place of origin of the most famous of them. At the same time a Priestly Dynasty established already by Darius II (about -420) ruled in the military outposts-the oases of the Libyan desert. Thjey continued there till past -300. The Persians succeeded in -343 to reconquering Egypt, Nectanebo II escaping to the Sudan, but ten years later Egypt received Alexander as its liberator (-332). The Macedonian Dynasty endured three hundred years, with the Ptolemies on the throne till Cleopatra’s suicide in -30. Thereafter the Roman caesars ruled Egypt. This order of dynastic succession, relieved of thenumbered dynasties, is simple to comprehend: Arab, Theban, Libyan, Ethiopian (repeatedly interrupted by Assyrian conquests), Tanitic, Persian (partly Sebennytic), and Macedonian Dynasties in this sequence. As can readily be seen, for most of the fourteen hundred years (ca. -1450 to -30), Egypt was ruled by foreigners: the three periods when it was ruled by native kings were under the Theban (-1020 to -830), the Tanitic (-663 to -525), and the Sebennytic (ca. -391 to -341) Dynasties, altogether something like 380 years out of 1420.” (Peoples of the Sea, p. 194:2-195:end.)
F5: 12th to 10th centuries BC in Egypt: "the twelfth-tenth-century period in Egypt has no vacancy to accommodate any stray dynasty; the Hyksos domination of Egypt continued till the mid-eleventh century and from then on, for two centuries, till the mid-eleventh century and from then on, for two centuries, the Eighteenth Dynasty ruled over Egypt in one of her most glorious periods, Ahmose, Amenhotep I, Thumose I, Hatshepsut, Thutmose III, Amenhotep II, Thutmose IV, Amenhotep III, Akhnaton, Smenkhkare, and Tutankhamen successively occupying the throne." (Peoples of the Sea, p. 190:6.) "...places the terminal years of this [18th] dynasty in about -830." (Peoples of the Sea, p. 191:3.)
F6: 18th Dynasty: "…the Eighteenth Dynasty ruled from the days of Saul until Jehu, and the great temples of Luxor and Karnak, creations of Thutmose III and Amenhotep III, were built not before but fter the Temple in Jerusalem was erected." (Ages of Chaos, p.320:4) "David was a contemporary of Ahmose, founder of the Eighteenth Dynasty, and of Amenhotep I; Solomon was a contemporary of Thutmose I and Hatshepsut. And we found that the celebrated journey to God's Land and Punt was the voyage to Palestine and Phoenicia descriped in the Scriptures as the visit of the Queen of Sheba." (Ages of Chaos, p.337:4.)
A7: =A8-1 -> 2846 | C7: =C8+1 -> 1077 | D7: =IF(C7<>"",IF(C7=C8,"",C7-1),"") -> 1076
A8: 2847 | C8: 1076 | D8: 1075
A9: 2848 | C9: 1075 | D9: 1074
A10: 2849 | C10: 1074 | D10: 1073
A11: 2850 | C11: 1073 | D11: 1072
A12: 2851 | C12: 1072 | D12: 1071
A13: 2852 | C13: 1071 | D13: 1070
A14: =A15-1 -> 2853 | C14: 1070 | D14: 1069 | R14: =R15-1 -> 0
A15: 2854 | C15: 1069 | D15: 1068 | R15: =R16-1 -> 1
A16: 2855 | C16: 1068 | D16: 1067 | R16: =R17-1 -> 2
A17: 2856 | C17: 1067 | D17: 1066 | R17: =R18-1 -> 3
A18: 2857 | C18: 1066 | D18: 1065 | R18: =R19-1 -> 4
A19: 2858 | C19: 1065 | D19: 1064 | R19: 5
A20: 2859 | C20: 1064 | D20: 1063 | L20: =L21-1 -> 1 | R20: 6
A21: 2860 | C21: 1063 | D21: 1062 | L21: 2 | R21: 7
A22: 2861 | C22: 1062 | D22: 1061 | L22: 3 | R22: 8
A23: 2862 | C23: 1061 | D23: 1060 | L23: 4 | R23: 9
A24: 2863 | C24: 1060 | D24: 1059 | L24: 5 | R24: 10
A25: 2864 | C25: 1059 | D25: 1058 | L25: 6 | R25: 11
A26: 2865 | C26: 1058 | D26: 1057 | L26: 7 | R26: 12
A27: 2866 | C27: 1057 | D27: 1056 | L27: 8 | R27: 13
A28: 2867 | C28: 1056 | D28: 1055 | L28: 9 | R28: 14
A29: 2868 | C29: 1055 | D29: 1054 | L29: 10 | R29: 15
A30: 2869 | C30: 1054 | D30: 1053 | L30: 11 | R30: 16
A31: 2870 | C31: 1053 | D31: 1052 | L31: 12 | R31: 17
A32: 2871 | C32: 1052 | D32: 1051 | L32: 13 | R32: 18
A33: 2872 | C33: 1051 | D33: 1050 | L33: 14 | R33: 19
A34: 2873 | C34: 1050 | D34: 1049 | L34: 15 | R34: 20
A35: 2874 | C35: 1049 | D35: 1048 | L35: 16 | R35: 21
A36: 2875 | C36: 1048 | D36: 1047 | L36: 17 | R36: 22 | S36: A significant event clearly established in time and clearly occurring prior to the anointing of Saul by Samuel: Eli dies and the Ark of the Covenant is taken by the Philistines: "And the Philistines fought... And the ark of God was taken; and the two sons of Eli, Hophni and Phinehas, were slain... Now Eli was ninety and eight years old... And it came to pass... that he fell from off the seat backward by the side of the gate, and his neck brake, and he died: for he was an old man, and heavy. And he had judged Israel forty years... And the ark of the Lord was in the country of the Philistines seven months... And the men of Kirjath-jearim came, and fetched up the ark of the Lord, and brought it into the house of Abinadab in the hill, and sanctified Eleazar his son to keep the ark of the Lord. And it came to pass, while the ark abode in Kirjath-jearim, that the time was long; for it was twenty years: and all the house of Israel lamented after the Lord..." 1 Sam. 4:10,11,15,18; 6:1; 7:2. "And David arose, and went with all the people that were with him from Baale of Judah [Baalah, which is Kirjath-Jearim... Kirjath-baal, which is Kirjath-jearim" Joshua 15:9,60 (KJV)], to bring up from thence the ark of God, whose name is called by the name of the Lord of host that dwelleth between the cherubims... And they brought it out of the house of Abinadab which was at Gibeah... And the ark of the Lord continued in the house of Obed-edom the Gittite three months: and the Lord blessed Obed-edom, and all his household... So David went and brought up the ark of God from the house of Obed-edom into the city of David with gladness... And David danced before the Lord... And as the ark of the Lord came into the city of David, Michal Saul's daughter looked through a window, and saw king David leaping and dancing before the Lord; and she despised him in her heart. And they brought in the ark of the Lord, and set it in his place, in the midst of the tabernacle that David had pitched for it:... Therefore Michal the daughter of Saul had no child unto the day of her death" 2 Sam 6:2,4,11,12,14,16,17,23 (KJV). NOTICE: From the above texts it can be seen that Eli died about 20 years and 10 months [7 month + 20 years + 3 months] before the ark was brought to the city of David.
A37: 2876 | C37: 1047 | D37: 1046 | L37: 18 | R37: 23 | S37: [NOTICE the necessarily short time span between the events relating to the sons of Eli, and the events relating to the sons of Samuel and the anointing of Saul as king. A PK syndrome? (PK=Priest's Kid). No wonder the people of Israel had these events fresh in mind! No wonder they were sensitive to such issues! Remember: Hurt people hurt people. And: FEAR=False Evidence Appearing Right!]
A38: 2877 | C38: 1046 | D38: 1045 | I38: Saul | K38: 1st year - I.e. the 1st Sacred Calendar Year he reigned | L38: 19 | O38: Saul | Q38: 1st year - I.e. the 1st Sacred Calendar Year he reigned | R38: 24 | S38: Interpretation #1 of 1 Sam. 13:1: Based first of all upon the principle for counting the seven sabbaths towards the 50th day, i.e. the Feast of Weeks, where the counting starts on the first sabbath of one full 7*24 hour week after the Passover sacrifice, AND considering that the 490-7=483 years ending with Cyrus' decree in 3360, One MUST THEN conclude that the period of rule of kings over Israel & Judah was consummated (e.g. by the anointing of Saul) before the end of the Sabbath Year ending 2877 years after Creation. Cf. Lev. 23:5-6,9-11,14-16. BUT then follows that 1 Sam. 13:1, if giving reference, as in "Interpretation #2" below, to the beginning and total number of years of Saul's reign, that either David's anointing took place earlier than indicated by the "HIDDEN PROPHECY" below, OR some other event. That other event IS most likely the termination of the reign of king Saul as pronounced by Samuel: "But now thy kingdom shall not continue: the Lord hath sought him a man after his own heart, and the Lord hath commanded him to be captain over his people, because thou hast not kept that which the Lord commanded thee." 1 Sam. 13:14 (KJV), and "And Samuel said unto him, The Lord hath rent the kingdom of Israel from thee this day, and hath given it to a neighbour of thine, that is better than thou." 1 Sam. 15:28 (KJV), and, after the anointing of David, "And the Lord hath done to him, as he spake by me: for the Lord hath rent the kingdom out of thine hand, and given it to thy neighbour, even to David: Because thou obeyedst not the voice of the Lord, nor executedst his fierce wrath upon Amalek, therefore hath the Lord done this thing unto thee this day." 1 Samuel 28:17-18 (KJV)].
A39: 2878 | C39: 1045 | D39: 1044 | I39: Saul | K39: 2nd year - I.e. the 2nd Sacred Calendar Year he reigned | L39: 20 | O39: Saul | Q39: 2nd year - I.e. the 2nd Sacred Calendar Year he reigned | R39: 25 | S39: "And it came to pass, when Samuel was old, that he made his sons judges over Israel. Now the name of his firstborn was Joel; and the name of his second, Abiah: they were judges in Beer-sheba. And his sons walked not in his ways, but turned aside after lucre, and took bribes, and perverted judgment. Then all the elders of Israel gathered themselves together, and came to Samuel unto Ramah, And said unto him, Behold, thou art old, and thy sons walk not in thy ways: now make us a king to judge us like all the nations" 1 Sam. 8:1-5 (KJV). "And as they [Samuel and Saul] were going down to the end of the city, Samuel said to Saul, Bid the servant pass on before us, (and he passed on,) but stand thou still a while, that I may shew thee the word of God. Then Samuel took a vial of oil, and poured it upon his [Saul's] head, and kissed him, and said, Is it not because the Lord hath anointed thee to be captain over his inheritance?" 1 Sam. 9:27-10:1 (KJV). "And afterward they desired a king: and God gave unto them Saul the son of Cis, a man of the tribe of Benjamin, by the space of forty years" Acts 13:21 (KJV). NOTICE: The two Greek words translated as "by the space of forty years" are Strong's #2094 & #5062: #2094 "etos; appar. a prim. word; a year"; #5062 "tessarakonta; the decade of 5064; forty". Cf. #5063: "tessarakontaetes; from 5062 and 2094; of forty years of age". The 40 years thus do NOT seem to refer to the reign of Saul, but to his age at anointment. This fact is confirmed by the following: Eli died at 98 years of age after having been a judge of Israel for 40 years, (see 1 Sam. 4:15,18 (KJV)). At the time when Hanna spoke to Eli in the temple of God Eli's sons were already old enough to serve in the temple and to be of ill repute, thus Eli was hardly less than 30-40 years old at the time, even if this meeting with Hanna occured before Eli was a judge of Israel, which assumption is then hardly necessary, nor indicated by the Scriptures. Thus Hannah most likely spoke to Eli after Eli was 58 years old, i.e. after he became a judge in Israel. BUT Eli died only eleven (11) years before Samuel died! (See references on Sheet 1!) Thus the time from Hannah's barrenness, i.e. prior to the birth of Samuel, unto the death of Samuel not likely more than 40+11=51 years, and cannot be more than 68[98-(15+15)]+11=79 years! Now, at the time before Saul was made king "And it came to pass, when Samuel was old, that he made his sons judges over Israel... Joel... Abiah... they were judges in Beer-sheba... Then all the elders of Israel gathered themselves together, and came to Samuel unto Ramah, And said unto him, Behold, thou art old, and thy sons walk not in thy ways: now make us a king to judge us like all the nations" 1 Sam. 8:4-5 (KJV). At the time of Eli's death Samuel was most likely <40 [51-11=40 cf. above] and not possibly >68 [79-11=68 cf. above]. Putting the anointing of Saul as king prior to the death of Eli is thus precluded! But that, and the sequence of the Scriptural record, and the absence of Eli and his sons early in Saul's reign (1 Sam. 14:18) means that Saul must have been anointed during the last 11 years of Samuel's life, i.e. after the death of Eli and Eli's sons when Samuel became the (sole) judge. From the references found [on this Sheet #7] at the end of Saul's reign it is clear that Samuel died only about 2 years before king Saul and Jonathan. Thus if not utterly impossible, it is still highly unlikely, all things above considered, that the Greek words used in Acts 13:21 can mean that Saul reigned for 40 years. Considering the above King Saul most likely reigned less than 12 years, i.e. he was anointed some time after Samuel became sole judge and had at least about a year(?) to put his sons in place! Furthermore, Saul was old enough to have a grown son, i.e. Jonathan, old enough to do battle as a soldier on his own (1 Sam. 13:3) prior to the time when David first came in contact with them, so 40 years of age for Saul at that time is certainly not unlikely. Furthermore, Ishbosheth, apparently a younger brother of Jonathan (cf. 1 Sam. 14:49-51 [Ishui=Ishbosheth?], 31:2 [Abinadab is NOT= Abner ! Cf. 2 Sam. 2:8], 2 Sam. 2:10, 1 Chron. 8:33 & 9:39 with a foot note at "Esh-ba-al" stating "or, Ish-bosheth, 2 Sam. 4.4 & 9.6,10"), was 5 years older than David, i.e. Ishboshet was 40 when David was 35 y/o, thus Jonathan was likely of an age close to that of David's, perhaps 6-10 years older than David, and Saul would likely have been at least 35+15=50 y/o [Ishboshet was 35 y/o when Saul died and Saul must have been at least 15 y/o when he fathered his oldest son] when he, Saul, was killed. Which of course means that he reigned at minimum of 50-40=10 years [Saul's age when he died less his age when he started to reign]. Because Ish-Bosheth is not listed as a son of Saul in the beginning of Saul's reign (1 Sam. 14:49 KJV) some are suggesting that Ish-bosheth, and thus also the 5 year younger David, were not yet born at that time. A consequence of such an argument is that Saul must have reigned for >40 years. Thus it is important to consider this issue. Certainly the names Ishui, Esh-Ba-al, and Ish-bosheth are different names with different meanings though reminiscent of one another. Ishui means 'level' and is related to the name Jesuit, Esh-Ba-al means 'man of Baal', and Ish-Bosheth means 'man of shame' (see Strong's). Ishui is listed second among 3 sons. Esh-Ba-al and Ish-bosheth are listed last among four sons while the name Ishui is no longer present and Mal-chi-shu-a is moved up from 3rd to 2nd position. Considering the meaning of the name Ish-bosheth, i.e. 'man of shame', it seems more likely, under these circumstances, that Ishui did some shameful act and was demoted to the last position among his brethren, while also having his name changed, rather than indicating that he was not yet born at the time.
A40: 2879 | C40: 1044 | D40: 1043 | I40: Saul | K40: 3rd year - I.e. the 3rd Sacred Calendar Year he reigned | L40: 21 | O40: Saul | Q40: 3rd year - I.e. the 3rd Sacred Calendar Year he reigned | R40: 26 | S40: Interpretation #2 of 1 Sam. 13:1: IF 1 Sam. 13:1 is taken as a summary of Saul's lawful 2 year (plus) reign prior to the anointing of David, AND IF the note below, i.e. 'Another HIDDEN TIME PROPHECY?…' is correctly positioned in time, THEN this year is the year when Saul was anointed. IF my interpretation in the note 'Saul ruled at least part of one year and...' is only correct as to the 2 year portion of the text then the next year below is the correct year for Saul's anointing.
A41: 2880 | C41: 1043 | D41: 1042 | I41: Saul | K41: 4th year - I.e. the 4th Sacred Calendar Year he reigned | L41: 22 | O41: Saul | Q41: 4th year - I.e. the 4th Sacred Calendar Year he reigned | R41: 27 | S41: Interpretation #3 of 1 Sam. 13:1: Saul ruled at least part of one year and two subsequent full years prior to the year when the David was anointed by Samuel (perhaps 3-4, or more, years considering the additional events recorded prior to the anointing of David): "And Saul said unto Ahiah [a great grandson of Eli the priest (1 Sam. 14:3 (KJV) - Notice that neither Eli, nor Phinehas are available, i.e. confirmation that this event occurred after their death!], Bring hither the ark of God. For the ark of God was at that time [back (see 1 Sam. 6:1)] with the children of Israel" 1 Sam. 14:18 (KJV). "Saul reigned one year; and when he had reigned two years over Israel, Saul chose him three thousand men of Israel... And Jonathan smote the garrison of the Philistines that was in Geba... And he tarried seven days, according to the set time that Samuel had appointed: but Samuel came not to Gilgal; and the people were scattered from him. And Saul said, Bring hither a burnt offering to me, and peace offerings. And he offered the burnt offering. And it came to pass, that as soon as he had made an end of offering the burnt offering, behold, Samuel came..." 1 Sam. 13:1-2,3,8-10 (KJV). NOTICE> It seems to me that the curious English and Hebrew formulation in the beginning of 1 Sam. 13:1 indicates that Saul's reign did not start at the head of a year, thus Saul was a "son" of, rather than "the king" of the year. Following that 1st year of his reign he then reigned 2 full years prior to the events related in the following verses. Although not specified it seems possible that the sacrifice announced by Samuel may have been a Passover event or possibly a New Moon event of the First month of the new Sacred year - perhaps Samuel's apparent delay was due to a delay in a New Moon sighting - considering the wording of the beginning of 1 Sam. 13:1.
A42: 2881 | C42: 1042 | D42: 1041 | I42: Saul | K42: 5th year - I.e. the 5th Sacred Calendar Year he reigned | L42: 23 | O42: Saul | Q42: 5th year - I.e. the 5th Sacred Calendar Year he reigned | R42: 28 | S42: Addendum #1 to interpretations ##1-3: It appears from from the following arguments (##1-4) THAT the event of Saul's being anointed in secret by Samuel, very well could have been a Passover related celebration, e.g. the Feast of Weeks, i.e. the 50th day after the Sabbath of the Feast of Unleavened Bread, AND thus that the anointing of Saul may have taken place near the beginning of a Sacred Year, i.e. at the beginning of the 3rd month of the Sacred Year (2 + 7 = 9 weeks = 2 months plus): #1) The three men in 1 Sam. 10:3 are carrying three essentials for the sacrifice offered unto the Lord on the Feast of Weeks, one of which is uniquely named for such sacrifice in the Torah, i.e. the loaves (Lev. 23:17 "Ye shall bring out of your habitations two wave loaves of two tenth deals: they shall be of fine flour; they shall be baken with leaven; they are the firstfruits unto the Lord..."), while the others, i.e. the kids and the wine were common for all sacrifices even for the daily sacrifice, #2) All the events, i.e. the "signs" (v.9) re in 1 Sam 10:1-10, came to pass in one (1) day: "And it was so, that when he had turned his back to go from Samuel, God gave him another heart: and all those signs came to pass THAT DAY" 1 Sam. 10:9, #3) The day before was a feast (per footnote 7 in Orville's KJV, but cf. for the word translated "sacrifice"/"feast" Strong's #2076 "a prim. root; to slaughter an animal (usually in sacrifice), #2077 "from 2076; prop. a slaughter, i.e. the flesh of an animal; by impl. a sacrifice (the victim or the act)", #2078 "the same as 2077; sacrifice; Zebach, a Midianitish prince") or "a sacrifice of the people to day in the high place" 1 Sam. 9:12 and could thus be the 7th Sabbat following Passover, AND #4) A Pentecost type experience for Saul: "The Spirit of the Lord will come upon thee, and thou shalt prophesy with them [the company of prophets], and shalt be turned into another man" 1 Sam. 10:6 (KJV). NOTICE> It may appear from the KJV translation of 1 Sam. 9:26, especially "the spring of the day…" that this terminology may have something to do with the spring season, i.e. the beginning of the year, whereas the Hebrew words (according to Strong's) merely means 'the lifting ("the spring") of darkness ("of the day")', a phrase which if it was to be applied (perhaps in a dual sense) to the day/year principle would have to be applied to the transition from the 6th to the 7th month of the year.
A43: 2882 | C43: 1041 | D43: 1040 | I43: Saul | K43: 6th year - I.e. the 6th Sacred Calendar Year he reigned | L43: 24 | O43: Saul | Q43: 6th year - I.e. the 6th Sacred Calendar Year he reigned | R43: 29 | S43: [Another HIDDEN TIME PROPHECY? The names Solomon and Jedidiah (cf. 2 Sam. 12:24-25) adds up the 418 (Thus 3299-418=2881). If applied to the same end event as that of Josiah, the initiating event may well be that of David's being anointed by Samuel, i.e. considering that the prophecy was given unto David. Cf. the conspicuous reference to the prophet Samuel in: "And there was no passover like to that kept in Israel from the days of Samuel the prophet" 2 Chron. 35:1,18 (KJV). See more notes at end of Solomons reign!] NOTICE> Considering all the other notes pertaining to Saul's reign, especially the fairly certain dating of Eli's death, a minimum lawful two year reign of Saul's prior to David's anointing, and Samuel's death at the very latest 1 and 1/2 year prior to David's move to Hebron, David must certainly have been anointed after the completion of the 2877th year and prior to the completion of the 2886th year as herein calculated!
A44: 2883 | C44: 1040 | D44: 1039 | G44: Kamose and Amose: "Saul was a contemporary of Kamose and Amose, founders of the Eighteenth Dynasty, and together they besieged and took Avaris, the fortress-capital of the Hyksos-Amalekites. I also identified Avaris in el-Arish. There Saul took the last Hyksos king, Agag, prisoner." (Peoples of the Sea, p.107:2.) | I44: Saul | K44: 7th year - I.e. the 7th Sacred Calendar Year he reigned | L44: 25 | O44: Saul | Q44: 7th year - I.e. the 7th Sacred Calendar Year he reigned | R44: 30 | S44: [Calculations for Hidden time prophecy:] | T44: =A879-418 -> 2884 | U44: An attempt to find a starting point for this potential time prophecy…
A45: 2884 | C45: 1039 | D45: 1038 | I45: Saul | K45: 8th year - I.e. the 8th Sacred Calendar Year he reigned | L45: 26 | O45: Saul | Q45: 8th year - I.e. the 8th Sacred Calendar Year he reigned | R45: 31 | S45: Addendum #2 to interpretations ##1-3: It appears from from the following arguments (##1-5) THAT the event at Gilgal, shortly after Saul's being anointed in secret by Samuel, very well could have been the Passover itself, a Passover related celebration, e.g. the Feast of Weeks, i.e. the 50th day after the Sabbath of the Feast of Unleavened Bread, or even the Day of Atonement, AND thus that the anointing of Saul may have taken place during the first half of a Sacred Year, or at the latest on the Day of Trumpets, i.e. the 1st Day of the 7th Month: #1) 1 Sam. 9:25-10:1-8, especially "And thou shalt go down before me to Gilgal; and, behold, I will come down unto thee, to offer burnt offerings, and to sacrifice sacrifices of peace offerings: seven days shalt thou tarry…" 1 Sam. 9:26; 10:8, #2) The fact that the very name Gilgal is associated with the essence of Passover, "And the Lord said unto Joshua, This day have I rolled away the reproach of Egypt from off you. Wherefore the name of the place is called Gilgal unto this day" Joshua 5:9 (KJV), #3) The fact that Gilgal was a place where the first Passover celebration was kept following the entry into the Promised Land (and their first harvest?), "And the children of Israel encamped in Gilgal, and kept the passover on the fourteenth day of the month at even in the plains of Jericho" Joshua 5:10 (KJV), #4) The fact that the word passover is never used in 1 or 2 Samuel, nor in 1 Kings or 1 Chron., while in 2 Kings only in re to Josiah (23:21-23) and in 2 Chron. only in re to Hezekiah (30:1,2,5,15,18) and Josiah (35:1,6-19), #5) The three men in 1 Sam. 10:3 are carrying three essentials for the sacrifice offered unto the Lord on the Feast of Weeks, one of which is uniquely named for such sacrifice in the Torah, i.e. the loaves (Lev. 23:17 "Ye shall bring out of your habitations two wave loaves of two tenth deals: they shall be of fine flour; they shall be baken with leaven; they are the firstfruits unto the Lord..."), while the others, i.e. the kids and the wine were common for all sacrifices even for the daily sacrifice, #6) All the events, i.e. the "signs" (v.9) re in 1 Sam 10:1-10, came to pass in one (1) day: "And it was so, that when he had turned his back to go from Samuel, God gave him another heart: and all those signs came to pass THAT DAY" 1 Sam. 10:9, AND #6) From the fact that Passover was kept in a prominent way in "the days of Samuel": "And there was no passover like to that kept in Israel from the days of Samuel the prophet..." 2 Chron. 35:18 (KJV). NOTICE> It may appear from the KJV translation of 1 Sam. 9:26, especially "the spring of the day…" that this terminology may have something to do with the spring season, i.e. the beginning of the year, whereas the Hebrew words (according to Strong's) merely means 'the lifting ("the spring") of darkness ("of the day")', a phrase which if it was to be applied (perhaps in a dual sense) to the day/year principle would have to be applied to the transition from the 6th to the 7th month of the year. | T45: =2877+418 -> 3295 | U45: The exact date for David's - and Saul's - being anointed still missing, Spanning the range of possibilities and thus attempting to find significant ending events at the end of 418 years…
A46: 2885 | C46: 1038 | D46: 1037 | I46: Saul | K46: 9th year - I.e. the 9th Sacred Calendar Year he reigned | L46: 27 | O46: Saul | Q46: 9th year - I.e. the 9th Sacred Calendar Year he reigned | R46: 32 | T46: =2886+418 -> 3304 | U46: Ditto
A47: 2886 | C47: 1037 | D47: 1036 | I47: Saul | K47: 10th year - I.e. the 10th Sacred Calendar Year he reigned | L47: 28 | O47: Saul | Q47: 10th year - I.e. the 10th Sacred Calendar Year he reigned | R47: 33 | S47: Is this the year Samuel died? "And Samuel died; and all the Israelites were gathered together, and lamented him, and buried him in his house at Ramah. And David arose, and went down to the wilderness of Paran. And there was a man in Maon... Now the name of the man was Nabal; and the name of his wife Abigail: and she was a woman of good understanding; and of a beautiful countenance... And it came to pass about ten days after, that the Lord smote Nabal, that he died... And David sent and communed with Abigail, to take her to him to wife... And Abigail hasted, and arose, and rode upon an ass, with five damsels of her's that went after her; and she went after the messengers of David, and became his wife. David also took Ahinoam of Jezreel; and they were also both of them his wives" 1 Sam. 25:1-3,38,39,42-43 (KJV). Considering David's need for peace at a time when he was forming a family (1 Sam. 25:43), and the events related in 1 Sam. 27:1-4,7 (KJV) it seems likely that these events occured during the 39th year of king Saul's reign: "And David said in his heart, I shall now perish one day by the hand of Saul: there is nothing better for me than that I should speedily escape into the land of the Philistines; and Saul shall despair of me, to seek me any more in any coast of Israel: so shall I escape out of his hand... And David arose and he passed over ... unto Achish, the son of Maoch, king of Gath. And David dwelt with Achish at Gath, he and his men, every man with his household, even David with his two wives, Ahinoam the Jezreelitess, and Abigail the Carmelitess, Nabal's wife. And it was told Saul that David was fled to Gath: and he sought no more again for him... And the time that David dwelt in the country of the Philistines was a full year and four months". NOTICE> 70 weeks is 1 year, 4 months, and two weeks - in "our" modern Catholic, i.e. Gregorian the Pope, Calendar. In the Biblical, i.e. the Sacred Calendar, 1 year and 4 months is either 66 weeks or 70 weeks depending on whether there is a 13th month in the 1 year!
A48: 2887 | C48: =C49+1 -> 1036 | D48: 1035 | I48: Saul | K48: 11th year - I.e. the 11th Sacred Calendar Year he reigned | L48: =L49-1 -> 29 | O48: Saul | Q48: 11th year - I.e. the 11th Sacred Calendar Year he reigned | R48: 34 | S48: King David and his 70 weeks - or was it 66 weeks - before his reign in Hebron started? An event prophecy demonstrating the nature of the 2nd coming of Christ? "And the time that David dwelt in the country of the Philistines was a full year and four months" 1 Sam. 27:7 (KJV). NOTICE> 70 weeks is 1 year, 4 months, and two weeks - in "our" modern Catholic, i.e. Gregorian the Pope, Calendar. In the Biblical, i.e. the Sacred, Calendar, 1 year and 4 months is either 66 weeks or 70 weeks depending on whether there is a 13th month in the 1 year! So what is the lesson in this event? Well, as for me it is clear: David separated himself and his family from "his" system, "his" society, "his" church, for the purpose of finding peace and quiet for his family until his persecutors died as a consequence of their own actions, i.e. due to their failure to live in harmony with the law and the precepts of our Creator... Thus my long time persuit in learning how to effectively separate myself and my family from the system find support and confirmation even in this 70 week prophetic event - as in literally thousands of other bible passages. The bible is loaded with this concept - as in A to Z, alpha to omega, or aleph to tav... For consideration: Could the 2,300 days be applied also to the events David experienced during these years? If so what lessons could be learned from such considerations? What happened around 2,300 literal days after David moved out of the way of Saul, i.e. after the beginning of his 70 weeks? And what about 1,260 days? NOTICE> Counting backwards in time 2,300 days, i.e. 6.5 years brings us to the year of the anointing of David by Samuel if the "HIDDEN TIME PROPHECY" is thus correctly placing it!?!!! Coincidence, or? How about counting backwards from Cyrus' decree 2,300 years? 3360-2300=1060. The closest event to 1060 is Noah's birth which occurred 1056 years after Creation. Thus at 1060 Noah turned 4 years old... Significance? Certainly! Study the name Noah and its various generic roots in Strong's and compare it to the realizations experienced by many sincere bible students in 1844! Ever noticed the significance of symmetry and mirror images in the Bible?!!! By the way Noah was born at the beginning of a Sabbath year and the name Noah means 'rest' as in Sabbath...
A49: =A51 -> 2888 | C49: =C51 -> 1035 | D49: 1034 | I49: Saul | K49: 12th year - I.e. the 12th Sacred Calendar Year he reigned | L49: 30 | O49: Saul | Q49: 12th year - I.e. the 12th Sacred Calendar Year he reigned | R49: 35
A51: =A52-1 -> 2888 | C51: =C52+1 -> 1035 | D51: 1034 | I51: David | J51: t ? 2 Sam. 16:8 | K51: 1st year - I.e. the 1st Sacred Calendar Year he reigned | L51: 30 | O51: The House of Saul & Abner | R51: =R52-1 -> 35 | S51: 2 Sam. 5:4-5; 15:7; 1 Kings 2:10-12. It is clear from 2 Sam. 2:1-4 that David was anointed King of Judah, by "the men of Judah" (KJV) AFTER the events of King Saul's death as referenced by the words "after this" 2 Sam. 2:1 and "It was the men of Jabesh-gilead who buried Saul" 2 Sam. 2:4. The full story of King Saul's and Jonathan's deaths is recorded in 1 Sam. 31 and 2 Sam. 1. NOTICE IN RE the dates for David's moving from Ziklag to Hebron, and for getting himself wives and offspring: The first six sons of David (each from a different mother!) and their birth order are recorded in 2 Sam. 3:2-5. These six sons were all born in Hebron. Two of these 6 mothers are recorded as being wives of David prior to his moving to Hebron, "So David went up thither [to Hebron], and his two wifes also, Ahinoam the Jezreelitess, and Abigail Naabal's wife the Carmelite" 2 Sam. 2:2 (KJV). "And it came to pass after this [the death of Saul and Jonathan as recorded in 1 Sam. 31 and 2 Sam. 1], that David enquired of the Lord... And he [the Lord] said, Unto Hebron. So David went up thither..." 2 Sam. 2:1-2 (KJV). How long time after the death of Saul did this move to Hebron take place? "Now it came to pass after the death of Saul, when David was returned from the slaughter of the Amalekites, and David had abode [i.e. been back with his two recovered wives "And David recovered all that the Amalekites had carried away: and David rescued his two wives" 1 Sam. 30:18 (KJV)] two days in Ziklag [where he had been living 1 year and 4 month at that time "And David dwelt with Achish at Gath, he and his men, every man with his household, even David with his two wives, Ahinoam the Jezreelitess, and Abigail the Carmelitess, Nabal's wife... And David said unto Achish, If I have now found grace in thine eyes, let them give me a place in some town in the country, that I may dwell there: for why should thy servant dwell in the royal city with thee? Then Achish gave him Ziklag that day: wherefore Ziklag pertaineth unto the kings of Judah unto this day. And the time that David dwelt in the country of the Philistines was a full year and four months" 1 Sam. 27:3,5-7 (KJV)]; It came even to pass on the third day, that, behold, a man came out of the camp from Saul..." 2 Sam. 1:1-2 (KJV). It is clear that it was some time prior to his stay with the Philistines that he got himself his two wives, "And Abigail hasted, and arose, and rode upon an ass, with five damsels of her's that went after her; and she went after the messengers of David, and became his wife. David also took Ahinoam of Jezreel; and they were also both of them his wives. But Saul had given Michal his daughter, David's wife, to Phalti the son of Laish, which was of Gallim" 1 Sam 25:42-44 (KJV). Thus David's first wife was Michal, but "Wherefore David arose and went, he and his men, and slew of the Philestines two hundred men; and David brought their foreskins, and they gave them in full tale to the king, that he might be the king's son in law. And Saul gave him Michal his daughter to wife. And Saul saw and knew that the Lord was with David, and that Michal Saul's daughter loved him" 1 Sam. 18:27-28 (KJV). "Michal the daughter of Saul had no child unto the day of her death" 2 Sam. 6:23 (KJV). Though she [or her sister?] seems to have been bringing up five foster children of her sister Merab's (see 1 Sam. 18:19 (KJV)), or else born unto Merab's husband Adriel, as recorded in 2 Sam. 21:8 (KJV).
